Workbook

Sheet Results
A1: Soil Lab, Geological Survey of Israel
A2: Particle Size Analysis by laser diffraction, Instrument: Mastersizer 2000
A3: Aviv Lee Zada
A4: Sample description: dune sand
A5: Samples ID's: [4415-4427a]
A8: Particle | C8: ='raw files'!C1 -> [4415] Chile_9_T3_50 bulk - a - Average | J8: Particle | L8: ='raw files'!I1 -> [4416] Chile_9_T3_47 bulk - a - Average | S8: Particle | U8: ='raw files'!O1 -> [4417] Chile_9_T3_40 bulk - a - Average | AB8: Particle | AD8: ='raw files'!V1 -> [4417] Chile_9_T3_40 bulk - b - Average | AK8: Particle | AM8: ='raw files'!AB1 -> [4418] C9_T3_34 bulk - a - Average | AT8: Particle | AV8: ='raw files'!AH1 -> [4419] Chile_9_T1_00 bulk - b - Average | BC8: Particle | BE8: ='raw files'!AN1 -> [4420] Chile_9_T1_4 bulk - b - Average | BL8: Particle | BN8: ='raw files'!AT1 -> [4421] Chile_9_T1_8 bulk - b - Average | BU8: Particle | BW8: ='raw files'!AZ1 -> [4422] Chile_9_T1_10 bulk- a - Average | CC8: Particle | CE8: ='raw files'!BF1 -> [4424] Chile_9_T4_51 bulk - b
A9: Diameter | C9: Differential Volume (%) | J9: Diameter | L9: Differential Volume (%) | S9: Diameter | U9: Differential Volume (%) | AB9: Diameter | AD9: Differential Volume (%) | AK9: Diameter | AM9: Differential Volume (%) | AT9: Diameter | AV9: Differential Volume (%) | BC9: Diameter | BE9: Differential Volume (%) | BL9: Diameter | BN9: Differential Volume (%) | BU9: Diameter | BW9: Differential Volume (%) | CC9: Diameter | CE9: Differential Volume (%)
A10: Range (mm) | B10: Size Class | C10: Rep. 1 | D10: Rep. 2 | E10: Rep. 3 | F10: Average | G10: SE | J10: Range (mm) | K10: Size Class | L10: Rep. 1 | M10: Rep. 2 | N10: Rep. 3 | O10: Average | P10: SE | S10: Range (mm) | T10: Size Class | U10: Rep. 1 | V10: Rep. 2 | W10: Rep. 3 | X10: Average | Y10: SE | AB10: Range (mm) | AC10: Size Class | AD10: Rep. 1 | AE10: Rep. 2 | AF10: Rep. 3 | AG10: Average | AH10: SE | AK10: Range (mm) | AL10: Size Class | AM10: Rep. 1 | AN10: Rep. 2 | AO10: Rep. 3 | AP10: Average | AQ10: SE | AT10: Range (mm) | AU10: Size Class | AV10: Rep. 1 | AW10: Rep. 2 | AX10: Rep. 3 | AY10: Average | AZ10: SE | BC10: Range (mm) | BD10: Size Class | BE10: Rep. 1 | BF10: Rep. 2 | BG10: Rep. 3 | BH10: Average | BI10: SE | BL10: Range (mm) | BM10: Size Class | BN10: Rep. 1 | BO10: Rep. 2 | BP10: Rep. 3 | BQ10: Average | BR10: SE | BT10: Range (mm) | BU10: Size Class | BV10: Rep. 1 | BW10: Rep. 2 | BX10: Rep. 3 | BY10: Average | BZ10: SE | CC10: Range (mm) | CD10: Size Class | CE10: Rep. 1 | CF10: Rep. 2 | CG10: Rep. 3 | CH10: Average | CI10: SE
A11: < 6 | B11: Clay | C11: ='raw files'!C13 -> 0 | D11: ='raw files'!D13 -> 2.868 | E11: ='raw files'!E13 -> 2.424 | F11: =AVERAGE(C11:E11) -> 1.764 | G11: =(STDEV(C11:E11))/SQRT(3) -> 0.8912642706 | J11: < 6 | K11: Clay | L11: ='raw files'!I13 -> 0.814 | M11: ='raw files'!J13 -> 1.37 | N11: ='raw files'!K13 -> 0.59 | O11: =AVERAGE(L11,N11) -> 0.702 | P11: =(STDEV(L11:N11))/SQRT(3) -> 0.2318658616 | S11: < 6 | T11: Clay | U11: ='raw files'!O13 -> 0.088 | V11: ='raw files'!P13 -> 1.082 | W11: ='raw files'!Q13 -> 0.652 | X11: =AVERAGE(U11:W11) -> 0.6073333333 | Y11: =(STDEV(U11:W11))/SQRT(3) -> 0.2878108947 | AB11: < 6 | AC11: Clay | AD11: ='raw files'!V13 -> 1.082 | AE11: ='raw files'!W13 -> 0 | AF11: ='raw files'!X13 -> 0.652 | AG11: =AVERAGE(AD11:AF11) -> 0.578 | AH11: =(STDEV(AD11:AF11))/SQRT(3) -> 0.3145303377 | AK11: < 6 | AL11: Clay | AM11: ='raw files'!AB13 -> 3.444 | AN11: ='raw files'!AC13 -> 2.821 | AO11: ='raw files'!AD13 -> 4.185 | AP11: =AVERAGE(AM11:AO11) -> 3.483333333 | AQ11: =(STDEV(AM11:AO11))/SQRT(3) -> 0.3942437204 | AT11: < 6 | AU11: Clay | AV11: ='raw files'!AH13 -> 2.006 | AW11: ='raw files'!AI13 -> 1.231 | AX11: ='raw files'!AJ13 -> 1.282 | AY11: =AVERAGE(AV11:AX11) -> 1.506333333 | AZ11: =(STDEV(AV11:AX11))/SQRT(3) -> 0.2502667466 | BC11: < 6 | BD11: Clay | BE11: ='raw files'!AN13 -> 0.406 | BF11: ='raw files'!AO13 -> 0.921 | BG11: ='raw files'!AP13 -> 0.446 | BH11: =AVERAGE(BE11:BG11) -> 0.591 | BI11: =(STDEV(BE11:BG11))/SQRT(3) -> 0.1654035469 | BL11: < 6 | BM11: Clay | BN11: ='raw files'!AT13 -> 0 | BO11: ='raw files'!AU13 -> 0 | BP11: ='raw files'!AV13 -> 0 | BQ11: =AVERAGE(BN11:BP11) -> 0 | BR11: =(STDEV(BN11:BP11))/SQRT(3) -> 0 | BT11: < 6 | BU11: Clay | BV11: ='raw files'!AZ13 -> 1.425 | BW11: ='raw files'!BA13 -> 1.114 | BX11: ='raw files'!BB13 -> 0.819 | BY11: =AVERAGE(BV11:BX11) -> 1.119333333 | BZ11: =(STDEV(BV11:BX11))/SQRT(3) -> 0.1749574551 | CC11: < 6 | CD11: Clay | CE11: ='raw files'!BF13 -> 0.395 | CF11: ='raw files'!BG13 -> 0.622 | CG11: ='raw files'!BH13 -> 0.508 | CH11: =AVERAGE(CE11:CG11) -> 0.5083333333 | CI11: =(STDEV(CE11:CG11))/SQRT(3) -> 0.0655294675
A12: 6 - 63 | B12: Silt | C12: ='raw files'!C14 -> 0.735 | D12: ='raw files'!D14 -> 4.564 | E12: ='raw files'!E14 -> 4.012 | F12: =AVERAGE(C12:E12) -> 3.103666667 | G12: =(STDEV(C12:E12))/SQRT(3) -> 1.195005207 | J12: 6 - 63 | K12: Silt | L12: ='raw files'!I14 -> 1.531 | M12: ='raw files'!J14 -> 1.847 | N12: ='raw files'!K14 -> 1.376 | O12: =AVERAGE(L12,N12) -> 1.4535 | P12: =(STDEV(L12:N12))/SQRT(3) -> 0.1385885196 | S12: 6 - 63 | T12: Silt | U12: ='raw files'!O14 -> 0.265 | V12: ='raw files'!P14 -> 0.192 | W12: ='raw files'!Q14 -> 0.099 | X12: =AVERAGE(U12:W12) -> 0.1853333333 | Y12: =(STDEV(U12:W12))/SQRT(3) -> 0.04803586623 | AB12: 6 - 63 | AC12: Silt | AD12: ='raw files'!V14 -> 0.192 | AE12: ='raw files'!W14 -> 0 | AF12: ='raw files'!X14 -> 0.099 | AG12: =AVERAGE(AD12:AF12) -> 0.097 | AH12: =(STDEV(AD12:AF12))/SQRT(3) -> 0.05543464621 | AK12: 6 - 63 | AL12: Silt | AM12: ='raw files'!AB14 -> 4.849 | AN12: ='raw files'!AC14 -> 4.127 | AO12: ='raw files'!AD14 -> 6.376 | AP12: =AVERAGE(AM12:AO12) -> 5.117333333 | AQ12: =(STDEV(AM12:AO12))/SQRT(3) -> 0.6629485484 | AT12: 6 - 63 | AU12: Silt | AV12: ='raw files'!AH14 -> 4.448 | AW12: ='raw files'!AI14 -> 3.145 | AX12: ='raw files'!AJ14 -> 2.953 | AY12: =AVERAGE(AV12:AX12) -> 3.515333333 | AZ12: =(STDEV(AV12:AX12))/SQRT(3) -> 0.4696155638 | BC12: 6 - 63 | BD12: Silt | BE12: ='raw files'!AN14 -> 1.302 | BF12: ='raw files'!AO14 -> 2.052 | BG12: ='raw files'!AP14 -> 1.279 | BH12: =AVERAGE(BE12:BG12) -> 1.544333333 | BI12: =(STDEV(BE12:BG12))/SQRT(3) -> 0.2539201537 | BL12: 6 - 63 | BM12: Silt | BN12: ='raw files'!AT14 -> 0.008 | BO12: ='raw files'!AU14 -> 0.008 | BP12: ='raw files'!AV14 -> 0.005 | BQ12: =AVERAGE(BN12:BP12) -> 0.007 | BR12: =(STDEV(BN12:BP12))/SQRT(3) -> 0.001 | BT12: 6 - 63 | BU12: Silt | BV12: ='raw files'!AZ14 -> 2.636 | BW12: ='raw files'!BA14 -> 2.366 | BX12: ='raw files'!BB14 -> 2.031 | BY12: =AVERAGE(BV12:BX12) -> 2.344333333 | BZ12: =(STDEV(BV12:BX12))/SQRT(3) -> 0.1749841263 | CC12: 6 - 63 | CD12: Silt | CE12: ='raw files'!BF14 -> 1.372 | CF12: ='raw files'!BG14 -> 1.731 | CG12: ='raw files'!BH14 -> 1.552 | CH12: =AVERAGE(CE12:CG12) -> 1.551666667 | CI12: =(STDEV(CE12:CG12))/SQRT(3) -> 0.1036345073
A13: 63 - 2000 | B13: Sand | C13: ='raw files'!C15 -> 99.265 | D13: ='raw files'!D15 -> 92.568 | E13: ='raw files'!E15 -> 93.563 | F13: 95.132 | G13: =(STDEV(C13:E13))/SQRT(3) -> 2.086366299 | J13: 63 - 2000 | K13: Sand | L13: ='raw files'!I15 -> 97.654 | M13: ='raw files'!J15 -> 96.783 | N13: ='raw files'!K15 -> 98.034 | O13: 97.844 | P13: =(STDEV(L13:N13))/SQRT(3) -> 0.3702883261 | S13: 63 - 2000 | T13: Sand | U13: ='raw files'!O15 -> 99.647 | V13: ='raw files'!P15 -> 98.726 | W13: ='raw files'!Q15 -> 99.249 | X13: 99.20733333 | Y13: =(STDEV(U13:W13))/SQRT(3) -> 0.2666847911 | AB13: 63 - 2000 | AC13: Sand | AD13: ='raw files'!V15 -> 98.726 | AE13: ='raw files'!W15 -> 100 | AF13: ='raw files'!X15 -> 99.249 | AG13: 99.325 | AH13: =(STDEV(AD13:AF13))/SQRT(3) -> 0.3697300817 | AK13: 63 - 2000 | AL13: Sand | AM13: ='raw files'!AB15 -> 91.707 | AN13: ='raw files'!AC15 -> 93.052 | AO13: ='raw files'!AD15 -> 89.44 | AP13: 91.39966667 | AQ13: 1.053957041 | AT13: 63 - 2000 | AU13: Sand | AV13: ='raw files'!AH15 -> 93.546 | AW13: ='raw files'!AI15 -> 95.623 | AX13: ='raw files'!AJ15 -> 95.765 | AY13: 94.978 | AZ13: 0.7171724572 | BC13: 63 - 2000 | BD13: Sand | BE13: ='raw files'!AN15 -> 98.291 | BF13: ='raw files'!AO15 -> 97.028 | BG13: ='raw files'!AP15 -> 98.275 | BH13: 97.86466667 | BI13: =(STDEV(BE13:BG13))/SQRT(3) -> 0.4183588306 | BL13: 63 - 2000 | BM13: Sand | BN13: ='raw files'!AT15 -> 99.992 | BO13: ='raw files'!AU15 -> 99.992 | BP13: ='raw files'!AV15 -> 99.995 | BQ13: 99.993 | BR13: 0.001 | BT13: 63 - 2000 | BU13: Sand | BV13: ='raw files'!AZ15 -> 95.939 | BW13: ='raw files'!BA15 -> 96.519 | BX13: ='raw files'!BB15 -> 97.15 | BY13: 96.536 | BZ13: =(STDEV(BV13:BX13))/SQRT(3) -> 0.3496889094 | CC13: 63 - 2000 | CD13: Sand | CE13: ='raw files'!BF15 -> 98.232 | CF13: ='raw files'!BG15 -> 97.647 | CG13: ='raw files'!BH15 -> 97.94 | CH13: 97.93966667 | CI13: =(STDEV(CE13:CG13))/SQRT(3) -> 0.168875036
A14: 63 - 125 | B14: VF Sand | C14: ='raw files'!C16 -> 8.154 | D14: ='raw files'!D16 -> 9.058 | E14: ='raw files'!E16 -> 7.897 | F14: 8.369666667 | G14: 0.3520721201 | J14: 63 - 125 | K14: VF Sand | L14: ='raw files'!I16 -> 2.912 | M14: ='raw files'!J16 -> 2.689 | N14: ='raw files'!K16 -> 1.922 | O14: 2.417 | P14: 0.2998256901 | S14: 63 - 125 | T14: VF Sand | U14: ='raw files'!O16 -> 4.235 | V14: ='raw files'!P16 -> 6.13 | W14: ='raw files'!Q16 -> 5.302 | X14: 5.222333333 | Y14: 0.5484877189 | AB14: 63 - 125 | AC14: VF Sand | AD14: ='raw files'!V16 -> 6.13 | AE14: ='raw files'!W16 -> 8.142 | AF14: ='raw files'!X16 -> 5.302 | AG14: 6.524666667 | AH14: 0.8432519065 | AK14: 63 - 125 | AL14: VF Sand | AM14: ='raw files'!AB16 -> 5.06 | AN14: ='raw files'!AC16 -> 4.118 | AO14: ='raw files'!AD16 -> 6.577 | AP14: 5.251666667 | AQ14: 0.7162919175 | AT14: 63 - 125 | AU14: VF Sand | AV14: ='raw files'!AH16 -> 2.833 | AW14: ='raw files'!AI16 -> 2.031 | AX14: ='raw files'!AJ16 -> 1.503 | AY14: 2.122333333 | AZ14: 0.3866442522 | BC14: 63 - 125 | BD14: VF Sand | BE14: ='raw files'!AN16 -> 3.948 | BF14: ='raw files'!AO16 -> 4.728 | BG14: ='raw files'!AP16 -> 3.534 | BH14: =AVERAGE(BE14:BG14) -> 4.07 | BI14: =(STDEV(BE14:BG14))/SQRT(3) -> 0.350034284 | BL14: 63 - 125 | BM14: VF Sand | BN14: ='raw files'!AT16 -> 2.969 | BO14: ='raw files'!AU16 -> 2.575 | BP14: ='raw files'!AV16 -> 1.618 | BQ14: =AVERAGE(BN14:BP14) -> 2.387333333 | BR14: =(STDEV(BN14:BP14))/SQRT(3) -> 0.4011293779 | BT14: 63 - 125 | BU14: VF Sand | BV14: ='raw files'!AZ16 -> 5.047 | BW14: ='raw files'!BA16 -> 4.47 | BX14: ='raw files'!BB16 -> 3.879 | BY14: 4.465333333 | BZ14: 0.3371806308 | CC14: 63 - 125 | CD14: VF Sand | CE14: ='raw files'!BF16 -> 3.519 | CF14: ='raw files'!BG16 -> 4.371 | CG14: ='raw files'!BH16 -> 3.945 | CH14: 3.945 | CI14: 0.2459512147
A15: 125 - 250 | B15: F Sand | C15: ='raw files'!C17 -> 22.443 | D15: ='raw files'!D17 -> 20.129 | E15: ='raw files'!E17 -> 17.284 | F15: 19.952 | G15: 1.491902253 | J15: 125 - 250 | K15: F Sand | L15: ='raw files'!I17 -> 36.817 | M15: ='raw files'!J17 -> 38.114 | N15: ='raw files'!K17 -> 32.37 | O15: 34.5935 | P15: 1.739277532 | S15: 125 - 250 | T15: F Sand | U15: ='raw files'!O17 -> 37.823 | V15: ='raw files'!P17 -> 51.335 | W15: ='raw files'!Q17 -> 50.882 | X15: 46.68 | Y15: 4.43043034 | AB15: 125 - 250 | AC15: F Sand | AD15: ='raw files'!V17 -> 51.335 | AE15: ='raw files'!W17 -> 52.65 | AF15: ='raw files'!X17 -> 50.882 | AG15: 51.62233333 | AH15: 0.5302126408 | AK15: 125 - 250 | AL15: F Sand | AM15: ='raw files'!AB17 -> 10.219 | AN15: ='raw files'!AC17 -> 6.504 | AO15: ='raw files'!AD17 -> 11.117 | AP15: 9.28 | AQ15: 1.412000118 | AT15: 125 - 250 | AU15: F Sand | AV15: ='raw files'!AH17 -> 7.376 | AW15: ='raw files'!AI17 -> 5.275 | AX15: ='raw files'!AJ17 -> 6.294 | AY15: 6.315 | AZ15: 0.6065973404 | BC15: 125 - 250 | BD15: F Sand | BE15: ='raw files'!AN17 -> 11.069 | BF15: ='raw files'!AO17 -> 12.849 | BG15: ='raw files'!AP17 -> 8.976 | BH15: =AVERAGE(BE15:BG15) -> 10.96466667 | BI15: =(STDEV(BE15:BG15))/SQRT(3) -> 1.119255159 | BL15: 125 - 250 | BM15: F Sand | BN15: ='raw files'!AT17 -> 8.907 | BO15: ='raw files'!AU17 -> 8.588 | BP15: ='raw files'!AV17 -> 5.355 | BQ15: 7.616666667 | BR15: 1.134576622 | BT15: 125 - 250 | BU15: F Sand | BV15: ='raw files'!AZ17 -> 26.888 | BW15: ='raw files'!BA17 -> 25.485 | BX15: ='raw files'!BB17 -> 23.405 | BY15: 25.25933333 | BZ15: 1.011766826 | CC15: 125 - 250 | CD15: F Sand | CE15: ='raw files'!BF17 -> 11.079 | CF15: ='raw files'!BG17 -> 12.208 | CG15: ='raw files'!BH17 -> 11.643 | CH15: 11.64333333 | CI15: 0.3259142696
A16: 250 - 500 | B16: M Sand | C16: ='raw files'!C18 -> 18.254 | D16: ='raw files'!D18 -> 17.707 | E16: ='raw files'!E18 -> 16.413 | F16: 17.458 | G16: 0.5458391094 | J16: 250 - 500 | K16: M Sand | L16: ='raw files'!I18 -> 47.29 | M16: ='raw files'!J18 -> 47.613 | N16: ='raw files'!K18 -> 48.225 | O16: 47.7575 | P16: 0.2741753291 | S16: 250 - 500 | T16: M Sand | U16: ='raw files'!O18 -> 43.005 | V16: ='raw files'!P18 -> 39.481 | W16: ='raw files'!Q18 -> 41.371 | X16: 41.28566667 | Y16: 1.018185532 | AB16: 250 - 500 | AC16: M Sand | AD16: ='raw files'!V18 -> 39.481 | AE16: ='raw files'!W18 -> 37.867 | AF16: ='raw files'!X18 -> 41.371 | AG16: 39.573 | AH16: 1.012563084 | AK16: 250 - 500 | AL16: M Sand | AM16: ='raw files'!AB18 -> 12.735 | AN16: ='raw files'!AC18 -> 13.899 | AO16: ='raw files'!AD18 -> 12.274 | AP16: 12.96933333 | AQ16: 0.4835081293 | AT16: 250 - 500 | AU16: M Sand | AV16: ='raw files'!AH18 -> 22.679 | AW16: ='raw files'!AI18 -> 18.293 | AX16: ='raw files'!AJ18 -> 17.774 | AY16: 19.582 | AZ16: 1.555731018 | BC16: 250 - 500 | BD16: M Sand | BE16: ='raw files'!AN18 -> 21.328 | BF16: ='raw files'!AO18 -> 24.173 | BG16: ='raw files'!AP18 -> 17.747 | BH16: 21.08266667 | BI16: 1.859077758 | BL16: 250 - 500 | BM16: M Sand | BN16: ='raw files'!AT18 -> 18.321 | BO16: ='raw files'!AU18 -> 22.698 | BP16: ='raw files'!AV18 -> 21.241 | BQ16: 20.75333333 | BR16: 1.286843209 | BT16: 250 - 500 | BU16: M Sand | BV16: ='raw files'!AZ18 -> 35.993 | BW16: ='raw files'!BA18 -> 35.298 | BX16: ='raw files'!BB18 -> 34.863 | BY16: 35.38466667 | BZ16: 0.3290685508 | CC16: 250 - 500 | CD16: M Sand | CE16: ='raw files'!BF18 -> 21.022 | CF16: ='raw files'!BG18 -> 18.974 | CG16: ='raw files'!BH18 -> 19.998 | CH16: 19.998 | CI16: 0.5912066757
A17: 500 - 1000 | B17: C Sand | C17: ='raw files'!C19 -> 25.455 | D17: ='raw files'!D19 -> 26.193 | E17: ='raw files'!E19 -> 29.522 | F17: 27.05666667 | G17: 1.25094129 | J17: 500 - 1000 | K17: C Sand | L17: ='raw files'!I19 -> 10.563 | M17: ='raw files'!J19 -> 8.069 | N17: ='raw files'!K19 -> 14.506 | O17: 12.5345 | P17: 1.873829323 | S17: 500 - 1000 | T17: C Sand | U17: ='raw files'!O19 -> 12.852 | V17: ='raw files'!P19 -> 1.378 | W17: ='raw files'!Q19 -> 1.695 | X17: 5.308333333 | Y17: 3.772943251 | AB17: 500 - 1000 | AC17: C Sand | AD17: ='raw files'!V19 -> 1.378 | AE17: ='raw files'!W19 -> 1.341 | AF17: ='raw files'!X19 -> 1.695 | AG17: 1.471333333 | AH17: 0.1123422351 | AK17: 500 - 1000 | AL17: C Sand | AM17: ='raw files'!AB19 -> 33.728 | AN17: ='raw files'!AC19 -> 37.749 | AO17: ='raw files'!AD19 -> 33.362 | AP17: 34.94633333 | AQ17: 1.405310681 | AT17: 500 - 1000 | AU17: C Sand | AV17: ='raw files'!AH19 -> 39.167 | AW17: ='raw files'!AI19 -> 41.027 | AX17: ='raw files'!AJ19 -> 38.87 | AY17: 39.688 | AZ17: 0.6749674066 | BC17: 500 - 1000 | BD17: C Sand | BE17: ='raw files'!AN19 -> 39.253 | BF17: ='raw files'!AO19 -> 37.826 | BG17: ='raw files'!AP19 -> 42.05 | BH17: 39.70966667 | BI17: 1.240557984 | BL17: 500 - 1000 | BM17: C Sand | BN17: ='raw files'!AT19 -> 41.781 | BO17: ='raw files'!AU19 -> 42.544 | BP17: ='raw files'!AV19 -> 45.063 | BQ17: 43.12933333 | BR17: 0.9916051522 | BT17: 500 - 1000 | BU17: C Sand | BV17: ='raw files'!AZ19 -> 21.054 | BW17: ='raw files'!BA19 -> 22.338 | BX17: ='raw files'!BB19 -> 24.773 | BY17: 22.72166667 | BZ17: 1.090587049 | CC17: 500 - 1000 | CD17: C Sand | CE17: ='raw files'!BF19 -> 36.538 | CF17: ='raw files'!BG19 -> 34.925 | CG17: ='raw files'!BH19 -> 35.731 | CH17: 35.73133333 | CI17: 0.4656330219
A18: 1000 - 2000 | B18: VC Sand | C18: ='raw files'!C20 -> 24.959 | D18: ='raw files'!D20 -> 19.481 | E18: ='raw files'!E20 -> 22.448 | F18: 22.296 | G18: 1.583187607 | J18: 1000 - 2000 | K18: VC Sand | L18: ='raw files'!I20 -> 0.072 | M18: ='raw files'!J20 -> 0.298 | N18: ='raw files'!K20 -> 1.011 | O18: 0.5415 | P18: 0.2829572013 | S18: 1000 - 2000 | T18: VC Sand | U18: ='raw files'!O20 -> 1.733 | V18: ='raw files'!P20 -> 0.402 | W18: ='raw files'!Q20 -> 0 | X18: 0.7116666667 | Y18: 0.5236863989 | AB18: 1000 - 2000 | AC18: VC Sand | AD18: ='raw files'!V20 -> 0.402 | AE18: ='raw files'!W20 -> 0 | AF18: ='raw files'!X20 -> 0 | AG18: 0.134 | AH18: 0.134 | AK18: 1000 - 2000 | AL18: VC Sand | AM18: ='raw files'!AB20 -> 29.965 | AN18: ='raw files'!AC20 -> 30.782 | AO18: ='raw files'!AD20 -> 26.11 | AP18: 28.95233333 | AQ18: 1.440603616 | AT18: 1000 - 2000 | AU18: VC Sand | AV18: ='raw files'!AH20 -> 21.491 | AW18: ='raw files'!AI20 -> 28.996 | AX18: ='raw files'!AJ20 -> 31.324 | AY18: 27.27033333 | AZ18: 2.966783687 | BC18: 1000 - 2000 | BD18: VC Sand | BE18: ='raw files'!AN20 -> 22.692 | BF18: ='raw files'!AO20 -> 17.451 | BG18: ='raw files'!AP20 -> 25.968 | BH18: 22.037 | BI18: 2.480362272 | BL18: 1000 - 2000 | BM18: VC Sand | BN18: ='raw files'!AT20 -> 28.014 | BO18: ='raw files'!AU20 -> 23.588 | BP18: ='raw files'!AV20 -> 26.718 | BQ18: 26.10666667 | BR18: 1.313730735 | BT18: 1000 - 2000 | BU18: VC Sand | BV18: ='raw files'!AZ20 -> 6.957 | BW18: ='raw files'!BA20 -> 8.929 | BX18: ='raw files'!BB20 -> 10.229 | BY18: 8.705 | BZ18: 0.9511620962 | CC18: 1000 - 2000 | CD18: VC Sand | CE18: ='raw files'!BF20 -> 26.075 | CF18: ='raw files'!BG20 -> 27.169 | CG18: ='raw files'!BH20 -> 26.622 | CH18: 26.622 | CI18: 0.3158105972
D19: Textural Class: | F19: ='Texture Calculator'!N4 -> SAND | M19: Textural Class: | O19: ='Texture Calculator'!N5 -> SAND | V19: Textural Class: | W19: ='Texture Calculator'!N6 -> SAND | AE19: Textural Class: | AF19: ='Texture Calculator'!N7 -> SAND | AM19: Textural Class: | AO19: ='Texture Calculator'!N8 -> SAND | AV19: Textural Class: | AX19: ='Texture Calculator'!N9 -> SAND | BE19: Textural Class: | BG19: ='Texture Calculator'!N10 -> SAND | BM19: Textural Class: | BO19: ='Texture Calculator'!N11 -> SAND | BV19: Textural Class: | BX19: ='Texture Calculator'!N12 -> SAND | CD19: Textural Class: | CF19: ='Texture Calculator'!N13 -> SAND
D20: avg mode: | F20: =AVERAGE('raw files'!C6:E6) -> 971.3446667 | M20: avg mode: | O20: =AVERAGE('raw files'!I6:K6) -> 277.841 | V20: avg mode: | X20: =AVERAGE('raw files'!O6:Q6) -> 241.6406667 | AE20: avg mode: | AG20: =AVERAGE('raw files'!V6:W6) -> 225.6125 | AM20: avg mode: | AO20: =AVERAGE('raw files'!AF6:AH6) -> 734.53 | AV20: avg mode: | AX20: =AVERAGE('raw files'!AH6:AJ6) -> 856.7733333 | BE20: avg mode: | BG20: =AVERAGE('raw files'!AN6:AP6) -> 760.6236667 | BM20: avg mode: | BO20: =AVERAGE('raw files'!AU6:AV6) -> 761.139 | BV20: avg mode: | BX20: =AVERAGE('raw files'!AZ6:BB6) -> 302.781 | CE20: avg mode: | CG20: =AVERAGE('raw files'!BF6:BH6) -> 913.9993333
A24: Particle | C24: ='raw files'!BL1 -> [4425] Chile_9_T4_54 bulk - f - Average | J24: Particle | L24: ='raw files'!BR1 -> [4426] Chile_9_T4_59 bulk - b - Average | S24: Particle | U24: ='raw files'!BX1 -> [4427] Chile_9_T4_67 bulk - b - Average | AB24: Particle | AD24: ='raw files'!CD1 -> [4427a] Chile_9_T1 end bulk - g - Average
A25: Diameter | C25: Differential Volume (%) | J25: Diameter | L25: Differential Volume (%) | S25: Diameter | U25: Differential Volume (%) | AB25: Diameter | AD25: Differential Volume (%)
A26: Range (mm) | B26: Size Class | C26: Rep. 1 | D26: Rep. 2 | E26: Rep. 3 | F26: Average | G26: SE | J26: Range (mm) | K26: Size Class | L26: Rep. 1 | M26: Rep. 2 | N26: Rep. 3 | O26: Average | P26: SE | S26: Range (mm) | T26: Size Class | U26: Rep. 1 | V26: Rep. 2 | W26: Rep. 3 | X26: Average | Y26: SE | AB26: Range (mm) | AC26: Size Class | AD26: Rep. 1 | AE26: Rep. 2 | AF26: Rep. 3 | AG26: Average | AH26: SE
A27: < 6 | B27: Clay | C27: ='raw files'!BL13 -> 0.776 | D27: ='raw files'!BM13 -> 1.583 | E27: ='raw files'!BN13 -> 1.085 | F27: =AVERAGE(C27:E27) -> 1.148 | G27: =(STDEV(C27:E27))/SQRT(3) -> 0.2350808372 | J27: < 6 | K27: Clay | L27: ='raw files'!BR13 -> 1.924 | M27: ='raw files'!BS13 -> 2.293 | N27: ='raw files'!BT13 -> 0.256 | O27: =AVERAGE(L27:N27) -> 1.491 | P27: =(STDEV(L27:N27))/SQRT(3) -> 0.6266202997 | S27: < 6 | T27: Clay | U27: ='raw files'!BX13 -> 0.448 | V27: ='raw files'!BY13 -> 0.894 | W27: ='raw files'!BZ13 -> 0.577 | X27: =AVERAGE(U27:W27) -> 0.6396666667 | Y27: =(STDEV(U27:W27))/SQRT(3) -> 0.1325070229 | AB27: < 6 | AC27: Clay | AD27: ='raw files'!CD13 -> 1.862 | AE27: ='raw files'!CE13 -> 1.024 | AF27: ='raw files'!CF13 -> 1.494 | AG27: =AVERAGE(AD27:AF27) -> 1.46 | AH27: =(STDEV(AD27:AF27))/SQRT(3) -> 0.2425063573
A28: 6 - 63 | B28: Silt | C28: ='raw files'!BL14 -> 1.378 | D28: ='raw files'!BM14 -> 1.961 | E28: ='raw files'!BN14 -> 1.528 | F28: =AVERAGE(C28:E28) -> 1.622333333 | G28: =(STDEV(C28:E28))/SQRT(3) -> 0.1747820865 | J28: 6 - 63 | K28: Silt | L28: ='raw files'!BR14 -> 2.807 | M28: ='raw files'!BS14 -> 2.903 | N28: ='raw files'!BT14 -> 0.895 | O28: =AVERAGE(L28:N28) -> 2.201666667 | P28: =(STDEV(L28:N28))/SQRT(3) -> 0.6539208243 | S28: 6 - 63 | T28: Silt | U28: ='raw files'!BX14 -> 0.981 | V28: ='raw files'!BY14 -> 1.592 | W28: ='raw files'!BZ14 -> 1.248 | X28: =AVERAGE(U28:W28) -> 1.273666667 | Y28: =(STDEV(U28:W28))/SQRT(3) -> 0.1768467635 | AB28: 6 - 63 | AC28: Silt | AD28: ='raw files'!CD14 -> 2.66 | AE28: ='raw files'!CE14 -> 1.488 | AF28: ='raw files'!CF14 -> 1.725 | AG28: =AVERAGE(AD28:AF28) -> 1.957666667 | AH28: =(STDEV(AD28:AF28))/SQRT(3) -> 0.3577691683
A29: 63 - 2000 | B29: Sand | C29: ='raw files'!BL15 -> 97.846 | D29: ='raw files'!BM15 -> 96.457 | E29: ='raw files'!BN15 -> 97.388 | F29: 97.23033333 | G29: 0.4086458668 | J29: 63 - 2000 | K29: Sand | L29: ='raw files'!BR15 -> 95.269 | M29: ='raw files'!BS15 -> 94.804 | N29: ='raw files'!BT15 -> 98.85 | O29: 96.30766667 | P29: =(STDEV(L29:N29))/SQRT(3) -> 1.278234503 | S29: 63 - 2000 | T29: Sand | U29: ='raw files'!BX15 -> 98.571 | V29: ='raw files'!BY15 -> 97.514 | W29: ='raw files'!BZ15 -> 98.175 | X29: 98.08666667 | Y29: 0.3083095486 | AB29: 63 - 2000 | AC29: Sand | AD29: ='raw files'!CD15 -> 95.477 | AE29: ='raw files'!CE15 -> 97.488 | AF29: ='raw files'!CF15 -> 96.781 | AG29: 96.582 | AH29: 0.588990945
A30: 63 - 125 | B30: VF Sand | C30: ='raw files'!BL16 -> 2.265 | D30: ='raw files'!BM16 -> 3.334 | E30: ='raw files'!BN16 -> 2.885 | F30: 2.828 | G30: 0.3099069753 | J30: 63 - 125 | K30: VF Sand | L30: ='raw files'!BR16 -> 5.073 | M30: ='raw files'!BS16 -> 3.448 | N30: ='raw files'!BT16 -> 2.407 | O30: =AVERAGE(L30:N30) -> 3.642666667 | P30: =(STDEV(L30:N30))/SQRT(3) -> 0.7757384296 | S30: 63 - 125 | T30: VF Sand | U30: ='raw files'!BX16 -> 6.134 | V30: ='raw files'!BY16 -> 7.436 | W30: ='raw files'!BZ16 -> 6.248 | X30: 6.606 | Y30: 0.4163027744 | AB30: 63 - 125 | AC30: VF Sand | AD30: ='raw files'!CD16 -> 5.978 | AE30: ='raw files'!CE16 -> 4.487 | AF30: ='raw files'!CF16 -> 5.205 | AG30: 5.223333333 | AH30: 0.4305122272
A31: 125 - 250 | B31: F Sand | C31: ='raw files'!BL17 -> 14.14 | D31: ='raw files'!BM17 -> 14.37 | E31: ='raw files'!BN17 -> 10.897 | F31: 13.13566667 | G31: 1.121300782 | J31: 125 - 250 | K31: F Sand | L31: ='raw files'!BR17 -> 29.162 | M31: ='raw files'!BS17 -> 26.497 | N31: ='raw files'!BT17 -> 25.789 | O31: =AVERAGE(L31:N31) -> 27.14933333 | P31: 1.026878171 | S31: 125 - 250 | T31: F Sand | U31: ='raw files'!BX17 -> 21.6 | V31: ='raw files'!BY17 -> 23.467 | W31: ='raw files'!BZ17 -> 19.621 | X31: 21.56266667 | Y31: 1.110401479 | AB31: 125 - 250 | AC31: F Sand | AD31: ='raw files'!CD17 -> 17.027 | AE31: ='raw files'!CE17 -> 13.253 | AF31: ='raw files'!CF17 -> 15.545 | AG31: 15.275 | AH31: 1.09779233
A32: 250 - 500 | B32: M Sand | C32: ='raw files'!BL18 -> 33.679 | D32: ='raw files'!BM18 -> 31.967 | E32: ='raw files'!BN18 -> 28.496 | F32: 31.38066667 | G32: 1.524654314 | J32: 250 - 500 | K32: M Sand | L32: ='raw files'!BR18 -> 38.677 | M32: ='raw files'!BS18 -> 40.374 | N32: ='raw files'!BT18 -> 40.516 | O32: 39.85566667 | P32: 0.5907572353 | S32: 250 - 500 | T32: M Sand | U32: ='raw files'!BX18 -> 22.446 | V32: ='raw files'!BY18 -> 19.725 | W32: ='raw files'!BZ18 -> 18.94 | X32: 20.37033333 | Y32: 1.062285325 | AB32: 250 - 500 | AC32: M Sand | AD32: ='raw files'!CD18 -> 17.692 | AE32: ='raw files'!CE18 -> 21.65 | AF32: ='raw files'!CF18 -> 18.902 | AG32: 19.41466667 | AH32: 1.17097699
A33: 500 - 1000 | B33: C Sand | C33: ='raw files'!BL19 -> 34.815 | D33: ='raw files'!BM19 -> 33.813 | E33: ='raw files'!BN19 -> 38.727 | F33: 35.785 | G33: 1.499169103 | J33: 500 - 1000 | K33: C Sand | L33: ='raw files'!BR19 -> 18.904 | M33: ='raw files'!BS19 -> 20.311 | N33: ='raw files'!BT19 -> 23.951 | O33: 21.05533333 | P33: 1.503726076 | S33: 500 - 1000 | T33: C Sand | U33: ='raw files'!BX19 -> 27.878 | V33: ='raw files'!BY19 -> 25.291 | W33: ='raw files'!BZ19 -> 30.322 | X33: 27.83033333 | Y33: 1.452520147 | AB33: 500 - 1000 | AC33: C Sand | AD33: ='raw files'!CD19 -> 28.965 | AE33: ='raw files'!CE19 -> 36.324 | AF33: ='raw files'!CF19 -> 32.932 | AG33: 32.74033333 | AH33: 2.126520815
A34: 1000 - 2000 | B34: VC Sand | C34: ='raw files'!BL20 -> 12.946 | D34: ='raw files'!BM20 -> 12.972 | E34: ='raw files'!BN20 -> 16.383 | F34: 14.10033333 | G34: 1.141358012 | J34: 1000 - 2000 | K34: VC Sand | L34: ='raw files'!BR20 -> 3.453 | M34: ='raw files'!BS20 -> 4.173 | N34: ='raw files'!BT20 -> 6.187 | O34: 4.604333333 | P34: 0.8181738473 | S34: 1000 - 2000 | T34: VC Sand | U34: ='raw files'!BX20 -> 20.512 | V34: ='raw files'!BY20 -> 21.595 | W34: ='raw files'!BZ20 -> 23.044 | X34: 21.717 | Y34: 0.7334664273 | AB34: 1000 - 2000 | AC34: VC Sand | AD34: ='raw files'!CD20 -> 25.815 | AE34: ='raw files'!CE20 -> 21.773 | AF34: ='raw files'!CF20 -> 24.196 | AG34: 23.928 | AH34: 1.174494075
D35: Textural Class: | F35: ='Texture Calculator'!N13 -> SAND | M35: Textural Class: | N35: ='Texture Calculator'!N14 -> SAND | V35: Textural Class: | W35: ='Texture Calculator'!N15 -> SAND | AE35: Textural Class: | AF35: ='Texture Calculator'!N16 -> SAND
D36: avg mode: | F36: =AVERAGE('raw files'!BL6:BN6) -> 557.883 | M36: avg mode: | N36: =AVERAGE('raw files'!BR6:BT6) -> 306.7366667 | V36: avg mode: | W36: =AVERAGE('raw files'!BX6:BY6) -> 957.011 | AE36: avg mode: | AF36: =AVERAGE('raw files'!CE6:CF6) -> 848.704
R49: Clay | S49: Silt
Q50: 0 | R50: 6 | S50: 63
Q51: 16 | R51: 6 | S51: 63

Sheet Texture Calculator
B1: Enter your data into the yellow highlighted cells | I1: Password = Texture
B3: Sand | D3: Clay | F3: Silt | H3: USDA Texture
A4: 4415 | B4: % Sand 1 | C4: =Results!$F$13/100 -> 0.95132 | D4: %Clay 1 | E4: =Results!$F$11/100 -> 0.01764 | F4: % Silt 1 | G4: =1-C4-E4 -> 0.03104 | H4: =GRAIN(C4,E4,G4) -> SAND | N4: =H4 -> SAND
A5: 4416 | B5: % Sand 2 | C5: =Results!$O$13/100 -> 0.97844 | D5: %Clay 2 | E5: =Results!$O$11/100 -> 0.00702 | F5: % Silt 2 | G5: =1-C5-E5 -> 0.01454 | H5: =GRAIN(C5,E5,G5) -> SAND | N5: =H5 -> SAND
A6: 4417 | B6: % Sand 3 | C6: =Results!$X$13/100 -> 0.9920733333 | D6: %Clay 3 | E6: =Results!X11/100 -> 0.006073333333 | F6: % Silt 3 | G6: =1-C6-E6 -> 0.001853333333 | H6: SAND | N6: =H6 -> SAND
A7: 4418 | B7: % Sand 4 | C7: =Results!$AG$13/100 -> 0.99325 | D7: %Clay 4 | E7: =Results!$AG$11/100 -> 0.00578 | F7: % Silt 4 | G7: =1-C7-E7 -> 0.00097 | H7: =GRAIN(C7,E7,G7) -> SAND | N7: =H7 -> SAND
A8: 4419 | B8: % Sand 5 | C8: =Results!$AP$13/100 -> 0.9139966667 | D8: %Clay 5 | E8: =Results!$AP$11/100 -> 0.03483333333 | F8: % Silt 5 | G8: =1-C8-E8 -> 0.05117 | H8: =GRAIN(C8,E8,G8) -> SAND | N8: =H8 -> SAND
A9: 4420 | B9: % Sand 6 | C9: =Results!$AY$13/100 -> 0.94978 | D9: %Clay 6 | E9: =Results!$AY$11/100 -> 0.01506333333 | F9: % Silt 6 | G9: =1-C9-E9 -> 0.03515666667 | H9: =GRAIN(C9,E9,G9) -> SAND | N9: SAND
A10: 4421 | B10: % Sand 7 | C10: =Results!$BH$13/100 -> 0.9786466667 | D10: %Clay 7 | E10: =Results!$BH$11/100 -> 0.00591 | F10: % Silt 7 | G10: 0.01544333333 | H10: SAND | N10: SAND
A11: 4422 | B11: % Sand 8 | C11: =Results!$BQ$13/100 -> 0.99993 | D11: %Clay 8 | E11: =Results!$BQ$11/100 -> 0 | F11: % Silt 8 | G11: =1-C11-E11 -> 7e-05 | H11: =GRAIN(C11,E11,G11) -> SAND | N11: SAND
A12: 4424 | B12: % Sand 9 | C12: =Results!$BY$13/100 -> 0.96536 | D12: %Clay 9 | E12: =Results!$BY$11/100 -> 0.01119333333 | F12: % Silt 9 | G12: 0.02344666667 | H12: SAND | N12: SAND
A13: 4425 | B13: % Sand 11 | C13: =Results!$CH$13/100 -> 0.9793966667 | D13: %Clay 11 | E13: =Results!$CH$11/100 -> 0.005083333333 | F13: % Silt 11 | G13: =1-C13-E13 -> 0.01552 | H13: =GRAIN(C13,E13,G13) -> SAND | N13: SAND
A14: 4426 | B14: % Sand 12 | C14: =Results!$F$29/100 -> 0.9723033333 | D14: %Clay 12 | E14: =Results!$F$27/100 -> 0.01148 | F14: % Silt 12 | G14: 0.01621666667 | H14: SAND | N14: SAND
A15: 4427 | B15: % Sand 13 | C15: =Results!$O$29/100 -> 0.9630766667 | D15: %Clay 13 | E15: =Results!$O$27/100 -> 0.01491 | F15: % Silt 13 | G15: 0.02201333333 | H15: SAND | N15: SAND
A16: 4427a | B16: % Sand 14 | C16: =Results!$X$29/100 -> 0.9808666667 | D16: %Clay 14 | E16: =Results!$X$27/100 -> 0.006396666667 | F16: % Silt 14 | G16: 0.01273666667 | H16: SAND | N16: SAND
D20: =A4 -> 4415 | E20: =(1.095-(C4*0.0104*100))-((0.52)*(0.0099*E4*100)) -> 0.096546128 | F20: =0.145+(0.0099*E4*100) -> 0.1624636
D21: 4416 | E21: 0.073808504 | F21: 0.1519498
D22: 4417 | E22: 0.06011718133 | F22: 0.1510126
D23: 4418 | E23: 0.059044456 | F23: 0.1507222
D24: 4419 | E24: 0.1265112667 | F24: 0.179485
D25: 4420 | E25: 0.099474196 | F25: 0.1599127
D26: 4421 | E26: 0.07416499867 | F26: 0.1508509
D27: 4422 | E27: 0.0550728 | F27: 0.145
D28: 4424 | E28: 0.085263272 | F28: 0.1560814
D29: 4425 | E29: 0.07381056667 | F29: 0.1500325
D30: 4426 | E30: =(1.095-(C14*0.0104*100))-((0.52)*(0.0099*E14*100)) -> 0.07789462933 | F30: =0.145+(0.0099*E14*100) -> 0.1563652
D31: 4427 | E31: 0.08572459867 | F31: 0.1597609
D32: 4427a | E32: 0.07160566267 | F32: 0.1513327
E57: 0.525
E58: 1.04

Sheet raw files
A1: Sample Name | C1: [4415] Chile_9_T3_50 bulk - a - Average | D1: [4415] Chile_9_T3_50 bulk - o - Average | E1: [4415] Chile_9_T3_50 bulk - p - Average | G1: Sample Name | I1: [4416] Chile_9_T3_47 bulk - a - Average | J1: [4416] Chile_9_T3_47 bulk - b - Average | K1: [4416] Chile_9_T3_47 bulk - c - Average | M1: Sample Name | O1: [4417] Chile_9_T3_40 bulk - a - Average | P1: [4417] Chile_9_T3_40 bulk - b - Average | Q1: [4417] Chile_9_T3_40 bulk - d - Average | T1: Sample Name | V1: [4417] Chile_9_T3_40 bulk - b - Average | W1: [4417] Chile_9_T3_40 bulk - c - Average | X1: [4417] Chile_9_T3_40 bulk - d - Average | Z1: Sample Name | AB1: [4418] C9_T3_34 bulk - a - Average | AC1: [4418] C9_T3_34 bulk - e - Average | AD1: [4418] C9_T3_34 bulk - d new Averaged Result | AF1: Sample Name | AH1: [4419] Chile_9_T1_00 bulk - b - Average | AI1: [4419] Chile_9_T1_00 bulk - c - Average | AJ1: [4419] Chile_9_T1_00 bulk - d - Average | AL1: Sample Name | AN1: [4420] Chile_9_T1_4 bulk - b - Average | AO1: [4420] Chile_9_T1_4 bulk - c - Average | AP1: [4420] Chile_9_T1_4 bulk - d - Average | AR1: Sample Name | AT1: [4421] Chile_9_T1_8 bulk - b - Average | AU1: [4421] Chile_9_T1_8 bulk - c - Average | AV1: [4421] Chile_9_T1_8 bulk - d - Average | AX1: Sample Name | AZ1: [4422] Chile_9_T1_10 bulk- a - Average | BA1: [4422] Chile_9_T1_10 bulk- b - Average | BB1: [4422] Chile_9_T1_10 bulk- c - Average | BD1: Sample Name | BF1: [4424] Chile_9_T4_51 bulk - b | BG1: [4424] Chile_9_T4_51 bulk - c | BH1: [4424] Chile_9_T4_51 bulk - c+d new Averaged Result | BJ1: Sample Name | BL1: [4425] Chile_9_T4_54 bulk - f - Average | BM1: [4425] Chile_9_T4_54 bulk - g - Average | BN1: [4425] Chile_9_T4_54 bulk - h - Average | BP1: Sample Name | BR1: [4426] Chile_9_T4_59 bulk - b - Average | BS1: [4426] Chile_9_T4_59 bulk - c - Average | BT1: [4426] Chile_9_T4_59 bulk - e - Average | BV1: Sample Name | BX1: [4427] Chile_9_T4_67 bulk - b - Average | BY1: [4427] Chile_9_T4_67 bulk - d - Average | BZ1: [4427] Chile_9_T4_67 bulk - e - Average | CB1: Sample Name | CD1: [4427a] Chile_9_T1 end bulk - g - Average | CE1: [4427a] Chile_9_T1 end bulk - b+d new Averaged Result | CF1: [4427a] Chile_9_T1 end bulk - a - Average
A2: Analysis date and time | C2: éåí øàùåï 25 àåâåñè 2019 16:33:50 | D2: éåí øàùåï 01 ñôèîáø 2019 11:30:09 | E2: éåí øàùåï 01 ñôèîáø 2019 11:37:30 | G2: Analysis date and time | I2: éåí ùìéùé 27 àåâåñè 2019 15:11:42 | J2: éåí ùìéùé 27 àåâåñè 2019 15:18:51 | K2: éåí ùìéùé 27 àåâåñè 2019 15:28:27 | M2: Analysis date and time | O2: éåí ùìéùé 27 àåâåñè 2019 14:40:16 | P2: éåí ùìéùé 27 àåâåñè 2019 14:47:27 | Q2: éåí ùìéùé 27 àåâåñè 2019 14:59:47 | T2: Analysis date and time | V2: éåí ùìéùé 27 àåâåñè 2019 14:47:27 | W2: éåí ùìéùé 27 àåâåñè 2019 14:53:30 | X2: éåí ùìéùé 27 àåâåñè 2019 14:59:47 | Z2: Analysis date and time | AB2: éåí øàùåï 01 ñôèîáø 2019 11:54:55 | AC2: éåí øàùåï 01 ñôèîáø 2019 12:11:24 | AD2: éåí øàùåï 01 ñôèîáø 2019 12:05:21 | AF2: Analysis date and time | AH2: éåí øàùåï 01 ñôèîáø 2019 12:42:44 | AI2: éåí øàùåï 01 ñôèîáø 2019 12:45:00 | AJ2: éåí øàùåï 01 ñôèîáø 2019 12:53:03 | AL2: Analysis date and time | AN2: éåí ùðé 02 ñôèîáø 2019 09:51:17 | AO2: éåí ùðé 02 ñôèîáø 2019 09:58:25 | AP2: éåí ùðé 02 ñôèîáø 2019 10:01:29 | AR2: Analysis date and time | AT2: éåí ùìéùé 27 àåâåñè 2019 14:05:26 | AU2: éåí ùìéùé 27 àåâåñè 2019 14:12:59 | AV2: éåí ùìéùé 27 àåâåñè 2019 14:28:52 | AX2: Analysis date and time | AZ2: éåí ùðé 09 ñôèîáø 2019 11:47:09 | BA2: éåí ùðé 09 ñôèîáø 2019 11:50:04 | BB2: éåí ùðé 09 ñôèîáø 2019 12:03:24 | BD2: Analysis date and time | BF2: éåí ùðé 02 ñôèîáø 2019 10:47:22 | BG2: éåí ùðé 02 ñôèîáø 2019 10:52:42 | BH2: éåí ùðé 02 ñôèîáø 2019 10:47:22 | BJ2: Analysis date and time | BL2: éåí ùìéùé 27 àåâåñè 2019 16:33:28 | BM2: éåí ùìéùé 27 àåâåñè 2019 16:41:27 | BN2: éåí ùìéùé 27 àåâåñè 2019 16:45:03 | BP2: Analysis date and time | BR2: éåí ùìéùé 27 àåâåñè 2019 17:14:01 | BS2: éåí ùìéùé 27 àåâåñè 2019 17:19:45 | BT2: éåí ùìéùé 27 àåâåñè 2019 17:39:21 | BV2: Analysis date and time | BX2: éåí ùðé 02 ñôèîáø 2019 12:03:30 | BY2: éåí ùðé 02 ñôèîáø 2019 12:13:04 | BZ2: éåí ùðé 02 ñôèîáø 2019 12:16:56 | CB2: Analysis date and time | CD2: éåí øáéòé 04 ñôèîáø 2019 09:33:00 | CE2: éåí ùðé 02 ñôèîáø 2019 12:37:42 | CF2: éåí ùðé 02 ñôèîáø 2019 12:33:07
A3: Operator name | C3: Dorina | D3: Yael | E3: Yael | G3: Operator name | I3: dorina | J3: dorina | K3: dorina | M3: Operator name | O3: dorina | P3: dorina | Q3: dorina | T3: Operator name | V3: dorina | W3: dorina | X3: dorina | Z3: Operator name | AB3: Yael | AC3: Yael | AD3: Yael | AF3: Operator name | AH3: Yael | AI3: Yael | AJ3: Yael | AL3: Operator name | AN3: Yael | AO3: Yael | AP3: Yael | AR3: Operator name | AT3: dorina | AU3: dorina | AV3: dorina | AX3: Operator name | AZ3: Yael | BA3: Yael | BB3: Yael | BD3: Operator name | BF3: Yael | BG3: Yael | BH3: Yael | BJ3: Operator name | BL3: dorina | BM3: dorina | BN3: dorina | BP3: Operator name | BR3: dorina | BS3: dorina | BT3: dorina | BV3: Operator name | BX3: Yael | BY3: Yael | BZ3: Yael | CB3: Operator name | CD3: Yael | CE3: Yael | CF3: Yael
A4: Obscuration | C4: 8.92 | D4: 8.64 | E4: 8.25 | G4: Obscuration | I4: 11.57 | J4: 11.04 | K4: 12.35 | M4: Obscuration | O4: 8.88 | P4: 10.7 | Q4: 10.27 | T4: Obscuration | V4: 10.7 | W4: 11.8 | X4: 10.27 | Z4: Obscuration | AB4: 12.75 | AC4: 11.41 | AD4: 7.97 | AF4: Obscuration | AH4: 8.36 | AI4: 8.24 | AJ4: 7.85 | AL4: Obscuration | AN4: 7.71 | AO4: 9.06 | AP4: 9.12 | AR4: Obscuration | AT4: 5.53 | AU4: 11.02 | AV4: 10.95 | AX4: Obscuration | AZ4: 7.29 | BA4: 7.06 | BB4: 10.66 | BD4: Obscuration | BF4: 8.4 | BG4: 7.8 | BH4: 8.1 | BJ4: Obscuration | BL4: 11.42 | BM4: 11.59 | BN4: 11.52 | BP4: Obscuration | BR4: 11.13 | BS4: 11.67 | BT4: 11.09 | BV4: Obscuration | BX4: 8.15 | BY4: 9.98 | BZ4: 9.83 | CB4: Obscuration | CD4: 7.93 | CE4: 9.41 | CF4: 9.63
A5: Residual | C5: 1.321 | D5: 0.789 | E5: 0.698 | G5: Residual | I5: 0.429 | J5: 0.463 | K5: 0.502 | M5: Residual | O5: 0.65 | P5: 0.68 | Q5: 0.617 | T5: Residual | V5: 0.68 | W5: 2.647 | X5: 0.617 | Z5: Residual | AB5: 0.82 | AC5: 0.98 | AD5: 0.796 | AF5: Residual | AH5: 0.43 | AI5: 0.704 | AJ5: 0.828 | AL5: Residual | AN5: 0.969 | AO5: 1.083 | AP5: 1.077 | AR5: Residual | AT5: 0.584 | AU5: 0.669 | AV5: 0.632 | AX5: Residual | AZ5: 0.804 | BA5: 0.831 | BB5: 0.825 | BD5: Residual | BF5: 0.908 | BG5: 0.684 | BH5: 0.796 | BJ5: Residual | BL5: 0.405 | BM5: 0.336 | BN5: 0.575 | BP5: Residual | BR5: 0.298 | BS5: 0.308 | BT5: 0.53 | BV5: Residual | BX5: 0.592 | BY5: 0.727 | BZ5: 0.943 | CB5: Residual | CD5: 0.801 | CE5: 0.867 | CF5: 1.096
A6: Mode | C6: 1072.316 | D6: 919.889 | E6: 921.829 | G6: Mode | I6: 273.479 | J6: 269.816 | K6: 290.228 | M6: Mode | O6: 261.344 | P6: 229.963 | Q6: 233.615 | T6: Mode | V6: 229.963 | W6: 221.262 | X6: 233.615 | Z6: Mode | AB6: 997.266 | AC6: 958.455 | AD6: 926.888 | AF6: Mode | AH6: 734.53 | AI6: 875.04 | AJ6: 960.75 | AL6: Mode | AN6: 775.301 | AO6: 688.12 | AP6: 818.45 | AR6: Mode | AT6: 849.791 | AU6: 745.919 | AV6: 776.359 | AX6: Mode | AZ6: 293.562 | BA6: 298.978 | BB6: 315.803 | BD6: Mode | BF6: 880.286 | BG6: 945.954 | BH6: 915.758 | BJ6: Mode | BL6: 516.952 | BM6: 529.658 | BN6: 627.039 | BP6: Mode | BR6: 291.265 | BS6: 313.01 | BT6: 315.935 | BV6: Mode | BX6: 918.548 | BY6: 995.474 | BZ6: 926.742 | CB6: Mode | CD6: 1015.044 | CE6: 789.774 | CF6: 907.634
A7: Skewness | C7: 0.718 | D7: 0.844 | E7: 0.673 | G7: Skewness | I7: 1.061 | J7: 1.593 | K7: 1.762 | M7: Skewness | O7: 2.457 | P7: 3.928 | Q7: 0.749 | T7: Skewness | V7: 3.928 | W7: 0.834 | X7: 0.749 | Z7: Skewness | AB7: 0.328 | AC7: 0.287 | AD7: 0.432 | AF7: Skewness | AH7: 0.602 | AI7: 0.41 | AJ7: 0.36 | AL7: Skewness | AN7: 0.636 | AO7: 0.787 | AP7: 0.498 | AR7: Skewness | AT7: 0.514 | AU7: 0.681 | AV7: 0.632 | AX7: Skewness | AZ7: 1.691 | BA7: 1.528 | BB7: 1.407 | BD7: Skewness | BF7: 0.577 | BG7: 0.518 | BH7: 0.547 | BJ7: Skewness | BL7: 1.071 | BM7: 1.03 | BN7: 0.851 | BP7: Skewness | BR7: 1.806 | BS7: 1.806 | BT7: 1.64 | BV7: Skewness | BX7: 0.862 | BY7: 0.834 | BZ7: 0.699 | CB7: Skewness | CD7: 0.595 | CE7: 0.677 | CF7: 0.608
A8: Kurtosis | C8: -0.568 | D8: -0.207 | E8: -0.465 | G8: Kurtosis | I8: 1.675 | J8: 6.934 | K8: 5.632 | M8: Kurtosis | O8: 9.401 | P8: 36.286 | Q8: 0.625 | T8: Kurtosis | V8: 36.286 | W8: 0.307 | X8: 0.625 | Z8: Kurtosis | AB8: -0.787 | AC8: -0.651 | AD8: -0.71 | AF8: Kurtosis | AH8: -0.137 | AI8: -0.417 | AJ8: -0.554 | AL8: Kurtosis | AN8: -0.192 | AO8: 0.176 | AP8: -0.317 | AR8: Kurtosis | AT8: -0.379 | AU8: -0.082 | AV8: -0.152 | AX8: Kurtosis | AZ8: 3.195 | BA8: 2.271 | BB8: 1.777 | BD8: Kurtosis | BF8: -0.421 | BG8: -0.552 | BH8: -0.489 | BJ8: Kurtosis | BL8: 0.941 | BM8: 0.816 | BN8: 0.386 | BP8: Kurtosis | BR8: 4.704 | BS8: 4.616 | BT8: 3.141 | BV8: Kurtosis | BX8: -0.15 | BY8: -0.306 | BZ8: -0.421 | CB8: Kurtosis | CD8: -0.629 | CE8: -0.204 | CF8: -0.469
A9: d (0.1) | C9: 130.527 | D9: 87.616 | E9: 97.673 | G9: d (0.1) | I9: 148.845 | J9: 146.225 | K9: 159.864 | M9: d (0.1) | O9: 147.828 | P9: 133.583 | Q9: 138.323 | T9: d (0.1) | V9: 133.583 | W9: 130.29 | X9: 138.323 | Z9: d (0.1) | AB9: 88.434 | AC9: 109.782 | AD9: 54.774 | AF9: d (0.1) | AH9: 139.343 | AI9: 215.27 | AJ9: 215.8 | AL9: d (0.1) | AN9: 171.043 | AO9: 146.11 | AP9: 184.41 | AR9: d (0.1) | AT9: 220.05 | AU9: 233.281 | AV9: 300.497 | AX9: d (0.1) | AZ9: 130.477 | BA9: 138.084 | BB9: 147.271 | BD9: d (0.1) | BF9: 178.149 | BG9: 156.971 | BH9: 166.86 | BJ9: d (0.1) | BL9: 184.243 | BM9: 158.016 | BN9: 182.674 | BP9: d (0.1) | BR9: 126.147 | BS9: 134.586 | BT9: 164.766 | BV9: d (0.1) | BX9: 138.864 | BY9: 125.392 | BZ9: 136.385 | CB9: d (0.1) | CD9: 121.404 | CE9: 152.071 | CF9: 137.078
A10: d (0.5) | C10: 508.154 | D10: 424.733 | E10: 532.389 | G10: d (0.5) | I10: 275.379 | J10: 268.044 | K10: 297.514 | M10: d (0.5) | O10: 276.417 | P10: 227.829 | Q10: 232.511 | T10: d (0.5) | V10: 227.829 | W10: 221.792 | X10: 232.511 | Z10: d (0.5) | AB10: 707.615 | AC10: 736.936 | AD10: 642.633 | AF10: d (0.5) | AH10: 609.959 | AI10: 723.111 | AJ10: 747.714 | AL10: d (0.5) | AN10: 628.846 | AO10: 553.221 | AP10: 693.207 | AR10: d (0.5) | AT10: 715.983 | AU10: 658.173 | AV10: 709.597 | AX10: d (0.5) | AZ10: 321.832 | BA10: 339.957 | BB10: 366.718 | BD10: d (0.5) | BF10: 652.633 | BG10: 661.778 | BH10: 657.056 | BJ10: d (0.5) | BL10: 480.757 | BM10: 471.489 | BN10: 546.535 | BP10: d (0.5) | BR10: 300.247 | BS10: 319.058 | BT10: 351.233 | BV10: d (0.5) | BX10: 475.774 | BY10: 442.334 | BZ10: 553.565 | CB10: d (0.5) | CD10: 583.118 | CE10: 593.966 | CF10: 601.579
A11: d (0.9) | C11: 1375.412 | D11: 1268.742 | E11: 1320.3 | G11: d (0.9) | I11: 508.213 | J11: 478.984 | K11: 575.544 | M11: d (0.9) | O11: 574.812 | P11: 381.526 | Q11: 386.537 | T11: d (0.9) | V11: 381.526 | W11: 377.814 | X11: 386.537 | Z11: d (0.9) | AB11: 1421.038 | AC11: 1428.422 | AD11: 1368.638 | AF11: d (0.9) | AH11: 1283.295 | AI11: 1401.036 | AJ11: 1433.408 | AL11: d (0.9) | AN11: 1303.125 | AO11: 1199.072 | AP11: 1348.183 | AR11: d (0.9) | AT11: 1382.756 | AU11: 1315.699 | AV11: 1361.044 | AX11: d (0.9) | AZ11: 867.604 | BA11: 956.023 | BB11: 1008.601 | BD11: d (0.9) | BF11: 1372.706 | BG11: 1386.721 | BH11: 1379.86 | BJ11: d (0.9) | BL11: 1088.535 | BM11: 1091.959 | BN11: 1172.821 | BP11: d (0.9) | BR11: 712.216 | BS11: 739.2 | BT11: 848.978 | BV11: d (0.9) | BX11: 1290.595 | BY11: 1314.418 | BZ11: 1326.942 | CB11: d (0.9) | CD11: 1379.873 | CE11: 1293.685 | CF11: 1341.338
A12: Specific surface area | C12: 0.0211 | D12: 0.141 | E12: 0.118 | G12: Specific surface area | I12: 0.0431 | J12: 0.0706 | K12: 0.0356 | M12: Specific surface area | O12: 0.0256 | P12: 0.0584 | Q12: 0.0397 | T12: Specific surface area | V12: 0.0584 | W12: 0.0293 | X12: 0.0397 | Z12: Specific surface area | AB12: 0.164 | AC12: 0.134 | AD12: 0.199 | AF12: Specific surface area | AH12: 0.0816 | AI12: 0.0475 | AJ12: 0.0476 | AL12: Specific surface area | AN12: 0.025 | AO12: 0.0416 | AP12: 0.0246 | AR12: Specific surface area | AT12: 0.0126 | AU12: 0.0129 | AV12: 0.0113 | AX12: Specific surface area | AZ12: 0.0682 | BA12: 0.0534 | BB12: 0.0412 | BD12: Specific surface area | BF12: 0.0245 | BG12: 0.0312 | BH12: 0.0279 | BJ12: Specific surface area | BL12: 0.0376 | BM12: 0.081 | BN12: 0.051 | BP12: Specific surface area | BR12: 0.105 | BS12: 0.123 | BT12: 0.0253 | BV12: Specific surface area | BX12: 0.0291 | BY12: 0.0449 | BZ12: 0.032 | CB12: Specific surface area | CD12: 0.0872 | CE12: 0.047 | CF12: 0.0722
A13: Result Below 6.000 µm | C13: 0 | D13: 2.868 | E13: 2.424 | G13: Result Below 6.000 µm | I13: 0.814 | J13: 1.37 | K13: 0.59 | M13: Result Below 6.000 µm | O13: 0.088 | P13: 1.082 | Q13: 0.652 | T13: Result Below 6.000 µm | V13: 1.082 | W13: 0 | X13: 0.652 | Z13: Result Below 6.000 µm | AB13: 3.444 | AC13: 2.821 | AD13: 4.185 | AF13: Result Below 6.000 µm | AH13: 2.006 | AI13: 1.231 | AJ13: 1.282 | AL13: Result Below 6.000 µm | AN13: 0.406 | AO13: 0.921 | AP13: 0.446 | AR13: Result Below 6.000 µm | AT13: 0 | AU13: 0 | AV13: 0 | AX13: Result Below 6.000 µm | AZ13: 1.425 | BA13: 1.114 | BB13: 0.819 | BD13: Result Below 6.000 µm | BF13: 0.395 | BG13: 0.622 | BH13: 0.508 | BJ13: Result Below 6.000 µm | BL13: 0.776 | BM13: 1.583 | BN13: 1.085 | BP13: Result Below 6.000 µm | BR13: 1.924 | BS13: 2.293 | BT13: 0.256 | BV13: Result Below 6.000 µm | BX13: 0.448 | BY13: 0.894 | BZ13: 0.577 | CB13: Result Below 6.000 µm | CD13: 1.862 | CE13: 1.024 | CF13: 1.494
A14: Result 6.00µm-63.00µm | C14: 0.735 | D14: 4.564 | E14: 4.012 | G14: Result 6.00µm-63.00µm | I14: 1.531 | J14: 1.847 | K14: 1.376 | M14: Result 6.00µm-63.00µm | O14: 0.265 | P14: 0.192 | Q14: 0.099 | T14: Result 6.00µm-63.00µm | V14: 0.192 | W14: 0 | X14: 0.099 | Z14: Result 6.00µm-63.00µm | AB14: 4.849 | AC14: 4.127 | AD14: 6.376 | AF14: Result 6.00µm-63.00µm | AH14: 4.448 | AI14: 3.145 | AJ14: 2.953 | AL14: Result 6.00µm-63.00µm | AN14: 1.302 | AO14: 2.052 | AP14: 1.279 | AR14: Result 6.00µm-63.00µm | AT14: 0.008 | AU14: 0.008 | AV14: 0.005 | AX14: Result 6.00µm-63.00µm | AZ14: 2.636 | BA14: 2.366 | BB14: 2.031 | BD14: Result 6.00µm-63.00µm | BF14: 1.372 | BG14: 1.731 | BH14: 1.552 | BJ14: Result 6.00µm-63.00µm | BL14: 1.378 | BM14: 1.961 | BN14: 1.528 | BP14: Result 6.00µm-63.00µm | BR14: 2.807 | BS14: 2.903 | BT14: 0.895 | BV14: Result 6.00µm-63.00µm | BX14: 0.981 | BY14: 1.592 | BZ14: 1.248 | CB14: Result 6.00µm-63.00µm | CD14: 2.66 | CE14: 1.488 | CF14: 1.725
A15: Result 63.00µm-2000.00µm | C15: 99.265 | D15: 92.568 | E15: 93.563 | G15: Result 63.00µm-2000.00µm | I15: 97.654 | J15: 96.783 | K15: 98.034 | M15: Result 63.00µm-2000.00µm | O15: 99.647 | P15: 98.726 | Q15: 99.249 | T15: Result 63.00µm-2000.00µm | V15: 98.726 | W15: 100 | X15: 99.249 | Z15: Result 63.00µm-2000.00µm | AB15: 91.707 | AC15: 93.052 | AD15: 89.44 | AF15: Result 63.00µm-2000.00µm | AH15: 93.546 | AI15: 95.623 | AJ15: 95.765 | AL15: Result 63.00µm-2000.00µm | AN15: 98.291 | AO15: 97.028 | AP15: 98.275 | AR15: Result 63.00µm-2000.00µm | AT15: 99.992 | AU15: 99.992 | AV15: 99.995 | AX15: Result 63.00µm-2000.00µm | AZ15: 95.939 | BA15: 96.519 | BB15: 97.15 | BD15: Result 63.00µm-2000.00µm | BF15: 98.232 | BG15: 97.647 | BH15: 97.94 | BJ15: Result 63.00µm-2000.00µm | BL15: 97.846 | BM15: 96.457 | BN15: 97.388 | BP15: Result 63.00µm-2000.00µm | BR15: 95.269 | BS15: 94.804 | BT15: 98.85 | BV15: Result 63.00µm-2000.00µm | BX15: 98.571 | BY15: 97.514 | BZ15: 98.175 | CB15: Result 63.00µm-2000.00µm | CD15: 95.477 | CE15: 97.488 | CF15: 96.781
A16: Result 63.00µm-125.00µm | C16: 8.154 | D16: 9.058 | E16: 7.897 | G16: Result 63.00µm-125.00µm | I16: 2.912 | J16: 2.689 | K16: 1.922 | M16: Result 63.00µm-125.00µm | O16: 4.235 | P16: 6.13 | Q16: 5.302 | T16: Result 63.00µm-125.00µm | V16: 6.13 | W16: 8.142 | X16: 5.302 | Z16: Result 63.00µm-125.00µm | AB16: 5.06 | AC16: 4.118 | AD16: 6.577 | AF16: Result 63.00µm-125.00µm | AH16: 2.833 | AI16: 2.031 | AJ16: 1.503 | AL16: Result 63.00µm-125.00µm | AN16: 3.948 | AO16: 4.728 | AP16: 3.534 | AR16: Result 63.00µm-125.00µm | AT16: 2.969 | AU16: 2.575 | AV16: 1.618 | AX16: Result 63.00µm-125.00µm | AZ16: 5.047 | BA16: 4.47 | BB16: 3.879 | BD16: Result 63.00µm-125.00µm | BF16: 3.519 | BG16: 4.371 | BH16: 3.945 | BJ16: Result 63.00µm-125.00µm | BL16: 2.265 | BM16: 3.334 | BN16: 2.885 | BP16: Result 63.00µm-125.00µm | BR16: 5.073 | BS16: 3.448 | BT16: 2.407 | BV16: Result 63.00µm-125.00µm | BX16: 6.134 | BY16: 7.436 | BZ16: 6.248 | CB16: Result 63.00µm-125.00µm | CD16: 5.978 | CE16: 4.487 | CF16: 5.205
A17: Result 125.00µm-250.00µm | C17: 22.443 | D17: 20.129 | E17: 17.284 | G17: Result 125.00µm-250.00µm | I17: 36.817 | J17: 38.114 | K17: 32.37 | M17: Result 125.00µm-250.00µm | O17: 37.823 | P17: 51.335 | Q17: 50.882 | T17: Result 125.00µm-250.00µm | V17: 51.335 | W17: 52.65 | X17: 50.882 | Z17: Result 125.00µm-250.00µm | AB17: 10.219 | AC17: 6.504 | AD17: 11.117 | AF17: Result 125.00µm-250.00µm | AH17: 7.376 | AI17: 5.275 | AJ17: 6.294 | AL17: Result 125.00µm-250.00µm | AN17: 11.069 | AO17: 12.849 | AP17: 8.976 | AR17: Result 125.00µm-250.00µm | AT17: 8.907 | AU17: 8.588 | AV17: 5.355 | AX17: Result 125.00µm-250.00µm | AZ17: 26.888 | BA17: 25.485 | BB17: 23.405 | BD17: Result 125.00µm-250.00µm | BF17: 11.079 | BG17: 12.208 | BH17: 11.643 | BJ17: Result 125.00µm-250.00µm | BL17: 14.14 | BM17: 14.37 | BN17: 10.897 | BP17: Result 125.00µm-250.00µm | BR17: 29.162 | BS17: 26.497 | BT17: 25.789 | BV17: Result 125.00µm-250.00µm | BX17: 21.6 | BY17: 23.467 | BZ17: 19.621 | CB17: Result 125.00µm-250.00µm | CD17: 17.027 | CE17: 13.253 | CF17: 15.545
A18: Result 250.00µm-500.00µm | C18: 18.254 | D18: 17.707 | E18: 16.413 | G18: Result 250.00µm-500.00µm | I18: 47.29 | J18: 47.613 | K18: 48.225 | M18: Result 250.00µm-500.00µm | O18: 43.005 | P18: 39.481 | Q18: 41.371 | T18: Result 250.00µm-500.00µm | V18: 39.481 | W18: 37.867 | X18: 41.371 | Z18: Result 250.00µm-500.00µm | AB18: 12.735 | AC18: 13.899 | AD18: 12.274 | AF18: Result 250.00µm-500.00µm | AH18: 22.679 | AI18: 18.293 | AJ18: 17.774 | AL18: Result 250.00µm-500.00µm | AN18: 21.328 | AO18: 24.173 | AP18: 17.747 | AR18: Result 250.00µm-500.00µm | AT18: 18.321 | AU18: 22.698 | AV18: 21.241 | AX18: Result 250.00µm-500.00µm | AZ18: 35.993 | BA18: 35.298 | BB18: 34.863 | BD18: Result 250.00µm-500.00µm | BF18: 21.022 | BG18: 18.974 | BH18: 19.998 | BJ18: Result 250.00µm-500.00µm | BL18: 33.679 | BM18: 31.967 | BN18: 28.496 | BP18: Result 250.00µm-500.00µm | BR18: 38.677 | BS18: 40.374 | BT18: 40.516 | BV18: Result 250.00µm-500.00µm | BX18: 22.446 | BY18: 19.725 | BZ18: 18.94 | CB18: Result 250.00µm-500.00µm | CD18: 17.692 | CE18: 21.65 | CF18: 18.902
A19: Result 500.00µm-1000.00µm | C19: 25.455 | D19: 26.193 | E19: 29.522 | G19: Result 500.00µm-1000.00µm | I19: 10.563 | J19: 8.069 | K19: 14.506 | M19: Result 500.00µm-1000.00µm | O19: 12.852 | P19: 1.378 | Q19: 1.695 | T19: Result 500.00µm-1000.00µm | V19: 1.378 | W19: 1.341 | X19: 1.695 | Z19: Result 500.00µm-1000.00µm | AB19: 33.728 | AC19: 37.749 | AD19: 33.362 | AF19: Result 500.00µm-1000.00µm | AH19: 39.167 | AI19: 41.027 | AJ19: 38.87 | AL19: Result 500.00µm-1000.00µm | AN19: 39.253 | AO19: 37.826 | AP19: 42.05 | AR19: Result 500.00µm-1000.00µm | AT19: 41.781 | AU19: 42.544 | AV19: 45.063 | AX19: Result 500.00µm-1000.00µm | AZ19: 21.054 | BA19: 22.338 | BB19: 24.773 | BD19: Result 500.00µm-1000.00µm | BF19: 36.538 | BG19: 34.925 | BH19: 35.731 | BJ19: Result 500.00µm-1000.00µm | BL19: 34.815 | BM19: 33.813 | BN19: 38.727 | BP19: Result 500.00µm-1000.00µm | BR19: 18.904 | BS19: 20.311 | BT19: 23.951 | BV19: Result 500.00µm-1000.00µm | BX19: 27.878 | BY19: 25.291 | BZ19: 30.322 | CB19: Result 500.00µm-1000.00µm | CD19: 28.965 | CE19: 36.324 | CF19: 32.932
A20: Result 1000.00µm-2000.00µm | C20: 24.959 | D20: 19.481 | E20: 22.448 | G20: Result 1000.00µm-2000.00µm | I20: 0.072 | J20: 0.298 | K20: 1.011 | M20: Result 1000.00µm-2000.00µm | O20: 1.733 | P20: 0.402 | Q20: 0 | T20: Result 1000.00µm-2000.00µm | V20: 0.402 | W20: 0 | X20: 0 | Z20: Result 1000.00µm-2000.00µm | AB20: 29.965 | AC20: 30.782 | AD20: 26.11 | AF20: Result 1000.00µm-2000.00µm | AH20: 21.491 | AI20: 28.996 | AJ20: 31.324 | AL20: Result 1000.00µm-2000.00µm | AN20: 22.692 | AO20: 17.451 | AP20: 25.968 | AR20: Result 1000.00µm-2000.00µm | AT20: 28.014 | AU20: 23.588 | AV20: 26.718 | AX20: Result 1000.00µm-2000.00µm | AZ20: 6.957 | BA20: 8.929 | BB20: 10.229 | BD20: Result 1000.00µm-2000.00µm | BF20: 26.075 | BG20: 27.169 | BH20: 26.622 | BJ20: Result 1000.00µm-2000.00µm | BL20: 12.946 | BM20: 12.972 | BN20: 16.383 | BP20: Result 1000.00µm-2000.00µm | BR20: 3.453 | BS20: 4.173 | BT20: 6.187 | BV20: Result 1000.00µm-2000.00µm | BX20: 20.512 | BY20: 21.595 | BZ20: 23.044 | CB20: Result 1000.00µm-2000.00µm | CD20: 25.815 | CE20: 21.773 | CF20: 24.196
A21: Result Between User Sizes (Sizes in um) | B21: 0.01 | G21: Result Between User Sizes (Sizes in um) | H21: 0.01 | M21: Result Between User Sizes (Sizes in um) | N21: 0.01 | T21: Result Between User Sizes (Sizes in um) | U21: 0.01 | Z21: Result Between User Sizes (Sizes in um) | AA21: 0.01 | AF21: Result Between User Sizes (Sizes in um) | AG21: 0.01 | AL21: Result Between User Sizes (Sizes in um) | AM21: 0.01 | AR21: Result Between User Sizes (Sizes in um) | AS21: 0.01 | AX21: Result Between User Sizes (Sizes in um) | AY21: 0.01 | BD21: Result Between User Sizes (Sizes in um) | BE21: 0.01 | BJ21: Result Between User Sizes (Sizes in um) | BK21: 0.01 | BP21: Result Between User Sizes (Sizes in um) | BQ21: 0.01 | BV21: Result Between User Sizes (Sizes in um) | BW21: 0.01 | CB21: Result Between User Sizes (Sizes in um) | CC21: 0.01 | CJ21: Result Between User Sizes (Sizes in um) | CK21: 4415 | CL21: 4416 | CM21: 4417 | CN21: 4417a | CO21: 4418 | CP21: 4419 | CQ21: 4420 | CR21: 4421 | CS21: 4422 | CT21: 4424 | CU21: 4425 | CV21: 4426 | CW21: 4427 | CX21: 4427a
B22: 0.011482 | C22: 0 | D22: 0 | E22: 0 | H22: 0.011482 | I22: 0 | J22: 0 | K22: 0 | N22: 0.011482 | O22: 0 | P22: 0 | Q22: 0 | U22: 0.011482 | V22: 0 | W22: 0 | X22: 0 | AA22: 0.011482 | AB22: 0 | AC22: 0 | AD22: 0 | AG22: 0.011482 | AH22: 0 | AI22: 0 | AJ22: 0 | AM22: 0.011482 | AN22: 0 | AO22: 0 | AP22: 0 | AS22: 0.011482 | AT22: 0 | AU22: 0 | AV22: 0 | AY22: 0.011482 | AZ22: 0 | BA22: 0 | BB22: 0 | BE22: 0.011482 | BF22: 0 | BG22: 0 | BH22: 0 | BK22: 0.011482 | BL22: 0 | BM22: 0 | BN22: 0 | BQ22: 0.011482 | BR22: 0 | BS22: 0 | BT22: 0 | BW22: 0.011482 | BX22: 0 | BY22: 0 | BZ22: 0 | CC22: 0.011482 | CD22: 0 | CE22: 0 | CF22: 0 | CJ22: 0.011482 | CK22: =AVERAGE(C22:E22) -> 0 | CL22: =AVERAGE(I22:K22) -> 0 | CM22: =AVERAGE(O22:Q22) -> 0 | CN22: =AVERAGE(V22:X22) -> 0 | CO22: =AVERAGE(AB22:AD22) -> 0 | CP22: =AVERAGE(AH22:AJ22) -> 0 | CQ22: =AVERAGE(AN22:AP22) -> 0 | CR22: =AVERAGE(AT22:AV22) -> 0 | CS22: =AVERAGE(AZ22:BB22) -> 0 | CT22: =AVERAGE(BF22:BH22) -> 0 | CU22: =AVERAGE(BL22:BN22) -> 0 | CV22: =AVERAGE(BR22:BT22) -> 0 | CW22: =AVERAGE(BX22:BZ22) -> 0 | CX22: =AVERAGE(CD22:CF22) -> 0
B23: 0.013183 | C23: 0 | D23: 0 | E23: 0 | H23: 0.013183 | I23: 0 | J23: 0 | K23: 0 | N23: 0.013183 | O23: 0 | P23: 0 | Q23: 0 | U23: 0.013183 | V23: 0 | W23: 0 | X23: 0 | AA23: 0.013183 | AB23: 0 | AC23: 0 | AD23: 0 | AG23: 0.013183 | AH23: 0 | AI23: 0 | AJ23: 0 | AM23: 0.013183 | AN23: 0 | AO23: 0 | AP23: 0 | AS23: 0.013183 | AT23: 0 | AU23: 0 | AV23: 0 | AY23: 0.013183 | AZ23: 0 | BA23: 0 | BB23: 0 | BE23: 0.013183 | BF23: 0 | BG23: 0 | BH23: 0 | BK23: 0.013183 | BL23: 0 | BM23: 0 | BN23: 0 | BQ23: 0.013183 | BR23: 0 | BS23: 0 | BT23: 0 | BW23: 0.013183 | BX23: 0 | BY23: 0 | BZ23: 0 | CC23: 0.013183 | CD23: 0 | CE23: 0 | CF23: 0 | CJ23: 0.013183 | CK23: 0 | CL23: 0 | CM23: 0 | CN23: 0 | CO23: 0 | CP23: 0 | CQ23: 0 | CR23: 0 | CS23: 0 | CT23: 0 | CU23: 0 | CV23: 0 | CW23: 0 | CX23: =AVERAGE(CD23:CF23) -> 0
B24: 0.015136 | C24: 0 | D24: 0 | E24: 0 | H24: 0.015136 | I24: 0 | J24: 0 | K24: 0 | N24: 0.015136 | O24: 0 | P24: 0 | Q24: 0 | U24: 0.015136 | V24: 0 | W24: 0 | X24: 0 | AA24: 0.015136 | AB24: 0 | AC24: 0 | AD24: 0 | AG24: 0.015136 | AH24: 0 | AI24: 0 | AJ24: 0 | AM24: 0.015136 | AN24: 0 | AO24: 0 | AP24: 0 | AS24: 0.015136 | AT24: 0 | AU24: 0 | AV24: 0 | AY24: 0.015136 | AZ24: 0 | BA24: 0 | BB24: 0 | BE24: 0.015136 | BF24: 0 | BG24: 0 | BH24: 0 | BK24: 0.015136 | BL24: 0 | BM24: 0 | BN24: 0 | BQ24: 0.015136 | BR24: 0 | BS24: 0 | BT24: 0 | BW24: 0.015136 | BX24: 0 | BY24: 0 | BZ24: 0 | CC24: 0.015136 | CD24: 0 | CE24: 0 | CF24: 0 | CJ24: 0.015136 | CK24: 0 | CL24: 0 | CM24: 0 | CN24: 0 | CO24: 0 | CP24: 0 | CQ24: 0 | CR24: 0 | CS24: 0 | CT24: 0 | CU24: 0 | CV24: 0 | CW24: 0 | CX24: 0
B25: 0.017378 | C25: 0 | D25: 0 | E25: 0 | H25: 0.017378 | I25: 0 | J25: 0 | K25: 0 | N25: 0.017378 | O25: 0 | P25: 0 | Q25: 0 | U25: 0.017378 | V25: 0 | W25: 0 | X25: 0 | AA25: 0.017378 | AB25: 0 | AC25: 0 | AD25: 0 | AG25: 0.017378 | AH25: 0 | AI25: 0 | AJ25: 0 | AM25: 0.017378 | AN25: 0 | AO25: 0 | AP25: 0 | AS25: 0.017378 | AT25: 0 | AU25: 0 | AV25: 0 | AY25: 0.017378 | AZ25: 0 | BA25: 0 | BB25: 0 | BE25: 0.017378 | BF25: 0 | BG25: 0 | BH25: 0 | BK25: 0.017378 | BL25: 0 | BM25: 0 | BN25: 0 | BQ25: 0.017378 | BR25: 0 | BS25: 0 | BT25: 0 | BW25: 0.017378 | BX25: 0 | BY25: 0 | BZ25: 0 | CC25: 0.017378 | CD25: 0 | CE25: 0 | CF25: 0 | CJ25: 0.017378 | CK25: 0 | CL25: 0 | CM25: 0 | CN25: 0 | CO25: 0 | CP25: 0 | CQ25: 0 | CR25: 0 | CS25: 0 | CT25: 0 | CU25: 0 | CV25: 0 | CW25: 0 | CX25: 0
B26: 0.019953 | C26: 0 | D26: 0 | E26: 0 | H26: 0.019953 | I26: 0 | J26: 0 | K26: 0 | N26: 0.019953 | O26: 0 | P26: 0 | Q26: 0 | U26: 0.019953 | V26: 0 | W26: 0 | X26: 0 | AA26: 0.019953 | AB26: 0 | AC26: 0 | AD26: 0 | AG26: 0.019953 | AH26: 0 | AI26: 0 | AJ26: 0 | AM26: 0.019953 | AN26: 0 | AO26: 0 | AP26: 0 | AS26: 0.019953 | AT26: 0 | AU26: 0 | AV26: 0 | AY26: 0.019953 | AZ26: 0 | BA26: 0 | BB26: 0 | BE26: 0.019953 | BF26: 0 | BG26: 0 | BH26: 0 | BK26: 0.019953 | BL26: 0 | BM26: 0 | BN26: 0 | BQ26: 0.019953 | BR26: 0 | BS26: 0 | BT26: 0 | BW26: 0.019953 | BX26: 0 | BY26: 0 | BZ26: 0 | CC26: 0.019953 | CD26: 0 | CE26: 0 | CF26: 0 | CJ26: 0.019953 | CK26: 0 | CL26: 0 | CM26: 0 | CN26: 0 | CO26: 0 | CP26: 0 | CQ26: 0 | CR26: 0 | CS26: 0 | CT26: 0 | CU26: 0 | CV26: 0 | CW26: 0 | CX26: 0
B27: 0.022909 | C27: 0 | D27: 0 | E27: 0 | H27: 0.022909 | I27: 0 | J27: 0 | K27: 0 | N27: 0.022909 | O27: 0 | P27: 0 | Q27: 0 | U27: 0.022909 | V27: 0 | W27: 0 | X27: 0 | AA27: 0.022909 | AB27: 0 | AC27: 0 | AD27: 0 | AG27: 0.022909 | AH27: 0 | AI27: 0 | AJ27: 0 | AM27: 0.022909 | AN27: 0 | AO27: 0 | AP27: 0 | AS27: 0.022909 | AT27: 0 | AU27: 0 | AV27: 0 | AY27: 0.022909 | AZ27: 0 | BA27: 0 | BB27: 0 | BE27: 0.022909 | BF27: 0 | BG27: 0 | BH27: 0 | BK27: 0.022909 | BL27: 0 | BM27: 0 | BN27: 0 | BQ27: 0.022909 | BR27: 0 | BS27: 0 | BT27: 0 | BW27: 0.022909 | BX27: 0 | BY27: 0 | BZ27: 0 | CC27: 0.022909 | CD27: 0 | CE27: 0 | CF27: 0 | CJ27: 0.022909 | CK27: 0 | CL27: 0 | CM27: 0 | CN27: 0 | CO27: 0 | CP27: 0 | CQ27: 0 | CR27: 0 | CS27: 0 | CT27: 0 | CU27: 0 | CV27: 0 | CW27: 0 | CX27: 0
B28: 0.026303 | C28: 0 | D28: 0 | E28: 0 | H28: 0.026303 | I28: 0 | J28: 0 | K28: 0 | N28: 0.026303 | O28: 0 | P28: 0 | Q28: 0 | U28: 0.026303 | V28: 0 | W28: 0 | X28: 0 | AA28: 0.026303 | AB28: 0 | AC28: 0 | AD28: 0 | AG28: 0.026303 | AH28: 0 | AI28: 0 | AJ28: 0 | AM28: 0.026303 | AN28: 0 | AO28: 0 | AP28: 0 | AS28: 0.026303 | AT28: 0 | AU28: 0 | AV28: 0 | AY28: 0.026303 | AZ28: 0 | BA28: 0 | BB28: 0 | BE28: 0.026303 | BF28: 0 | BG28: 0 | BH28: 0 | BK28: 0.026303 | BL28: 0 | BM28: 0 | BN28: 0 | BQ28: 0.026303 | BR28: 0 | BS28: 0 | BT28: 0 | BW28: 0.026303 | BX28: 0 | BY28: 0 | BZ28: 0 | CC28: 0.026303 | CD28: 0 | CE28: 0 | CF28: 0 | CJ28: 0.026303 | CK28: 0 | CL28: 0 | CM28: 0 | CN28: 0 | CO28: 0 | CP28: 0 | CQ28: 0 | CR28: 0 | CS28: 0 | CT28: 0 | CU28: 0 | CV28: 0 | CW28: 0 | CX28: 0
B29: 0.0302 | C29: 0 | D29: 0 | E29: 0 | H29: 0.0302 | I29: 0 | J29: 0 | K29: 0 | N29: 0.0302 | O29: 0 | P29: 0 | Q29: 0 | U29: 0.0302 | V29: 0 | W29: 0 | X29: 0 | AA29: 0.0302 | AB29: 0 | AC29: 0 | AD29: 0 | AG29: 0.0302 | AH29: 0 | AI29: 0 | AJ29: 0 | AM29: 0.0302 | AN29: 0 | AO29: 0 | AP29: 0 | AS29: 0.0302 | AT29: 0 | AU29: 0 | AV29: 0 | AY29: 0.0302 | AZ29: 0 | BA29: 0 | BB29: 0 | BE29: 0.0302 | BF29: 0 | BG29: 0 | BH29: 0 | BK29: 0.0302 | BL29: 0 | BM29: 0 | BN29: 0 | BQ29: 0.0302 | BR29: 0 | BS29: 0 | BT29: 0 | BW29: 0.0302 | BX29: 0 | BY29: 0 | BZ29: 0 | CC29: 0.0302 | CD29: 0 | CE29: 0 | CF29: 0 | CJ29: 0.0302 | CK29: 0 | CL29: 0 | CM29: 0 | CN29: 0 | CO29: 0 | CP29: 0 | CQ29: 0 | CR29: 0 | CS29: 0 | CT29: 0 | CU29: 0 | CV29: 0 | CW29: 0 | CX29: 0
B30: 0.034674 | C30: 0 | D30: 0 | E30: 0 | H30: 0.034674 | I30: 0 | J30: 0 | K30: 0 | N30: 0.034674 | O30: 0 | P30: 0 | Q30: 0 | U30: 0.034674 | V30: 0 | W30: 0 | X30: 0 | AA30: 0.034674 | AB30: 0 | AC30: 0 | AD30: 0 | AG30: 0.034674 | AH30: 0 | AI30: 0 | AJ30: 0 | AM30: 0.034674 | AN30: 0 | AO30: 0 | AP30: 0 | AS30: 0.034674 | AT30: 0 | AU30: 0 | AV30: 0 | AY30: 0.034674 | AZ30: 0 | BA30: 0 | BB30: 0 | BE30: 0.034674 | BF30: 0 | BG30: 0 | BH30: 0 | BK30: 0.034674 | BL30: 0 | BM30: 0 | BN30: 0 | BQ30: 0.034674 | BR30: 0 | BS30: 0 | BT30: 0 | BW30: 0.034674 | BX30: 0 | BY30: 0 | BZ30: 0 | CC30: 0.034674 | CD30: 0 | CE30: 0 | CF30: 0 | CJ30: 0.034674 | CK30: 0 | CL30: 0 | CM30: 0 | CN30: 0 | CO30: 0 | CP30: 0 | CQ30: 0 | CR30: 0 | CS30: 0 | CT30: 0 | CU30: 0 | CV30: 0 | CW30: 0 | CX30: 0
B31: 0.039811 | C31: 0 | D31: 0 | E31: 0 | H31: 0.039811 | I31: 0 | J31: 0 | K31: 0 | N31: 0.039811 | O31: 0 | P31: 0 | Q31: 0 | U31: 0.039811 | V31: 0 | W31: 0 | X31: 0 | AA31: 0.039811 | AB31: 0 | AC31: 0 | AD31: 0 | AG31: 0.039811 | AH31: 0 | AI31: 0 | AJ31: 0 | AM31: 0.039811 | AN31: 0 | AO31: 0 | AP31: 0 | AS31: 0.039811 | AT31: 0 | AU31: 0 | AV31: 0 | AY31: 0.039811 | AZ31: 0 | BA31: 0 | BB31: 0 | BE31: 0.039811 | BF31: 0 | BG31: 0 | BH31: 0 | BK31: 0.039811 | BL31: 0 | BM31: 0 | BN31: 0 | BQ31: 0.039811 | BR31: 0 | BS31: 0 | BT31: 0 | BW31: 0.039811 | BX31: 0 | BY31: 0 | BZ31: 0 | CC31: 0.039811 | CD31: 0 | CE31: 0 | CF31: 0 | CJ31: 0.039811 | CK31: 0 | CL31: 0 | CM31: 0 | CN31: 0 | CO31: 0 | CP31: 0 | CQ31: 0 | CR31: 0 | CS31: 0 | CT31: 0 | CU31: 0 | CV31: 0 | CW31: 0 | CX31: 0
B32: 0.045709 | C32: 0 | D32: 0 | E32: 0 | H32: 0.045709 | I32: 0 | J32: 0 | K32: 0 | N32: 0.045709 | O32: 0 | P32: 0 | Q32: 0 | U32: 0.045709 | V32: 0 | W32: 0 | X32: 0 | AA32: 0.045709 | AB32: 0 | AC32: 0 | AD32: 0 | AG32: 0.045709 | AH32: 0 | AI32: 0 | AJ32: 0 | AM32: 0.045709 | AN32: 0 | AO32: 0 | AP32: 0 | AS32: 0.045709 | AT32: 0 | AU32: 0 | AV32: 0 | AY32: 0.045709 | AZ32: 0 | BA32: 0 | BB32: 0 | BE32: 0.045709 | BF32: 0 | BG32: 0 | BH32: 0 | BK32: 0.045709 | BL32: 0 | BM32: 0 | BN32: 0 | BQ32: 0.045709 | BR32: 0 | BS32: 0 | BT32: 0 | BW32: 0.045709 | BX32: 0 | BY32: 0 | BZ32: 0 | CC32: 0.045709 | CD32: 0 | CE32: 0 | CF32: 0 | CJ32: 0.045709 | CK32: 0 | CL32: 0 | CM32: 0 | CN32: 0 | CO32: 0 | CP32: 0 | CQ32: 0 | CR32: 0 | CS32: 0 | CT32: 0 | CU32: 0 | CV32: 0 | CW32: 0 | CX32: 0
B33: 0.052481 | C33: 0 | D33: 0 | E33: 0 | H33: 0.052481 | I33: 0 | J33: 0 | K33: 0 | N33: 0.052481 | O33: 0 | P33: 0 | Q33: 0 | U33: 0.052481 | V33: 0 | W33: 0 | X33: 0 | AA33: 0.052481 | AB33: 0 | AC33: 0 | AD33: 0 | AG33: 0.052481 | AH33: 0 | AI33: 0 | AJ33: 0 | AM33: 0.052481 | AN33: 0 | AO33: 0 | AP33: 0 | AS33: 0.052481 | AT33: 0 | AU33: 0 | AV33: 0 | AY33: 0.052481 | AZ33: 0 | BA33: 0 | BB33: 0 | BE33: 0.052481 | BF33: 0 | BG33: 0 | BH33: 0 | BK33: 0.052481 | BL33: 0 | BM33: 0 | BN33: 0 | BQ33: 0.052481 | BR33: 0 | BS33: 0 | BT33: 0 | BW33: 0.052481 | BX33: 0 | BY33: 0 | BZ33: 0 | CC33: 0.052481 | CD33: 0 | CE33: 0 | CF33: 0 | CJ33: 0.052481 | CK33: 0 | CL33: 0 | CM33: 0 | CN33: 0 | CO33: 0 | CP33: 0 | CQ33: 0 | CR33: 0 | CS33: 0 | CT33: 0 | CU33: 0 | CV33: 0 | CW33: 0 | CX33: 0
B34: 0.060256 | C34: 0 | D34: 0 | E34: 0 | H34: 0.060256 | I34: 0 | J34: 0 | K34: 0 | N34: 0.060256 | O34: 0 | P34: 0 | Q34: 0 | U34: 0.060256 | V34: 0 | W34: 0 | X34: 0 | AA34: 0.060256 | AB34: 0 | AC34: 0 | AD34: 0 | AG34: 0.060256 | AH34: 0 | AI34: 0 | AJ34: 0 | AM34: 0.060256 | AN34: 0 | AO34: 0 | AP34: 0 | AS34: 0.060256 | AT34: 0 | AU34: 0 | AV34: 0 | AY34: 0.060256 | AZ34: 0 | BA34: 0 | BB34: 0 | BE34: 0.060256 | BF34: 0 | BG34: 0 | BH34: 0 | BK34: 0.060256 | BL34: 0 | BM34: 0 | BN34: 0 | BQ34: 0.060256 | BR34: 0 | BS34: 0 | BT34: 0 | BW34: 0.060256 | BX34: 0 | BY34: 0 | BZ34: 0 | CC34: 0.060256 | CD34: 0 | CE34: 0 | CF34: 0 | CJ34: 0.060256 | CK34: 0 | CL34: 0 | CM34: 0 | CN34: 0 | CO34: 0 | CP34: 0 | CQ34: 0 | CR34: 0 | CS34: 0 | CT34: 0 | CU34: 0 | CV34: 0 | CW34: 0 | CX34: 0
B35: 0.069183 | C35: 0 | D35: 0 | E35: 0 | H35: 0.069183 | I35: 0 | J35: 0 | K35: 0 | N35: 0.069183 | O35: 0 | P35: 0 | Q35: 0 | U35: 0.069183 | V35: 0 | W35: 0 | X35: 0 | AA35: 0.069183 | AB35: 0 | AC35: 0 | AD35: 0 | AG35: 0.069183 | AH35: 0 | AI35: 0 | AJ35: 0 | AM35: 0.069183 | AN35: 0 | AO35: 0 | AP35: 0 | AS35: 0.069183 | AT35: 0 | AU35: 0 | AV35: 0 | AY35: 0.069183 | AZ35: 0 | BA35: 0 | BB35: 0 | BE35: 0.069183 | BF35: 0 | BG35: 0 | BH35: 0 | BK35: 0.069183 | BL35: 0 | BM35: 0 | BN35: 0 | BQ35: 0.069183 | BR35: 0 | BS35: 0 | BT35: 0 | BW35: 0.069183 | BX35: 0 | BY35: 0 | BZ35: 0 | CC35: 0.069183 | CD35: 0 | CE35: 0 | CF35: 0 | CJ35: 0.069183 | CK35: 0 | CL35: 0 | CM35: 0 | CN35: 0 | CO35: 0 | CP35: 0 | CQ35: 0 | CR35: 0 | CS35: 0 | CT35: 0 | CU35: 0 | CV35: 0 | CW35: 0 | CX35: 0
B36: 0.079433 | C36: 0 | D36: 0 | E36: 0 | H36: 0.079433 | I36: 0 | J36: 0 | K36: 0 | N36: 0.079433 | O36: 0 | P36: 0 | Q36: 0 | U36: 0.079433 | V36: 0 | W36: 0 | X36: 0 | AA36: 0.079433 | AB36: 0 | AC36: 0 | AD36: 0 | AG36: 0.079433 | AH36: 0 | AI36: 0 | AJ36: 0 | AM36: 0.079433 | AN36: 0 | AO36: 0 | AP36: 0 | AS36: 0.079433 | AT36: 0 | AU36: 0 | AV36: 0 | AY36: 0.079433 | AZ36: 0 | BA36: 0 | BB36: 0 | BE36: 0.079433 | BF36: 0 | BG36: 0 | BH36: 0 | BK36: 0.079433 | BL36: 0 | BM36: 0 | BN36: 0 | BQ36: 0.079433 | BR36: 0 | BS36: 0 | BT36: 0 | BW36: 0.079433 | BX36: 0 | BY36: 0 | BZ36: 0 | CC36: 0.079433 | CD36: 0 | CE36: 0 | CF36: 0 | CJ36: 0.079433 | CK36: 0 | CL36: 0 | CM36: 0 | CN36: 0 | CO36: 0 | CP36: 0 | CQ36: 0 | CR36: 0 | CS36: 0 | CT36: 0 | CU36: 0 | CV36: 0 | CW36: 0 | CX36: 0
B37: 0.091201 | C37: 0 | D37: 0 | E37: 0 | H37: 0.091201 | I37: 0 | J37: 0 | K37: 0 | N37: 0.091201 | O37: 0 | P37: 0 | Q37: 0 | U37: 0.091201 | V37: 0 | W37: 0 | X37: 0 | AA37: 0.091201 | AB37: 0 | AC37: 0 | AD37: 0 | AG37: 0.091201 | AH37: 0 | AI37: 0 | AJ37: 0 | AM37: 0.091201 | AN37: 0 | AO37: 0 | AP37: 0 | AS37: 0.091201 | AT37: 0 | AU37: 0 | AV37: 0 | AY37: 0.091201 | AZ37: 0 | BA37: 0 | BB37: 0 | BE37: 0.091201 | BF37: 0 | BG37: 0 | BH37: 0 | BK37: 0.091201 | BL37: 0 | BM37: 0 | BN37: 0 | BQ37: 0.091201 | BR37: 0 | BS37: 0 | BT37: 0 | BW37: 0.091201 | BX37: 0 | BY37: 0 | BZ37: 0 | CC37: 0.091201 | CD37: 0 | CE37: 0 | CF37: 0 | CJ37: 0.091201 | CK37: 0 | CL37: 0 | CM37: 0 | CN37: 0 | CO37: 0 | CP37: 0 | CQ37: 0 | CR37: 0 | CS37: 0 | CT37: 0 | CU37: 0 | CV37: 0 | CW37: 0 | CX37: 0
B38: 0.104713 | C38: 0 | D38: 0 | E38: 0 | H38: 0.104713 | I38: 0 | J38: 0 | K38: 0 | N38: 0.104713 | O38: 0 | P38: 0 | Q38: 0 | U38: 0.104713 | V38: 0 | W38: 0 | X38: 0 | AA38: 0.104713 | AB38: 0 | AC38: 0 | AD38: 0 | AG38: 0.104713 | AH38: 0 | AI38: 0 | AJ38: 0 | AM38: 0.104713 | AN38: 0 | AO38: 0 | AP38: 0 | AS38: 0.104713 | AT38: 0 | AU38: 0 | AV38: 0 | AY38: 0.104713 | AZ38: 0 | BA38: 0 | BB38: 0 | BE38: 0.104713 | BF38: 0 | BG38: 0 | BH38: 0 | BK38: 0.104713 | BL38: 0 | BM38: 0 | BN38: 0 | BQ38: 0.104713 | BR38: 0 | BS38: 0 | BT38: 0 | BW38: 0.104713 | BX38: 0 | BY38: 0 | BZ38: 0 | CC38: 0.104713 | CD38: 0 | CE38: 0 | CF38: 0 | CJ38: 0.104713 | CK38: 0 | CL38: 0 | CM38: 0 | CN38: 0 | CO38: 0 | CP38: 0 | CQ38: 0 | CR38: 0 | CS38: 0 | CT38: 0 | CU38: 0 | CV38: 0 | CW38: 0 | CX38: 0
B39: 0.120226 | C39: 0 | D39: 0 | E39: 0 | H39: 0.120226 | I39: 0 | J39: 0 | K39: 0 | N39: 0.120226 | O39: 0 | P39: 0 | Q39: 0 | U39: 0.120226 | V39: 0 | W39: 0 | X39: 0 | AA39: 0.120226 | AB39: 0 | AC39: 0 | AD39: 0 | AG39: 0.120226 | AH39: 0 | AI39: 0 | AJ39: 0 | AM39: 0.120226 | AN39: 0 | AO39: 0 | AP39: 0 | AS39: 0.120226 | AT39: 0 | AU39: 0 | AV39: 0 | AY39: 0.120226 | AZ39: 0 | BA39: 0 | BB39: 0 | BE39: 0.120226 | BF39: 0 | BG39: 0 | BH39: 0 | BK39: 0.120226 | BL39: 0 | BM39: 0 | BN39: 0 | BQ39: 0.120226 | BR39: 0 | BS39: 0 | BT39: 0 | BW39: 0.120226 | BX39: 0 | BY39: 0 | BZ39: 0 | CC39: 0.120226 | CD39: 0 | CE39: 0 | CF39: 0 | CJ39: 0.120226 | CK39: 0 | CL39: 0 | CM39: 0 | CN39: 0 | CO39: 0 | CP39: 0 | CQ39: 0 | CR39: 0 | CS39: 0 | CT39: 0 | CU39: 0 | CV39: 0 | CW39: 0 | CX39: 0
B40: 0.138038 | C40: 0 | D40: 0 | E40: 0 | H40: 0.138038 | I40: 0 | J40: 0 | K40: 0 | N40: 0.138038 | O40: 0 | P40: 0 | Q40: 0 | U40: 0.138038 | V40: 0 | W40: 0 | X40: 0 | AA40: 0.138038 | AB40: 0 | AC40: 0 | AD40: 0 | AG40: 0.138038 | AH40: 0 | AI40: 0 | AJ40: 0 | AM40: 0.138038 | AN40: 0 | AO40: 0 | AP40: 0 | AS40: 0.138038 | AT40: 0 | AU40: 0 | AV40: 0 | AY40: 0.138038 | AZ40: 0 | BA40: 0 | BB40: 0 | BE40: 0.138038 | BF40: 0 | BG40: 0 | BH40: 0 | BK40: 0.138038 | BL40: 0 | BM40: 0 | BN40: 0 | BQ40: 0.138038 | BR40: 0 | BS40: 0 | BT40: 0 | BW40: 0.138038 | BX40: 0 | BY40: 0 | BZ40: 0 | CC40: 0.138038 | CD40: 0 | CE40: 0 | CF40: 0 | CJ40: 0.138038 | CK40: 0 | CL40: 0 | CM40: 0 | CN40: 0 | CO40: 0 | CP40: 0 | CQ40: 0 | CR40: 0 | CS40: 0 | CT40: 0 | CU40: 0 | CV40: 0 | CW40: 0 | CX40: 0
B41: 0.158489 | C41: 0 | D41: 0 | E41: 0 | H41: 0.158489 | I41: 0 | J41: 0 | K41: 0 | N41: 0.158489 | O41: 0 | P41: 0 | Q41: 0 | U41: 0.158489 | V41: 0 | W41: 0 | X41: 0 | AA41: 0.158489 | AB41: 0 | AC41: 0 | AD41: 0 | AG41: 0.158489 | AH41: 0 | AI41: 0 | AJ41: 0 | AM41: 0.158489 | AN41: 0 | AO41: 0 | AP41: 0 | AS41: 0.158489 | AT41: 0 | AU41: 0 | AV41: 0 | AY41: 0.158489 | AZ41: 0 | BA41: 0 | BB41: 0 | BE41: 0.158489 | BF41: 0 | BG41: 0 | BH41: 0 | BK41: 0.158489 | BL41: 0 | BM41: 0 | BN41: 0 | BQ41: 0.158489 | BR41: 0 | BS41: 0 | BT41: 0 | BW41: 0.158489 | BX41: 0 | BY41: 0 | BZ41: 0 | CC41: 0.158489 | CD41: 0 | CE41: 0 | CF41: 0 | CJ41: 0.158489 | CK41: 0 | CL41: 0 | CM41: 0 | CN41: 0 | CO41: 0 | CP41: 0 | CQ41: 0 | CR41: 0 | CS41: 0 | CT41: 0 | CU41: 0 | CV41: 0 | CW41: 0 | CX41: 0
B42: 0.18197 | C42: 0 | D42: 0 | E42: 0 | H42: 0.18197 | I42: 0 | J42: 0 | K42: 0 | N42: 0.18197 | O42: 0 | P42: 0 | Q42: 0 | U42: 0.18197 | V42: 0 | W42: 0 | X42: 0 | AA42: 0.18197 | AB42: 0 | AC42: 0 | AD42: 0 | AG42: 0.18197 | AH42: 0 | AI42: 0 | AJ42: 0 | AM42: 0.18197 | AN42: 0 | AO42: 0 | AP42: 0 | AS42: 0.18197 | AT42: 0 | AU42: 0 | AV42: 0 | AY42: 0.18197 | AZ42: 0 | BA42: 0 | BB42: 0 | BE42: 0.18197 | BF42: 0 | BG42: 0 | BH42: 0 | BK42: 0.18197 | BL42: 0 | BM42: 0 | BN42: 0 | BQ42: 0.18197 | BR42: 0 | BS42: 0 | BT42: 0 | BW42: 0.18197 | BX42: 0 | BY42: 0 | BZ42: 0 | CC42: 0.18197 | CD42: 0 | CE42: 0 | CF42: 0 | CJ42: 0.18197 | CK42: 0 | CL42: 0 | CM42: 0 | CN42: 0 | CO42: 0 | CP42: 0 | CQ42: 0 | CR42: 0 | CS42: 0 | CT42: 0 | CU42: 0 | CV42: 0 | CW42: 0 | CX42: 0
B43: 0.20893 | C43: 0 | D43: 0 | E43: 0 | H43: 0.20893 | I43: 0 | J43: 0 | K43: 0 | N43: 0.20893 | O43: 0 | P43: 0 | Q43: 0 | U43: 0.20893 | V43: 0 | W43: 0 | X43: 0 | AA43: 0.20893 | AB43: 0 | AC43: 0 | AD43: 0 | AG43: 0.20893 | AH43: 0 | AI43: 0 | AJ43: 0 | AM43: 0.20893 | AN43: 0 | AO43: 0 | AP43: 0 | AS43: 0.20893 | AT43: 0 | AU43: 0 | AV43: 0 | AY43: 0.20893 | AZ43: 0 | BA43: 0 | BB43: 0 | BE43: 0.20893 | BF43: 0 | BG43: 0 | BH43: 0 | BK43: 0.20893 | BL43: 0 | BM43: 0 | BN43: 0 | BQ43: 0.20893 | BR43: 0 | BS43: 0 | BT43: 0 | BW43: 0.20893 | BX43: 0 | BY43: 0 | BZ43: 0 | CC43: 0.20893 | CD43: 0 | CE43: 0 | CF43: 0 | CJ43: 0.20893 | CK43: 0 | CL43: 0 | CM43: 0 | CN43: 0 | CO43: 0 | CP43: 0 | CQ43: 0 | CR43: 0 | CS43: 0 | CT43: 0 | CU43: 0 | CV43: 0 | CW43: 0 | CX43: 0
B44: 0.239883 | C44: 0 | D44: 0 | E44: 0 | H44: 0.239883 | I44: 0 | J44: 0 | K44: 0 | N44: 0.239883 | O44: 0 | P44: 0 | Q44: 0 | U44: 0.239883 | V44: 0 | W44: 0 | X44: 0 | AA44: 0.239883 | AB44: 0 | AC44: 0 | AD44: 0 | AG44: 0.239883 | AH44: 0 | AI44: 0 | AJ44: 0 | AM44: 0.239883 | AN44: 0 | AO44: 0 | AP44: 0 | AS44: 0.239883 | AT44: 0 | AU44: 0 | AV44: 0 | AY44: 0.239883 | AZ44: 0 | BA44: 0 | BB44: 0 | BE44: 0.239883 | BF44: 0 | BG44: 0 | BH44: 0 | BK44: 0.239883 | BL44: 0 | BM44: 0 | BN44: 0 | BQ44: 0.239883 | BR44: 0 | BS44: 0 | BT44: 0 | BW44: 0.239883 | BX44: 0 | BY44: 0 | BZ44: 0 | CC44: 0.239883 | CD44: 0 | CE44: 0 | CF44: 0 | CJ44: 0.239883 | CK44: 0 | CL44: 0 | CM44: 0 | CN44: 0 | CO44: 0 | CP44: 0 | CQ44: 0 | CR44: 0 | CS44: 0 | CT44: 0 | CU44: 0 | CV44: 0 | CW44: 0 | CX44: 0
B45: 0.275423 | C45: 0 | D45: 0 | E45: 0 | H45: 0.275423 | I45: 0 | J45: 0 | K45: 0 | N45: 0.275423 | O45: 0 | P45: 0 | Q45: 0 | U45: 0.275423 | V45: 0 | W45: 0 | X45: 0 | AA45: 0.275423 | AB45: 0 | AC45: 0 | AD45: 0 | AG45: 0.275423 | AH45: 0 | AI45: 0 | AJ45: 0 | AM45: 0.275423 | AN45: 0 | AO45: 0 | AP45: 0 | AS45: 0.275423 | AT45: 0 | AU45: 0 | AV45: 0 | AY45: 0.275423 | AZ45: 0 | BA45: 0 | BB45: 0 | BE45: 0.275423 | BF45: 0 | BG45: 0 | BH45: 0 | BK45: 0.275423 | BL45: 0 | BM45: 0 | BN45: 0 | BQ45: 0.275423 | BR45: 0 | BS45: 0 | BT45: 0 | BW45: 0.275423 | BX45: 0 | BY45: 0 | BZ45: 0 | CC45: 0.275423 | CD45: 0 | CE45: 0 | CF45: 0 | CJ45: 0.275423 | CK45: 0 | CL45: 0 | CM45: 0 | CN45: 0 | CO45: 0 | CP45: 0 | CQ45: 0 | CR45: 0 | CS45: 0 | CT45: 0 | CU45: 0 | CV45: 0 | CW45: 0 | CX45: 0
B46: 0.316228 | C46: 0 | D46: 0 | E46: 0 | H46: 0.316228 | I46: 0 | J46: 0 | K46: 0 | N46: 0.316228 | O46: 0 | P46: 0 | Q46: 0 | U46: 0.316228 | V46: 0 | W46: 0 | X46: 0 | AA46: 0.316228 | AB46: 0 | AC46: 0 | AD46: 0 | AG46: 0.316228 | AH46: 0 | AI46: 0 | AJ46: 0 | AM46: 0.316228 | AN46: 0 | AO46: 0 | AP46: 0 | AS46: 0.316228 | AT46: 0 | AU46: 0 | AV46: 0 | AY46: 0.316228 | AZ46: 0 | BA46: 0 | BB46: 0 | BE46: 0.316228 | BF46: 0 | BG46: 0 | BH46: 0 | BK46: 0.316228 | BL46: 0 | BM46: 0 | BN46: 0 | BQ46: 0.316228 | BR46: 0 | BS46: 0 | BT46: 0 | BW46: 0.316228 | BX46: 0 | BY46: 0 | BZ46: 0 | CC46: 0.316228 | CD46: 0 | CE46: 0 | CF46: 0 | CJ46: 0.316228 | CK46: 0 | CL46: 0 | CM46: 0 | CN46: 0 | CO46: 0 | CP46: 0 | CQ46: 0 | CR46: 0 | CS46: 0 | CT46: 0 | CU46: 0 | CV46: 0 | CW46: 0 | CX46: 0
B47: 0.363078 | C47: 0 | D47: 0 | E47: 0 | H47: 0.363078 | I47: 0 | J47: 0 | K47: 0 | N47: 0.363078 | O47: 0 | P47: 0 | Q47: 0 | U47: 0.363078 | V47: 0 | W47: 0 | X47: 0 | AA47: 0.363078 | AB47: 0 | AC47: 0 | AD47: 0 | AG47: 0.363078 | AH47: 0 | AI47: 0 | AJ47: 0 | AM47: 0.363078 | AN47: 0 | AO47: 0 | AP47: 0 | AS47: 0.363078 | AT47: 0 | AU47: 0 | AV47: 0 | AY47: 0.363078 | AZ47: 0 | BA47: 0 | BB47: 0 | BE47: 0.363078 | BF47: 0 | BG47: 0 | BH47: 0 | BK47: 0.363078 | BL47: 0 | BM47: 0 | BN47: 0 | BQ47: 0.363078 | BR47: 0 | BS47: 0 | BT47: 0 | BW47: 0.363078 | BX47: 0 | BY47: 0 | BZ47: 0 | CC47: 0.363078 | CD47: 0 | CE47: 0 | CF47: 0 | CJ47: 0.363078 | CK47: 0 | CL47: 0 | CM47: 0 | CN47: 0 | CO47: 0 | CP47: 0 | CQ47: 0 | CR47: 0 | CS47: 0 | CT47: 0 | CU47: 0 | CV47: 0 | CW47: 0 | CX47: 0
B48: 0.416869 | C48: 0 | D48: 0 | E48: 0 | H48: 0.416869 | I48: 0 | J48: 0 | K48: 0 | N48: 0.416869 | O48: 0 | P48: 0 | Q48: 0 | U48: 0.416869 | V48: 0 | W48: 0 | X48: 0 | AA48: 0.416869 | AB48: 0 | AC48: 0 | AD48: 0 | AG48: 0.416869 | AH48: 0 | AI48: 0 | AJ48: 0 | AM48: 0.416869 | AN48: 0 | AO48: 0 | AP48: 0 | AS48: 0.416869 | AT48: 0 | AU48: 0 | AV48: 0 | AY48: 0.416869 | AZ48: 0 | BA48: 0 | BB48: 0 | BE48: 0.416869 | BF48: 0 | BG48: 0 | BH48: 0 | BK48: 0.416869 | BL48: 0 | BM48: 0 | BN48: 0 | BQ48: 0.416869 | BR48: 0 | BS48: 0 | BT48: 0 | BW48: 0.416869 | BX48: 0 | BY48: 0 | BZ48: 0 | CC48: 0.416869 | CD48: 0 | CE48: 0 | CF48: 0 | CJ48: 0.416869 | CK48: 0 | CL48: 0 | CM48: 0 | CN48: 0 | CO48: 0 | CP48: 0 | CQ48: 0 | CR48: 0 | CS48: 0 | CT48: 0 | CU48: 0 | CV48: 0 | CW48: 0 | CX48: 0
B49: 0.47863 | C49: 0 | D49: 0.030256 | E49: 0.01838 | H49: 0.47863 | I49: 0 | J49: 0 | K49: 0 | N49: 0.47863 | O49: 0 | P49: 0 | Q49: 0 | U49: 0.47863 | V49: 0 | W49: 0 | X49: 0 | AA49: 0.47863 | AB49: 0.05619 | AC49: 0.037356 | AD49: 0.082335 | AG49: 0.47863 | AH49: 0 | AI49: 0 | AJ49: 0 | AM49: 0.47863 | AN49: 0 | AO49: 0 | AP49: 0 | AS49: 0.47863 | AT49: 0 | AU49: 0 | AV49: 0 | AY49: 0.47863 | AZ49: 0 | BA49: 0 | BB49: 0 | BE49: 0.47863 | BF49: 0 | BG49: 0 | BH49: 0 | BK49: 0.47863 | BL49: 0 | BM49: 0 | BN49: 0 | BQ49: 0.47863 | BR49: 0.01777 | BS49: 0.022036 | BT49: 0 | BW49: 0.47863 | BX49: 0 | BY49: 0 | BZ49: 0 | CC49: 0.47863 | CD49: 0 | CE49: 0 | CF49: 0 | CJ49: 0.47863 | CK49: 0.016212 | CL49: 0 | CM49: 0 | CN49: 0 | CO49: 0.058627 | CP49: 0 | CQ49: 0 | CR49: 0 | CS49: 0 | CT49: 0 | CU49: 0 | CV49: 0.01326866667 | CW49: 0 | CX49: 0
B50: 0.549541 | C50: 0 | D50: 0.059621 | E50: 0.044209 | H50: 0.549541 | I50: 0 | J50: 0 | K50: 0 | N50: 0.549541 | O50: 0 | P50: 0 | Q50: 0 | U50: 0.549541 | V50: 0 | W50: 0 | X50: 0 | AA50: 0.549541 | AB50: 0.096633 | AC50: 0.074452 | AD50: 0.112327 | AG50: 0.549541 | AH50: 0.017655 | AI50: 0 | AJ50: 0 | AM50: 0.549541 | AN50: 0 | AO50: 0 | AP50: 0 | AS50: 0.549541 | AT50: 0 | AU50: 0 | AV50: 0 | AY50: 0.549541 | AZ50: 0 | BA50: 0 | BB50: 0 | BE50: 0.549541 | BF50: 0 | BG50: 0 | BH50: 0 | BK50: 0.549541 | BL50: 0 | BM50: 0.016371 | BN50: 0 | BQ50: 0.549541 | BR50: 0.040496 | BS50: 0.072182 | BT50: 0 | BW50: 0.549541 | BX50: 0 | BY50: 0 | BZ50: 0 | CC50: 0.549541 | CD50: 0 | CE50: 0 | CF50: 0.016893 | CJ50: 0.549541 | CK50: 0.03461 | CL50: 0 | CM50: 0 | CN50: 0 | CO50: 0.09447066667 | CP50: 0.005885 | CQ50: 0 | CR50: 0 | CS50: 0 | CT50: 0 | CU50: 0.005457 | CV50: 0.03755933333 | CW50: 0 | CX50: 0.005631
B51: 0.630957 | C51: 0 | D51: 0.090348 | E51: 0.073262 | H51: 0.630957 | I51: 0 | J51: 0 | K51: 0 | N51: 0.630957 | O51: 0 | P51: 0.015703 | Q51: 0 | U51: 0.630957 | V51: 0.015703 | W51: 0 | X51: 0 | AA51: 0.630957 | AB51: 0.118424 | AC51: 0.093044 | AD51: 0.138544 | AG51: 0.630957 | AH51: 0.025562 | AI51: 0 | AJ51: 0 | AM51: 0.630957 | AN51: 0 | AO51: 0 | AP51: 0 | AS51: 0.630957 | AT51: 0 | AU51: 0 | AV51: 0 | AY51: 0.630957 | AZ51: 0 | BA51: 0 | BB51: 0 | BE51: 0.630957 | BF51: 0 | BG51: 0 | BH51: 0 | BK51: 0.630957 | BL51: 0 | BM51: 0.039208 | BN51: 0 | BQ51: 0.630957 | BR51: 0.069415 | BS51: 0.089822 | BT51: 0 | BW51: 0.630957 | BX51: 0 | BY51: 0 | BZ51: 0 | CC51: 0.630957 | CD51: 0.032267 | CE51: 0 | CF51: 0.040569 | CJ51: 0.630957 | CK51: 0.05453666667 | CL51: 0 | CM51: 0.005234333333 | CN51: 0.005234333333 | CO51: 0.1166706667 | CP51: 0.008520666667 | CQ51: 0 | CR51: 0 | CS51: 0 | CT51: 0 | CU51: 0.01306933333 | CV51: 0.053079 | CW51: 0 | CX51: 0.02427866667
B52: 0.724436 | C52: 0 | D52: 0.108169 | E52: 0.086808 | H52: 0.724436 | I52: 0 | J52: 0.009064 | K52: 0 | N52: 0.724436 | O52: 0 | P52: 0.022822 | Q52: 0 | U52: 0.724436 | V52: 0.022822 | W52: 0 | X52: 0 | AA52: 0.724436 | AB52: 0.132246 | AC52: 0.10555 | AD52: 0.155186 | AG52: 0.724436 | AH52: 0.029365 | AI52: 0 | AJ52: 0 | AM52: 0.724436 | AN52: 0 | AO52: 0 | AP52: 0 | AS52: 0.724436 | AT52: 0 | AU52: 0 | AV52: 0 | AY52: 0.724436 | AZ52: 0.011863 | BA52: 0 | BB52: 0 | BE52: 0.724436 | BF52: 0 | BG52: 0 | BH52: 0 | BK52: 0.724436 | BL52: 0 | BM52: 0.064824 | BN52: 0 | BQ52: 0.724436 | BR52: 0.082365 | BS52: 0.100193 | BT52: 0 | BW52: 0.724436 | BX52: 0 | BY52: 0 | BZ52: 0 | CC52: 0.724436 | CD52: 0.064751 | CE52: 0 | CF52: 0.050034 | CJ52: 0.724436 | CK52: 0.06499233333 | CL52: 0.003021333333 | CM52: 0.007607333333 | CN52: 0.007607333333 | CO52: 0.130994 | CP52: 0.009788333333 | CQ52: 0 | CR52: 0 | CS52: 0.003954333333 | CT52: 0 | CU52: 0.021608 | CV52: 0.06085266667 | CW52: 0 | CX52: 0.03826166667
B53: 0.831764 | C53: 0 | D53: 0.112131 | E53: 0.090608 | H53: 0.831764 | I53: 0 | J53: 0.050516 | K53: 0 | N53: 0.831764 | O53: 0 | P53: 0.022023 | Q53: 0 | U53: 0.831764 | V53: 0.022023 | W53: 0 | X53: 0 | AA53: 0.831764 | AB53: 0.140949 | AC53: 0.113639 | AD53: 0.165736 | AG53: 0.831764 | AH53: 0.029902 | AI53: 0 | AJ53: 0 | AM53: 0.831764 | AN53: 0 | AO53: 0 | AP53: 0 | AS53: 0.831764 | AT53: 0 | AU53: 0 | AV53: 0 | AY53: 0.831764 | AZ53: 0.036045 | BA53: 0 | BB53: 0 | BE53: 0.831764 | BF53: 0 | BG53: 0 | BH53: 0 | BK53: 0.831764 | BL53: 0 | BM53: 0.078488 | BN53: 0.007044 | BQ53: 0.831764 | BR53: 0.085686 | BS53: 0.107145 | BT53: 0 | BW53: 0.831764 | BX53: 0 | BY53: 0 | BZ53: 0 | CC53: 0.831764 | CD53: 0.0766 | CE53: 0.016576 | CF53: 0.052185 | CJ53: 0.831764 | CK53: 0.06757966667 | CL53: 0.01683866667 | CM53: 0.007341 | CN53: 0.007341 | CO53: 0.140108 | CP53: 0.009967333333 | CQ53: 0 | CR53: 0 | CS53: 0.012015 | CT53: 0 | CU53: 0.02851066667 | CV53: 0.064277 | CW53: 0 | CX53: 0.04845366667
B54: 0.954993 | C54: 0 | D54: 0.115855 | E54: 0.094094 | H54: 0.954993 | I54: 0 | J54: 0.067164 | K54: 0 | N54: 0.954993 | O54: 0 | P54: 0.022339 | Q54: 0 | U54: 0.954993 | V54: 0.022339 | W54: 0 | X54: 0 | AA54: 0.954993 | AB54: 0.144468 | AC54: 0.117621 | AD54: 0.170159 | AG54: 0.954993 | AH54: 0.042556 | AI54: 0.008474 | AJ54: 0 | AM54: 0.954993 | AN54: 0 | AO54: 0 | AP54: 0 | AS54: 0.954993 | AT54: 0 | AU54: 0 | AV54: 0 | AY54: 0.954993 | AZ54: 0.04553 | BA54: 0.006718 | BB54: 0 | BE54: 0.954993 | BF54: 0 | BG54: 0 | BH54: 0 | BK54: 0.954993 | BL54: 0 | BM54: 0.080232 | BN54: 0.043545 | BQ54: 0.954993 | BR54: 0.08871 | BS54: 0.110129 | BT54: 0 | BW54: 0.954993 | BX54: 0 | BY54: 0.007574 | BZ54: 0 | CC54: 0.954993 | CD54: 0.078694 | CE54: 0.034734 | CF54: 0.058468 | CJ54: 0.954993 | CK54: =AVERAGE(C54:E54) -> 0.069983 | CL54: =AVERAGE(I54:K54) -> 0.022388 | CM54: =AVERAGE(O54:Q54) -> 0.007446333333 | CN54: =AVERAGE(V54:X54) -> 0.007446333333 | CO54: =AVERAGE(AB54:AD54) -> 0.1440826667 | CP54: =AVERAGE(AH54:AJ54) -> 0.01701 | CQ54: =AVERAGE(AN54:AP54) -> 0 | CR54: =AVERAGE(AT54:AV54) -> 0 | CS54: =AVERAGE(AZ54:BB54) -> 0.017416 | CT54: =AVERAGE(BF54:BH54) -> 0 | CU54: =AVERAGE(BL54:BN54) -> 0.041259 | CV54: =AVERAGE(BR54:BT54) -> 0.06627966667 | CW54: =AVERAGE(BX54:BZ54) -> 0.002524666667 | CX54: 0.05729866667
B55: 1.096478 | C55: 0 | D55: 0.116525 | E55: 0.095115 | H55: 1.096478 | I55: 0 | J55: 0.069181 | K55: 0 | N55: 1.096478 | O55: 0 | P55: 0.022489 | Q55: 0 | U55: 1.096478 | V55: 0.022489 | W55: 0 | X55: 0 | AA55: 1.096478 | AB55: 0.145379 | AC55: 0.119245 | AD55: 0.171646 | AG55: 1.096478 | AH55: 0.056229 | AI55: 0.02184 | AJ55: 0.006803 | AM55: 1.096478 | AN55: 0 | AO55: 0 | AP55: 0 | AS55: 1.096478 | AT55: 0 | AU55: 0 | AV55: 0 | AY55: 1.096478 | AZ55: 0.044225 | BA55: 0.030789 | BB55: 0 | BE55: 1.096478 | BF55: 0 | BG55: 0 | BH55: 0 | BK55: 1.096478 | BL55: 0.006786 | BM55: 0.083743 | BN55: 0.064003 | BQ55: 1.096478 | BR55: 0.088767 | BS55: 0.110626 | BT55: 0 | BW55: 1.096478 | BX55: 0 | BY55: 0.021332 | BZ55: 0 | CC55: 1.096478 | CD55: 0.08304 | CE55: 0.033207 | CF55: 0.057778 | CJ55: 1.096478 | CK55: 0.07054666667 | CL55: 0.02306033333 | CM55: 0.007496333333 | CN55: 0.007496333333 | CO55: 0.1454233333 | CP55: 0.02829066667 | CQ55: 0 | CR55: 0 | CS55: 0.02500466667 | CT55: 0 | CU55: 0.05151066667 | CV55: 0.06646433333 | CW55: 0.007110666667 | CX55: 0.05800833333
B56: 1.258925 | C56: 0 | D56: 0.117971 | E56: 0.096839 | H56: 1.258925 | I56: 0 | J56: 0.066658 | K56: 0 | N56: 1.258925 | O56: 0 | P56: 0.019817 | Q56: 0 | U56: 1.258925 | V56: 0.019817 | W56: 0 | X56: 0 | AA56: 1.258925 | AB56: 0.146173 | AC56: 0.120484 | AD56: 0.17324 | AG56: 1.258925 | AH56: 0.055583 | AI56: 0.021275 | AJ56: 0.020734 | AM56: 1.258925 | AN56: 0 | AO56: 0 | AP56: 0 | AS56: 1.258925 | AT56: 0 | AU56: 0 | AV56: 0 | AY56: 1.258925 | AZ56: 0.053239 | BA56: 0.042628 | BB56: 0 | BE56: 1.258925 | BF56: 0 | BG56: 0 | BH56: 0 | BK56: 1.258925 | BL56: 0.020235 | BM56: 0.084479 | BN56: 0.065976 | BQ56: 1.258925 | BR56: 0.088499 | BS56: 0.110082 | BT56: 0 | BW56: 1.258925 | BX56: 0 | BY56: 0.016541 | BZ56: 0 | CC56: 1.258925 | CD56: 0.085729 | CE56: 0.036296 | CF56: 0.060736 | CJ56: 1.258925 | CK56: 0.07160333333 | CL56: 0.02221933333 | CM56: 0.006605666667 | CN56: 0.006605666667 | CO56: 0.1466323333 | CP56: 0.03253066667 | CQ56: 0 | CR56: 0 | CS56: 0.03195566667 | CT56: 0 | CU56: 0.05689666667 | CV56: 0.06619366667 | CW56: 0.005513666667 | CX56: 0.06092033333
B57: 1.44544 | C57: 0 | D57: 0.121977 | E57: 0.100775 | H57: 1.44544 | I57: 0 | J57: 0.069523 | K57: 0 | N57: 1.44544 | O57: 0 | P57: 0.026679 | Q57: 0 | U57: 1.44544 | V57: 0.026679 | W57: 0 | X57: 0 | AA57: 1.44544 | AB57: 0.149537 | AC57: 0.123493 | AD57: 0.178182 | AG57: 1.44544 | AH57: 0.061571 | AI57: 0.02251 | AJ57: 0.024107 | AM57: 1.44544 | AN57: 0 | AO57: 0.029281 | AP57: 0 | AS57: 1.44544 | AT57: 0 | AU57: 0 | AV57: 0 | AY57: 1.44544 | AZ57: 0.072274 | BA57: 0.042732 | BB57: 0 | BE57: 1.44544 | BF57: 0 | BG57: 0 | BH57: 0 | BK57: 1.44544 | BL57: 0.022707 | BM57: 0.085113 | BN57: 0.065139 | BQ57: 1.44544 | BR57: 0.088982 | BS57: 0.110193 | BT57: 0 | BW57: 1.44544 | BX57: 0 | BY57: 0.02391 | BZ57: 0 | CC57: 1.44544 | CD57: 0.089715 | CE57: 0.037274 | CF57: 0.062705 | CJ57: 1.44544 | CK57: 0.07425066667 | CL57: 0.02317433333 | CM57: 0.008893 | CN57: 0.008893 | CO57: 0.150404 | CP57: 0.03606266667 | CQ57: 0.009760333333 | CR57: 0 | CS57: 0.03833533333 | CT57: 0 | CU57: 0.057653 | CV57: 0.06639166667 | CW57: 0.00797 | CX57: 0.06323133333
B58: 1.659587 | C58: 0 | D58: 0.130067 | E58: 0.108241 | H58: 1.659587 | I58: 0 | J58: 0.071472 | K58: 0 | N58: 1.659587 | O58: 0 | P58: 0.047443 | Q58: 0 | U58: 1.659587 | V58: 0.047443 | W58: 0 | X58: 0 | AA58: 1.659587 | AB58: 0.157181 | AC58: 0.129771 | AD58: 0.188443 | AG58: 1.659587 | AH58: 0.067318 | AI58: 0.028344 | AJ58: 0.047234 | AM58: 1.659587 | AN58: 0 | AO58: 0.041226 | AP58: 0 | AS58: 1.659587 | AT58: 0 | AU58: 0 | AV58: 0 | AY58: 1.659587 | AZ58: 0.074274 | BA58: 0.047579 | BB58: 0.025842 | BE58: 1.659587 | BF58: 0 | BG58: 0 | BH58: 0 | BK58: 1.659587 | BL58: 0.043461 | BM58: 0.086112 | BN58: 0.068275 | BQ58: 1.659587 | BR58: 0.091466 | BS58: 0.112252 | BT58: 0 | BW58: 1.659587 | BX58: 0 | BY58: 0.041955 | BZ58: 0 | CC58: 1.659587 | CD58: 0.095335 | CE58: 0.040517 | CF58: 0.066693 | CJ58: 1.659587 | CK58: 0.079436 | CL58: 0.023824 | CM58: 0.01581433333 | CN58: 0.01581433333 | CO58: 0.158465 | CP58: 0.047632 | CQ58: 0.013742 | CR58: 0 | CS58: 0.04923166667 | CT58: 0 | CU58: 0.06594933333 | CV58: 0.067906 | CW58: 0.013985 | CX58: 0.067515
B59: 1.905461 | C59: 0 | D59: 0.142464 | E59: 0.119513 | H59: 1.905461 | I59: 0.028751 | J59: 0.075728 | K59: 0 | N59: 1.905461 | O59: 0 | P59: 0.04899 | Q59: 0 | U59: 1.905461 | V59: 0.04899 | W59: 0 | X59: 0 | AA59: 1.905461 | AB59: 0.169534 | AC59: 0.139875 | AD59: 0.204438 | AG59: 1.905461 | AH59: 0.079422 | AI59: 0.050243 | AJ59: 0.069669 | AM59: 1.905461 | AN59: 0 | AO59: 0.046101 | AP59: 0 | AS59: 1.905461 | AT59: 0 | AU59: 0 | AV59: 0 | AY59: 1.905461 | AZ59: 0.081838 | BA59: 0.052373 | BB59: 0.042274 | BE59: 1.905461 | BF59: 0 | BG59: 0 | BH59: 0 | BK59: 1.905461 | BL59: 0.060938 | BM59: 0.088347 | BN59: 0.070181 | BQ59: 1.905461 | BR59: 0.096435 | BS59: 0.116819 | BT59: 0 | BW59: 1.905461 | BX59: 0 | BY59: 0.045286 | BZ59: 0 | CC59: 1.905461 | CD59: 0.10306 | CE59: 0.044247 | CF59: 0.071472 | CJ59: 1.905461 | CK59: 0.08732566667 | CL59: 0.03482633333 | CM59: 0.01633 | CN59: 0.01633 | CO59: 0.1712823333 | CP59: 0.06644466667 | CQ59: 0.015367 | CR59: 0 | CS59: 0.05882833333 | CT59: 0 | CU59: 0.07315533333 | CV59: 0.07108466667 | CW59: 0.01509533333 | CX59: 0.07292633333
B60: 2.187762 | C60: 0 | D60: 0.15799 | E60: 0.133667 | H60: 2.187762 | I60: 0.075468 | J60: 0.081639 | K60: 0 | N60: 2.187762 | O60: 0 | P60: 0.078037 | Q60: 0.023167 | U60: 2.187762 | V60: 0.078037 | W60: 0 | X60: 0.023167 | AA60: 2.187762 | AB60: 0.185432 | AC60: 0.153055 | AD60: 0.224668 | AG60: 2.187762 | AH60: 0.112443 | AI60: 0.077781 | AJ60: 0.080043 | AM60: 2.187762 | AN60: 0 | AO60: 0.070514 | AP60: 0 | AS60: 2.187762 | AT60: 0 | AU60: 0 | AV60: 0 | AY60: 2.187762 | AZ60: 0.090458 | BA60: 0.07828 | BB60: 0.064568 | BE60: 2.187762 | BF60: 0 | BG60: 0.058464 | BH60: 0.029314 | BK60: 2.187762 | BL60: 0.062966 | BM60: 0.092006 | BN60: 0.073265 | BQ60: 2.187762 | BR60: 0.103573 | BS60: 0.123522 | BT60: 0 | BW60: 2.187762 | BX60: 0 | BY60: 0.05132 | BZ60: 0.021383 | CC60: 2.187762 | CD60: 0.112379 | CE60: 0.075408 | CF60: 0.078134 | CJ60: 2.187762 | CK60: 0.097219 | CL60: 0.052369 | CM60: 0.03373466667 | CN60: 0.03373466667 | CO60: 0.1877183333 | CP60: 0.090089 | CQ60: 0.02350466667 | CR60: 0 | CS60: 0.07776866667 | CT60: 0.02925933333 | CU60: 0.076079 | CV60: 0.07569833333 | CW60: 0.02423433333 | CX60: 0.08864033333
B61: 2.511886 | C61: 0 | D61: 0.175008 | E61: 0.149334 | H61: 2.511886 | I61: 0.08093 | J61: 0.088925 | K61: 0.061907 | N61: 2.511886 | O61: 0 | P61: 0.085778 | Q61: 0.070983 | U61: 2.511886 | V61: 0.085778 | W61: 0 | X61: 0.070983 | AA61: 2.511886 | AB61: 0.203188 | AC61: 0.167985 | AD61: 0.247118 | AG61: 2.511886 | AH61: 0.132021 | AI61: 0.091366 | AJ61: 0.093826 | AM61: 2.511886 | AN61: 0.017958 | AO61: 0.079534 | AP61: 0.0187 | AS61: 2.511886 | AT61: 0 | AU61: 0 | AV61: 0 | AY61: 2.511886 | AZ61: 0.100399 | BA61: 0.087494 | BB61: 0.072339 | BE61: 2.511886 | BF61: 0 | BG61: 0.06196 | BH61: 0.02989 | BK61: 2.511886 | BL61: 0.066843 | BM61: 0.096782 | BN61: 0.077114 | BQ61: 2.511886 | BR61: 0.112115 | BS61: 0.131506 | BT61: 0 | BW61: 2.511886 | BX61: 0.016632 | BY61: 0.057232 | BZ61: 0.042405 | CC61: 2.511886 | CD61: 0.122443 | CE61: 0.082554 | CF61: 0.102954 | CJ61: 2.511886 | CK61: 0.108114 | CL61: 0.077254 | CM61: 0.05225366667 | CN61: 0.05225366667 | CO61: 0.206097 | CP61: 0.1057376667 | CQ61: 0.03873066667 | CR61: 0 | CS61: 0.086744 | CT61: 0.03061666667 | CU61: 0.08024633333 | CV61: 0.081207 | CW61: 0.03875633333 | CX61: 0.1026503333
B62: 2.884031 | C62: 0 | D62: 0.191862 | E62: 0.165031 | H62: 2.884031 | I62: 0.08935 | J62: 0.096961 | K62: 0.071675 | N62: 2.884031 | O62: 0 | P62: 0.093657 | Q62: 0.079307 | U62: 2.884031 | V62: 0.093657 | W62: 0 | X62: 0.079307 | AA62: 2.884031 | AB62: 0.221104 | AC62: 0.18315 | AD62: 0.269833 | AG62: 2.884031 | AH62: 0.153389 | AI62: 0.106172 | AJ62: 0.109678 | AM62: 2.884031 | AN62: 0.018476 | AO62: 0.088272 | AP62: 0.039483 | AS62: 2.884031 | AT62: 0 | AU62: 0 | AV62: 0 | AY62: 2.884031 | AZ62: 0.110695 | BA62: 0.096709 | BB62: 0.080064 | BE62: 2.884031 | BF62: 0.045262 | BG62: 0.069331 | BH62: 0.058147 | BK62: 2.884031 | BL62: 0.071256 | BM62: 0.101943 | BN62: 0.081354 | BQ62: 2.884031 | BR62: 0.12115 | BS62: 0.139819 | BT62: 0 | BW62: 2.884031 | BX62: 0.03859 | BY62: 0.083057 | BZ62: 0.066452 | CC62: 2.884031 | CD62: 0.132216 | CE62: 0.089095 | CF62: 0.112878 | CJ62: 2.884031 | CK62: 0.1189643333 | CL62: 0.08599533333 | CM62: 0.05765466667 | CN62: 0.05765466667 | CO62: 0.2246956667 | CP62: 0.1230796667 | CQ62: 0.04874366667 | CR62: 0 | CS62: 0.09582266667 | CT62: 0.05758 | CU62: 0.084851 | CV62: 0.08698966667 | CW62: 0.06269966667 | CX62: 0.1113963333
B63: 3.311311 | C63: 0 | D63: 0.207168 | E63: 0.17946 | H63: 3.311311 | I63: 0.094231 | J63: 0.10516 | K63: 0.078443 | N63: 3.311311 | O63: 0 | P63: 0.102271 | Q63: 0.087908 | U63: 3.311311 | V63: 0.102271 | W63: 0 | X63: 0.087908 | AA63: 3.311311 | AB63: 0.237751 | AC63: 0.197211 | AD63: 0.291149 | AG63: 3.311311 | AH63: 0.176203 | AI63: 0.122715 | AJ63: 0.126314 | AM63: 3.311311 | AN63: 0.054734 | AO63: 0.097285 | AP63: 0.062468 | AS63: 3.311311 | AT63: 0 | AU63: 0 | AV63: 0 | AY63: 3.311311 | AZ63: 0.120452 | BA63: 0.106317 | BB63: 0.088619 | BE63: 3.311311 | BF63: 0.062712 | BG63: 0.074304 | BH63: 0.068587 | BK63: 3.311311 | BL63: 0.075172 | BM63: 0.106681 | BN63: 0.085353 | BQ63: 3.311311 | BR63: 0.129865 | BS63: 0.147699 | BT63: 0.012713 | BW63: 3.311311 | BX63: 0.062718 | BY63: 0.095138 | BZ63: 0.077551 | CC63: 3.311311 | CD63: 0.140759 | CE63: 0.095863 | CF63: 0.119479 | CJ63: 3.311311 | CK63: 0.128876 | CL63: 0.09261133333 | CM63: 0.063393 | CN63: 0.063393 | CO63: 0.242037 | CP63: 0.141744 | CQ63: 0.07149566667 | CR63: 0 | CS63: 0.1051293333 | CT63: 0.06853433333 | CU63: 0.08906866667 | CV63: 0.096759 | CW63: 0.078469 | CX63: 0.1187003333
B64: 3.801894 | C64: 0 | D64: 0.219821 | E64: 0.191567 | H64: 3.801894 | I64: 0.10074 | J64: 0.112951 | K64: 0.081908 | N64: 3.801894 | O64: 0.012066 | P64: 0.109102 | Q64: 0.091262 | U64: 3.801894 | V64: 0.109102 | W64: 0 | X64: 0.091262 | AA64: 3.801894 | AB64: 0.25196 | AC64: 0.209104 | AD64: 0.309664 | AG64: 3.801894 | AH64: 0.198023 | AI64: 0.138494 | AJ64: 0.142871 | AM64: 3.801894 | AN64: 0.0691 | AO64: 0.104373 | AP64: 0.073723 | AS64: 3.801894 | AT64: 0 | AU64: 0 | AV64: 0 | AY64: 3.801894 | AZ64: 0.128925 | BA64: 0.114467 | BB64: 0.096081 | BE64: 3.801894 | BF64: 0.06152 | BG64: 0.079941 | BH64: 0.071339 | BK64: 3.801894 | BL64: 0.078567 | BM64: 0.11032 | BN64: 0.088465 | BQ64: 3.801894 | BR64: 0.137539 | BS64: 0.15454 | BT64: 0.034132 | BW64: 3.801894 | BX64: 0.074608 | BY64: 0.101044 | BZ64: 0.082098 | CC64: 3.801894 | CD64: 0.147303 | CE64: 0.100606 | CF64: 0.125305 | CJ64: 3.801894 | CK64: 0.1371293333 | CL64: 0.098533 | CM64: 0.07081 | CN64: 0.066788 | CO64: 0.2569093333 | CP64: 0.159796 | CQ64: 0.08239866667 | CR64: 0 | CS64: 0.1131576667 | CT64: 0.07093333333 | CU64: 0.09245066667 | CV64: 0.108737 | CW64: 0.08591666667 | CX64: 0.1244046667
B65: 4.365158 | C65: 0 | D65: 0.228968 | E65: 0.200489 | H65: 4.365158 | I65: 0.104468 | J65: 0.119489 | K65: 0.0876 | N65: 4.365158 | O65: 0.023313 | P65: 0.113418 | Q65: 0.095142 | U65: 4.365158 | V65: 0.113418 | W65: 0 | X65: 0.095142 | AA65: 4.365158 | AB65: 0.262764 | AC65: 0.217994 | AD65: 0.324209 | AG65: 4.365158 | AH65: 0.217484 | AI65: 0.152774 | AJ65: 0.157776 | AM65: 4.365158 | AN65: 0.07458 | AO65: 0.109316 | AP65: 0.074863 | AS65: 4.365158 | AT65: 0 | AU65: 0 | AV65: 0 | AY65: 4.365158 | AZ65: 0.135273 | BA65: 0.120872 | BB65: 0.102351 | BE65: 4.365158 | BF65: 0.069193 | BG65: 0.083211 | BH65: 0.075301 | BK65: 4.365158 | BL65: 0.080776 | BM65: 0.112314 | BN65: 0.090173 | BQ65: 4.365158 | BR65: 0.143402 | BS65: 0.15973 | BT65: 0.055121 | BW65: 4.365158 | BX65: 0.076447 | BY65: 0.106191 | BZ65: 0.087016 | CC65: 4.365158 | CD65: 0.151207 | CE65: 0.103383 | CF65: 0.128054 | CJ65: 4.365158 | CK65: 0.1431523333 | CL65: 0.1038523333 | CM65: 0.077291 | CN65: 0.06952 | CO65: 0.2683223333 | CP65: 0.1760113333 | CQ65: 0.086253 | CR65: 0 | CS65: 0.1194986667 | CT65: 0.07590166667 | CU65: 0.094421 | CV65: 0.1194176667 | CW65: 0.08988466667 | CX65: 0.127548
B66: 5.011872 | C66: 0 | D66: 0.234379 | E66: 0.205939 | H66: 5.011872 | I66: 0.10609 | J66: 0.123804 | K66: 0.090434 | N66: 5.011872 | O66: 0.022623 | P66: 0.113267 | Q66: 0.094005 | U66: 5.011872 | V66: 0.113267 | W66: 0 | X66: 0.094005 | AA66: 5.011872 | AB66: 0.269795 | AC66: 0.223624 | AD66: 0.334375 | AG66: 5.011872 | AH66: 0.233101 | AI66: 0.164277 | AJ66: 0.169982 | AM66: 5.011872 | AN66: 0.073982 | AO66: 0.11138 | AP66: 0.077588 | AS66: 5.011872 | AT66: 0 | AU66: 0 | AV66: 0 | AY66: 5.011872 | AZ66: 0.138841 | BA66: 0.124674 | BB66: 0.106552 | BE66: 5.011872 | BF66: 0.06742 | BG66: 0.084849 | BH66: 0.07661 | BK66: 5.011872 | BL66: 0.081625 | BM66: 0.112377 | BN66: 0.090189 | BQ66: 5.011872 | BR66: 0.14682 | BS66: 0.162759 | BT66: 0.068475 | BW66: 5.011872 | BX66: 0.07922 | BY66: 0.107391 | BZ66: 0.088104 | CC66: 5.011872 | CD66: 0.152167 | CE66: 0.103568 | CF66: 0.127929 | CJ66: 5.011872 | CK66: 0.1467726667 | CL66: 0.106776 | CM66: 0.07663166667 | CN66: 0.06909066667 | CO66: 0.2759313333 | CP66: 0.18912 | CQ66: 0.08765 | CR66: 0 | CS66: 0.1233556667 | CT66: 0.076293 | CU66: 0.09473033333 | CV66: 0.126018 | CW66: 0.09157166667 | CX66: 0.127888
B67: 5.754399 | C67: 0 | D67: 0.236194 | E67: 0.207977 | H67: 5.754399 | I67: 0.10398 | J67: 0.124695 | K67: 0.091015 | N67: 5.754399 | O67: 0.023008 | P67: 0.10785 | Q67: 0.086213 | U67: 5.754399 | V67: 0.10785 | W67: 0 | X67: 0.086213 | AA67: 5.754399 | AB67: 0.272914 | AC67: 0.226015 | AD67: 0.340014 | AG67: 5.754399 | AH67: 0.24361 | AI67: 0.172067 | AJ67: 0.178314 | AM67: 5.754399 | AN67: 0.075295 | AO67: 0.1105 | AP67: 0.076811 | AS67: 5.754399 | AT67: 0 | AU67: 0 | AV67: 0 | AY67: 5.754399 | AZ67: 0.139004 | BA67: 0.125317 | BB67: 0.108074 | BE67: 5.754399 | BF67: 0.068642 | BG67: 0.08444 | BH67: 0.076406 | BK67: 5.754399 | BL67: 0.080936 | BM67: 0.11047 | BN67: 0.088486 | BQ67: 5.754399 | BR67: 0.147161 | BS67: 0.163057 | BT67: 0.065287 | BW67: 5.754399 | BX67: 0.076896 | BY67: 0.105391 | BZ67: 0.086514 | CC67: 5.754399 | CD67: 0.150173 | CE67: 0.101238 | CF67: 0.124971 | CJ67: 5.754399 | CK67: 0.148057 | CL67: 0.1065633333 | CM67: 0.072357 | CN67: 0.06468766667 | CO67: 0.2796476667 | CP67: 0.197997 | CQ67: 0.08753533333 | CR67: 0 | CS67: 0.1241316667 | CT67: 0.076496 | CU67: 0.09329733333 | CV67: 0.1251683333 | CW67: 0.08960033333 | CX67: 0.1254606667
B68: 6.606934 | C68: 0 | D68: 0.235264 | E68: 0.207372 | H68: 6.606934 | I68: 0.097924 | J68: 0.12086 | K68: 0.088276 | N68: 6.606934 | O68: 0.022587 | P68: 0.09463 | Q68: 0.077364 | U68: 6.606934 | V68: 0.09463 | W68: 0 | X68: 0.077364 | AA68: 6.606934 | AB68: 0.272597 | AC68: 0.22575 | AD68: 0.341814 | AG68: 6.606934 | AH68: 0.248648 | AI68: 0.175831 | AJ68: 0.182332 | AM68: 6.606934 | AN68: 0.071978 | AO68: 0.107041 | AP68: 0.073745 | AS68: 6.606934 | AT68: 0 | AU68: 0 | AV68: 0 | AY68: 6.606934 | AZ68: 0.135446 | BA68: 0.122455 | BB68: 0.106439 | BE68: 6.606934 | BF68: 0.066629 | BG68: 0.082391 | BH68: 0.074546 | BK68: 6.606934 | BL68: 0.078764 | BM68: 0.106788 | BN68: 0.085304 | BQ68: 6.606934 | BR68: 0.14406 | BS68: 0.160185 | BT68: 0.067891 | BW68: 6.606934 | BX68: 0.074196 | BY68: 0.099445 | BZ68: 0.081363 | CC68: 6.606934 | CD68: 0.1456 | CE68: 0.096714 | CF68: 0.118884 | CJ68: 6.606934 | CK68: 0.1475453333 | CL68: 0.1023533333 | CM68: 0.06486033333 | CN68: 0.05733133333 | CO68: 0.2800536667 | CP68: 0.2022703333 | CQ68: 0.08425466667 | CR68: 0 | CS68: 0.1214466667 | CT68: 0.074522 | CU68: 0.09028533333 | CV68: 0.1240453333 | CW68: 0.08500133333 | CX68: 0.1203993333
B69: 7.585776 | C69: 0 | D69: 0.23303 | E69: 0.205481 | H69: 7.585776 | I69: 0.086416 | J69: 0.111947 | K69: 0.080445 | N69: 7.585776 | O69: 0.014298 | P69: 0.078592 | Q69: 0.045302 | U69: 7.585776 | V69: 0.078592 | W69: 0 | X69: 0.045302 | AA69: 7.585776 | AB69: 0.269708 | AC69: 0.223732 | AD69: 0.340869 | AG69: 7.585776 | AH69: 0.248386 | AI69: 0.175691 | AJ69: 0.181945 | AM69: 7.585776 | AN69: 0.069091 | AO69: 0.102091 | AP69: 0.070647 | AS69: 7.585776 | AT69: 0 | AU69: 0 | AV69: 0 | AY69: 7.585776 | AZ69: 0.128414 | BA69: 0.116273 | BB69: 0.101572 | BE69: 7.585776 | BF69: 0.064171 | BG69: 0.079368 | BH69: 0.071761 | BK69: 7.585776 | BL69: 0.075318 | BM69: 0.10189 | BN69: 0.081248 | BQ69: 7.585776 | BR69: 0.137653 | BS69: 0.154017 | BT69: 0.055527 | BW69: 7.585776 | BX69: 0.062919 | BY69: 0.092771 | BZ69: 0.07562 | CC69: 7.585776 | CD69: 0.13939 | CE69: 0.090922 | CF69: 0.112757 | CJ69: 7.585776 | CK69: 0.1461703333 | CL69: 0.092936 | CM69: 0.046064 | CN69: 0.041298 | CO69: 0.278103 | CP69: 0.2020073333 | CQ69: 0.08060966667 | CR69: 0 | CS69: 0.1154196667 | CT69: 0.07176666667 | CU69: 0.086152 | CV69: 0.1157323333 | CW69: 0.07710333333 | CX69: 0.1143563333
B70: 8.709636 | C70: 0 | D70: 0.231413 | E70: 0.204157 | H70: 8.709636 | I70: 0.07287 | J70: 0.097006 | K70: 0.07032 | N70: 8.709636 | O70: 0 | P70: 0.048984 | Q70: 0 | U70: 8.709636 | V70: 0.048984 | W70: 0 | X70: 0 | AA70: 8.709636 | AB70: 0.265425 | AC70: 0.221032 | AD70: 0.338747 | AG70: 8.709636 | AH70: 0.243867 | AI70: 0.172425 | AJ70: 0.177735 | AM70: 8.709636 | AN70: 0.062412 | AO70: 0.09711 | AP70: 0.064047 | AS70: 8.709636 | AT70: 0 | AU70: 0 | AV70: 0 | AY70: 8.709636 | AZ70: 0.118597 | BA70: 0.107371 | BB70: 0.093783 | BE70: 8.709636 | BF70: 0.061404 | BG70: 0.076289 | BH70: 0.068848 | BK70: 8.709636 | BL70: 0.071041 | BM70: 0.096356 | BN70: 0.076976 | BQ70: 8.709636 | BR70: 0.128533 | BS70: 0.144687 | BT70: 0.014925 | BW70: 8.709636 | BX70: 0.040838 | BY70: 0.08223 | BZ70: 0.066269 | CC70: 8.709636 | CD70: 0.132689 | CE70: 0.084932 | CF70: 0.102719 | CJ70: 8.709636 | CK70: 0.14519 | CL70: 0.08006533333 | CM70: 0.016328 | CN70: 0.016328 | CO70: 0.275068 | CP70: 0.198009 | CQ70: 0.074523 | CR70: 0 | CS70: 0.1065836667 | CT70: 0.068847 | CU70: 0.08145766667 | CV70: 0.09604833333 | CW70: 0.06311233333 | CX70: 0.10678
B71: 10 | C71: 0 | D71: 0.232636 | E71: 0.205527 | H71: 10 | I71: 0.054158 | J71: 0.079314 | K71: 0.053994 | N71: 10 | O71: 0 | P71: 0 | Q71: 0 | U71: 10 | V71: 0 | W71: 0 | X71: 0 | AA71: 10 | AB71: 0.261313 | AC71: 0.21883 | AD71: 0.337275 | AG71: 10 | AH71: 0.236899 | AI71: 0.167384 | AJ71: 0.170954 | AM71: 10 | AN71: 0.042232 | AO71: 0.094133 | AP71: 0.043953 | AS71: 10 | AT71: 0 | AU71: 0 | AV71: 0 | AY71: 10 | AZ71: 0.107964 | BA71: 0.097516 | BB71: 0.084454 | BE71: 10 | BF71: 0.059541 | BG71: 0.074388 | BH71: 0.066964 | BK71: 10 | BL71: 0.066414 | BM71: 0.091178 | BN71: 0.073436 | BQ71: 10 | BR71: 0.118572 | BS71: 0.133497 | BT71: 0 | BW71: 10 | BX71: 0.037748 | BY71: 0.059011 | BZ71: 0.044834 | CC71: 10 | CD71: 0.12729 | CE71: 0.080309 | CF71: 0.079916 | CJ71: 10 | CK71: 0.1460543333 | CL71: 0.06248866667 | CM71: 0 | CN71: 0 | CO71: 0.2724726667 | CP71: 0.1917456667 | CQ71: 0.060106 | CR71: 0 | CS71: 0.09664466667 | CT71: 0.06696433333 | CU71: 0.07700933333 | CV71: 0.084023 | CW71: 0.04719766667 | CX71: 0.09583833333
B72: 11.481536 | C72: 0.020711 | D72: 0.238728 | E72: 0.211516 | H72: 11.481536 | I72: 0 | J72: 0.061621 | K72: 0 | N72: 11.481536 | O72: 0 | P72: 0 | Q72: 0 | U72: 11.481536 | V72: 0 | W72: 0 | X72: 0 | AA72: 11.481536 | AB72: 0.258724 | AC72: 0.217978 | AD72: 0.338092 | AG72: 11.481536 | AH72: 0.22933 | AI72: 0.161959 | AJ72: 0.162945 | AM72: 11.481536 | AN72: 0.042602 | AO72: 0.094999 | AP72: 0.044228 | AS72: 11.481536 | AT72: 0 | AU72: 0 | AV72: 0 | AY72: 11.481536 | AZ72: 0.098826 | BA72: 0.088806 | BB72: 0.07534 | BE72: 11.481536 | BF72: 0.059543 | BG72: 0.074781 | BH72: 0.067162 | BK72: 11.481536 | BL72: 0.062089 | BM72: 0.087157 | BN72: 0.071346 | BQ72: 11.481536 | BR72: 0.110133 | BS72: 0.122197 | BT72: 0 | BW72: 11.481536 | BX72: 0.018623 | BY72: 0.05844 | BZ72: 0.043986 | CC72: 11.481536 | CD72: 0.124818 | CE72: 0.078325 | CF72: 0.078068 | CJ72: 11.481536 | CK72: 0.156985 | CL72: 0.02054033333 | CM72: 0 | CN72: 0 | CO72: 0.271598 | CP72: 0.1847446667 | CQ72: 0.06060966667 | CR72: 0 | CS72: 0.08765733333 | CT72: 0.067162 | CU72: 0.07353066667 | CV72: 0.07744333333 | CW72: 0.04034966667 | CX72: 0.093737
B73: 13.182567 | C73: 0.029379 | D73: 0.250528 | E73: 0.222874 | H73: 13.182567 | I73: 0 | J73: 0.003543 | K73: 0 | N73: 13.182567 | O73: 0 | P73: 0 | Q73: 0 | U73: 13.182567 | V73: 0 | W73: 0 | X73: 0 | AA73: 13.182567 | AB73: 0.258892 | AC73: 0.218966 | AD73: 0.342287 | AG73: 13.182567 | AH73: 0.223392 | AI73: 0.157811 | AJ73: 0.155649 | AM73: 13.182567 | AN73: 0.064486 | AO73: 0.10101 | AP73: 0.066341 | AS73: 13.182567 | AT73: 0 | AU73: 0 | AV73: 0 | AY73: 13.182567 | AZ73: 0.094679 | BA73: 0.084482 | BB73: 0.069431 | BE73: 13.182567 | BF73: 0.062221 | BG73: 0.078291 | BH73: 0.070256 | BK73: 13.182567 | BL73: 0.06147 | BM73: 0.085352 | BN73: 0.071391 | BQ73: 13.182567 | BR73: 0.106888 | BS73: 0.11423 | BT73: 0 | BW73: 13.182567 | BX73: 0.036748 | BY73: 0.081592 | BZ73: 0.065691 | CC73: 13.182567 | CD73: 0.126844 | CE73: 0.080041 | CF73: 0.079728 | CJ73: 13.182567 | CK73: 0.1675936667 | CL73: 0.001181 | CM73: 0 | CN73: 0 | CO73: 0.2733816667 | CP73: 0.1789506667 | CQ73: 0.077279 | CR73: 0 | CS73: 0.082864 | CT73: 0.070256 | CU73: 0.07273766667 | CV73: 0.073706 | CW73: 0.06134366667 | CX73: 0.09553766667
B74: 15.135612 | C74: 0.037236 | D74: 0.267775 | E74: 0.239319 | H74: 15.135612 | I74: 0 | J74: 0 | K74: 0 | N74: 15.135612 | O74: 0 | P74: 0 | Q74: 0 | U74: 15.135612 | V74: 0 | W74: 0 | X74: 0 | AA74: 15.135612 | AB74: 0.262361 | AC74: 0.221694 | AD74: 0.350173 | AG74: 15.135612 | AH74: 0.220527 | AI74: 0.156018 | AJ74: 0.150467 | AM74: 15.135612 | AN74: 0.076508 | AO74: 0.11253 | AP74: 0.078286 | AS74: 15.135612 | AT74: 0 | AU74: 0 | AV74: 0 | AY74: 15.135612 | AZ74: 0.098675 | BA74: 0.08751 | BB74: 0.069564 | BE74: 15.135612 | BF74: 0.067934 | BG74: 0.08521 | BH74: 0.076572 | BK74: 15.135612 | BL74: 0.042573 | BM74: 0.08647 | BN74: 0.073825 | BQ74: 15.135612 | BR74: 0.112359 | BS74: 0.113172 | BT74: 0 | BW74: 15.135612 | BX74: 0.065393 | BY74: 0.098765 | BZ74: 0.081024 | CC74: 15.135612 | CD74: 0.13416 | CE74: 0.085716 | CF74: 0.081843 | CJ74: 15.135612 | CK74: 0.1814433333 | CL74: 0 | CM74: 0 | CN74: 0 | CO74: 0.278076 | CP74: 0.1756706667 | CQ74: 0.089108 | CR74: 0 | CS74: 0.08524966667 | CT74: 0.076572 | CU74: 0.06762266667 | CV74: 0.075177 | CW74: 0.08172733333 | CX74: 0.100573
B75: 17.378008 | C75: 0.07204 | D75: 0.287279 | E75: 0.257805 | H75: 17.378008 | I75: 0.025344 | J75: 0.050378 | K75: 0 | N75: 17.378008 | O75: 0 | P75: 0 | Q75: 0 | U75: 17.378008 | V75: 0 | W75: 0 | X75: 0 | AA75: 17.378008 | AB75: 0.268666 | AC75: 0.225315 | AD75: 0.360507 | AG75: 17.378008 | AH75: 0.22173 | AI75: 0.157278 | AJ75: 0.14876 | AM75: 17.378008 | AN75: 0.088953 | AO75: 0.127838 | AP75: 0.090437 | AS75: 17.378008 | AT75: 0 | AU75: 0 | AV75: 0 | AY75: 17.378008 | AZ75: 0.113042 | BA75: 0.100124 | BB75: 0.078222 | BE75: 17.378008 | BF75: 0.075996 | BG75: 0.094596 | BH75: 0.085296 | BK75: 17.378008 | BL75: 0.056443 | BM75: 0.090823 | BN75: 0.078302 | BQ75: 17.378008 | BR75: 0.129075 | BS75: 0.122596 | BT75: 0 | BW75: 17.378008 | BX75: 0.086202 | BY75: 0.1197 | BZ75: 0.09942 | CC75: 17.378008 | CD75: 0.146012 | CE75: 0.09425 | CF75: 0.106146 | CJ75: 17.378008 | CK75: 0.205708 | CL75: 0.02524066667 | CM75: 0 | CN75: 0 | CO75: 0.2848293333 | CP75: 0.1759226667 | CQ75: 0.1024093333 | CR75: 0 | CS75: 0.09712933333 | CT75: 0.085296 | CU75: 0.07518933333 | CV75: 0.08389033333 | CW75: 0.101774 | CX75: 0.1154693333
B76: 19.952623 | C76: 0.096129 | D76: 0.304505 | E76: 0.274053 | H76: 19.952623 | I76: 0.090036 | J76: 0.113601 | K76: 0.040713 | N76: 19.952623 | O76: 0.009705 | P76: 0 | Q76: 0 | U76: 19.952623 | V76: 0 | W76: 0 | X76: 0 | AA76: 19.952623 | AB76: 0.276505 | AC76: 0.228605 | AD76: 0.371207 | AG76: 19.952623 | AH76: 0.22713 | AI76: 0.161627 | AJ76: 0.151105 | AM76: 19.952623 | AN76: 0.104098 | AO76: 0.144019 | AP76: 0.105173 | AS76: 19.952623 | AT76: 0 | AU76: 0 | AV76: 0 | AY76: 19.952623 | AZ76: 0.138387 | BA76: 0.123108 | BB76: 0.096617 | BE76: 19.952623 | BF76: 0.085062 | BG76: 0.104805 | BH76: 0.094934 | BK76: 19.952623 | BL76: 0.071271 | BM76: 0.098196 | BN76: 0.084008 | BQ76: 19.952623 | BR76: 0.1578 | BS76: 0.144734 | BT76: 0.029084 | BW76: 19.952623 | BX76: 0.107171 | BY76: 0.145152 | BZ76: 0.121833 | CC76: 19.952623 | CD76: 0.16043 | CE76: 0.103554 | CF76: 0.123951 | CJ76: 19.952623 | CK76: 0.2248956667 | CL76: 0.08145 | CM76: 0.003235 | CN76: 0 | CO76: 0.2921056667 | CP76: 0.179954 | CQ76: 0.1177633333 | CR76: 0 | CS76: 0.1193706667 | CT76: 0.09493366667 | CU76: 0.08449166667 | CV76: 0.1105393333 | CW76: 0.1247186667 | CX76: 0.1293116667
B77: 22.908677 | C77: 0.105304 | D77: 0.312851 | E77: 0.281855 | H77: 22.908677 | I77: 0.149685 | J77: 0.160131 | K77: 0.114915 | N77: 22.908677 | O77: 0.03086 | P77: 0 | Q77: 0 | U77: 22.908677 | V77: 0 | W77: 0 | X77: 0 | AA77: 22.908677 | AB77: 0.283501 | AC77: 0.230146 | AD77: 0.379016 | AG77: 22.908677 | AH77: 0.236052 | AI77: 0.168448 | AJ77: 0.157344 | AM77: 22.908677 | AN77: 0.115427 | AO77: 0.156194 | AP77: 0.11603 | AS77: 22.908677 | AT77: 0 | AU77: 0 | AV77: 0 | AY77: 22.908677 | AZ77: 0.171506 | BA77: 0.153756 | BB77: 0.122992 | BE77: 22.908677 | BF77: 0.092649 | BG77: 0.112979 | BH77: 0.102814 | BK77: 22.908677 | BL77: 0.078355 | BM77: 0.107415 | BN77: 0.089427 | BQ77: 22.908677 | BR77: 0.194895 | BS77: 0.178196 | BT77: 0.081458 | BW77: 22.908677 | BX77: 0.126878 | BY77: 0.165416 | BZ77: 0.139796 | CC77: 22.908677 | CD77: 0.173439 | CE77: 0.110023 | CF77: 0.131282 | CJ77: 22.908677 | CK77: 0.2333366667 | CL77: 0.141577 | CM77: 0.01028666667 | CN77: 0 | CO77: 0.2975543333 | CP77: 0.1872813333 | CQ77: 0.129217 | CR77: 0 | CS77: 0.149418 | CT77: 0.102814 | CU77: 0.09173233333 | CV77: 0.1515163333 | CW77: 0.14403 | CX77: 0.138248
B78: 26.30268 | C78: 0.103078 | D78: 0.306658 | E78: 0.275863 | H78: 26.30268 | I78: 0.202049 | J78: 0.218369 | K78: 0.162521 | N78: 26.30268 | O78: 0.044275 | P78: 0 | Q78: 0 | U78: 26.30268 | V78: 0 | W78: 0 | X78: 0 | AA78: 26.30268 | AB78: 0.287371 | AC78: 0.229218 | AD78: 0.38123 | AG78: 26.30268 | AH78: 0.247638 | AI78: 0.176962 | AJ78: 0.166647 | AM78: 26.30268 | AN78: 0.119596 | AO78: 0.159593 | AP78: 0.119697 | AS78: 26.30268 | AT78: 0 | AU78: 0 | AV78: 0 | AY78: 26.30268 | AZ78: 0.206761 | BA78: 0.187002 | BB78: 0.153339 | BE78: 26.30268 | BF78: 0.09631 | BG78: 0.116448 | BH78: 0.106379 | BK78: 26.30268 | BL78: 0.090421 | BM78: 0.116978 | BN78: 0.09308 | BQ78: 26.30268 | BR78: 0.233774 | BS78: 0.218429 | BT78: 0.114473 | BW78: 26.30268 | BX78: 0.132643 | BY78: 0.173061 | BZ78: 0.145628 | CC78: 26.30268 | CD78: 0.180832 | CE78: 0.110485 | CF78: 0.134064 | CJ78: 26.30268 | CK78: 0.228533 | CL78: 0.194313 | CM78: 0.01475833333 | CN78: 0 | CO78: 0.299273 | CP78: 0.1970823333 | CQ78: 0.132962 | CR78: 0 | CS78: 0.1823673333 | CT78: 0.106379 | CU78: 0.1001596667 | CV78: 0.188892 | CW78: 0.150444 | CX78: 0.1417936667
B79: 30.199517 | C79: 0.07405 | D79: 0.283487 | E79: 0.253653 | H79: 30.199517 | I79: 0.240059 | J79: 0.258312 | K79: 0.211351 | N79: 30.199517 | O79: 0.056563 | P79: 0 | Q79: 0 | U79: 30.199517 | V79: 0 | W79: 0 | X79: 0 | AA79: 30.199517 | AB79: 0.28661 | AC79: 0.226523 | AD79: 0.376696 | AG79: 30.199517 | AH79: 0.260688 | AI79: 0.186133 | AJ79: 0.177231 | AM79: 30.199517 | AN79: 0.111637 | AO79: 0.15115 | AP79: 0.111236 | AS79: 30.199517 | AT79: 0 | AU79: 0 | AV79: 0 | AY79: 30.199517 | AZ79: 0.234832 | BA79: 0.214117 | BB79: 0.180139 | BE79: 30.199517 | BF79: 0.094166 | BG79: 0.113411 | BH79: 0.103789 | BK79: 30.199517 | BL79: 0.100421 | BM79: 0.124948 | BN79: 0.093821 | BQ79: 30.199517 | BR79: 0.263452 | BS79: 0.255658 | BT79: 0.148992 | BW79: 30.199517 | BX79: 0.128641 | BY79: 0.158841 | BZ79: 0.134395 | CC79: 30.199517 | CD79: 0.178942 | CE79: 0.101451 | CF79: 0.128729 | CJ79: 30.199517 | CK79: 0.20373 | CL79: 0.236574 | CM79: 0.01885433333 | CN79: 0 | CO79: 0.2966096667 | CP79: 0.2080173333 | CQ79: 0.1246743333 | CR79: 0 | CS79: 0.209696 | CT79: 0.1037886667 | CU79: 0.1063966667 | CV79: 0.2227006667 | CW79: 0.1406256667 | CX79: 0.136374
B80: 34.673685 | C80: 0.021797 | D80: 0.247125 | E80: 0.218488 | H80: 34.673685 | I80: 0.24169 | J80: 0.262881 | K80: 0.2306 | N80: 34.673685 | O80: 0.057654 | P80: 0 | Q80: 0 | U80: 34.673685 | V80: 0 | W80: 0 | X80: 0 | AA80: 34.673685 | AB80: 0.282083 | AC80: 0.224976 | AD80: 0.367744 | AG80: 34.673685 | AH80: 0.274667 | AI80: 0.195455 | AJ80: 0.187046 | AM80: 34.673685 | AN80: 0.095108 | AO80: 0.130456 | AP80: 0.093759 | AS80: 34.673685 | AT80: 0 | AU80: 0 | AV80: 0 | AY80: 34.673685 | AZ80: 0.246504 | BA80: 0.226154 | BB80: 0.195261 | BE80: 34.673685 | BF80: 0.086378 | BG80: 0.104619 | BH80: 0.095499 | BK80: 34.673685 | BL80: 0.107048 | BM80: 0.130227 | BN80: 0.091853 | BQ80: 34.673685 | BR80: 0.27279 | BS80: 0.278104 | BT80: 0.163219 | BW80: 34.673685 | BX80: 0.070663 | BY80: 0.123636 | BZ80: 0.096602 | CC80: 34.673685 | CD80: 0.167141 | CE80: 0.086308 | CF80: 0.10554 | CJ80: 34.673685 | CK80: 0.16247 | CL80: 0.245057 | CM80: 0.019218 | CN80: 0 | CO80: 0.291601 | CP80: 0.219056 | CQ80: 0.106441 | CR80: 0 | CS80: 0.2226396667 | CT80: 0.09549866667 | CU80: 0.1097093333 | CV80: 0.2380376667 | CW80: 0.096967 | CX80: 0.119663
B81: 39.810717 | C81: 0 | D81: 0.211064 | E81: 0.182547 | H81: 39.810717 | I81: 0.197408 | J81: 0.221096 | K81: 0.213011 | N81: 39.810717 | O81: 0.035966 | P81: 0 | Q81: 0 | U81: 39.810717 | V81: 0 | W81: 0 | X81: 0 | AA81: 39.810717 | AB81: 0.278307 | AC81: 0.230154 | AD81: 0.361756 | AG81: 39.810717 | AH81: 0.289571 | AI81: 0.204928 | AJ81: 0.193875 | AM81: 39.810717 | AN81: 0.065599 | AO81: 0.106126 | AP81: 0.062995 | AS81: 39.810717 | AT81: 0 | AU81: 0 | AV81: 0 | AY81: 39.810717 | AZ81: 0.235174 | BA81: 0.216219 | BB81: 0.191766 | BE81: 39.810717 | BF81: 0.076442 | BG81: 0.094834 | BH81: 0.085638 | BK81: 39.810717 | BL81: 0.107863 | BM81: 0.133271 | BN81: 0.089496 | BQ81: 39.810717 | BR81: 0.253528 | BS81: 0.274156 | BT81: 0.148641 | BW81: 39.810717 | BX81: 0 | BY81: 0.061344 | BZ81: 0.033743 | CC81: 39.810717 | CD81: 0.150141 | CE81: 0.062486 | CF81: 0.067308 | CJ81: 39.810717 | CK81: 0.1312036667 | CL81: 0.210505 | CM81: 0.01198866667 | CN81: 0 | CO81: 0.2900723333 | CP81: 0.229458 | CQ81: 0.07824 | CR81: 0 | CS81: 0.2143863333 | CT81: 0.085638 | CU81: 0.11021 | CV81: 0.2254416667 | CW81: 0.03169566667 | CX81: 0.09331166667
B82: 45.708819 | C82: 0 | D82: 0.19891 | E82: 0.16723 | H82: 45.708819 | I82: 0.104045 | J82: 0.124718 | K82: 0.136991 | N82: 45.708819 | O82: 0 | P82: 0 | Q82: 0 | U82: 45.708819 | V82: 0 | W82: 0 | X82: 0 | AA82: 45.708819 | AB82: 0.284156 | AC82: 0.249998 | AD82: 0.371627 | AG82: 45.708819 | AH82: 0.306598 | AI82: 0.215588 | AJ82: 0.196331 | AM82: 45.708819 | AN82: 0.01855 | AO82: 0.086868 | AP82: 0.015862 | AS82: 45.708819 | AT82: 0 | AU82: 0 | AV82: 0 | AY82: 45.708819 | AZ82: 0.201931 | BA82: 0.184301 | BB82: 0.168298 | BE82: 45.708819 | BF82: 0.071946 | BG82: 0.093584 | BH82: 0.082765 | BK82: 45.708819 | BL82: 0.103154 | BM82: 0.137391 | BN82: 0.091768 | BQ82: 45.708819 | BR82: 0.20611 | BS82: 0.23751 | BT82: 0.090524 | BW82: 45.708819 | BX82: 0 | BY82: 0 | BZ82: 0 | CC82: 45.708819 | CD82: 0.139733 | CE82: 0.027033 | CF82: 0.058689 | CJ82: 45.708819 | CK82: 0.1220466667 | CL82: 0.121918 | CM82: 0 | CN82: 0 | CO82: 0.301927 | CP82: 0.2395056667 | CQ82: 0.04042666667 | CR82: 0 | CS82: 0.1848433333 | CT82: 0.082765 | CU82: 0.110771 | CV82: 0.178048 | CW82: 0 | CX82: 0.07515166667
B83: 52.480746 | C83: 0 | D83: 0.243259 | E83: 0.202126 | H83: 52.480746 | I83: 0 | J83: 0 | K83: 0 | N83: 52.480746 | O83: 0 | P83: 0 | Q83: 0 | U83: 52.480746 | V83: 0 | W83: 0 | X83: 0 | AA83: 52.480746 | AB83: 0.312541 | AC83: 0.293502 | AD83: 0.414809 | AG83: 52.480746 | AH83: 0.327996 | AI83: 0.229427 | AJ83: 0.194607 | AM83: 52.480746 | AN83: 0.02361 | AO83: 0.079843 | AP83: 0.018357 | AS83: 52.480746 | AT83: 0 | AU83: 0 | AV83: 0 | AY83: 52.480746 | AZ83: 0.160086 | BA83: 0.141688 | BB83: 0.133137 | BE83: 52.480746 | BF83: 0.084692 | BG83: 0.115085 | BH83: 0.099888 | BK83: 52.480746 | BL83: 0.096824 | BM83: 0.149483 | BN83: 0.106417 | BQ83: 52.480746 | BR83: 0.145078 | BS83: 0.173838 | BT83: 0 | BW83: 52.480746 | BX83: 0 | BY83: 0 | BZ83: 0.00102 | CC83: 52.480746 | CD83: 0.155561 | CE83: 0.03908 | CF83: 0.068881 | CJ83: 52.480746 | CK83: 0.1484616667 | CL83: 0 | CM83: 0 | CN83: 0 | CO83: 0.340284 | CP83: 0.2506766667 | CQ83: 0.04060333333 | CR83: 0 | CS83: 0.1449703333 | CT83: 0.09988833333 | CU83: 0.1175746667 | CV83: 0.1063053333 | CW83: 0.00034 | CX83: 0.08784066667
B84: 60.255959 | C84: 0.09874 | D84: 0.38008 | E84: 0.319825 | H84: 60.255959 | I84: 0 | J84: 0 | K84: 0 | N84: 60.255959 | O84: 0 | P84: 0 | Q84: 0 | U84: 60.255959 | V84: 0 | W84: 0 | X84: 0 | AA84: 60.255959 | AB84: 0.378426 | AC84: 0.368339 | AD84: 0.509993 | AG84: 60.255959 | AH84: 0.356917 | AI84: 0.249259 | AJ84: 0.191442 | AM84: 60.255959 | AN84: 0.099165 | AO84: 0.157476 | AP84: 0.081298 | AS84: 60.255959 | AT84: 0 | AU84: 0 | AV84: 0 | AY84: 60.255959 | AZ84: 0.138287 | BA84: 0.114272 | BB84: 0.107617 | BE84: 60.255959 | BF84: 0.129309 | BG84: 0.176378 | BH84: 0.152844 | BK84: 60.255959 | BL84: 0.097843 | BM84: 0.180235 | BN84: 0.143113 | BQ84: 60.255959 | BR84: 0.102793 | BS84: 0.106516 | BT84: 0 | BW84: 60.255959 | BX84: 0 | BY84: 0.052365 | BZ84: 0.009181 | CC84: 60.255959 | CD84: 0.223328 | CE84: 0.122507 | CF84: 0.118389 | CJ84: 60.255959 | CK84: 0.266215 | CL84: 0 | CM84: 0 | CN84: 0 | CO84: 0.4189193333 | CP84: 0.2658726667 | CQ84: 0.1126463333 | CR84: 0 | CS84: 0.1200586667 | CT84: 0.1528436667 | CU84: 0.140397 | CV84: 0.06976966667 | CW84: 0.02051533333 | CX84: 0.1547413333
B85: 69.183097 | C85: 0.345801 | D85: 0.641687 | E85: 0.549353 | H85: 69.183097 | I85: 0 | J85: 0 | K85: 0 | N85: 69.183097 | O85: 0 | P85: 0 | Q85: 0 | U85: 69.183097 | V85: 0 | W85: 0 | X85: 0 | AA85: 69.183097 | AB85: 0.496091 | AC85: 0.478706 | AD85: 0.672987 | AG85: 69.183097 | AH85: 0.397212 | AI85: 0.278421 | AJ85: 0.192676 | AM85: 69.183097 | AN85: 0.212714 | AO85: 0.291667 | AP85: 0.183114 | AS85: 69.183097 | AT85: 0.060479 | AU85: 0.063933 | AV85: 0.042218 | AY85: 69.183097 | AZ85: 0.180154 | BA85: 0.142632 | BB85: 0.126877 | BE85: 69.183097 | BF85: 0.221082 | BG85: 0.294667 | BH85: 0.257874 | BK85: 69.183097 | BL85: 0.12079 | BM85: 0.243829 | BN85: 0.212349 | BQ85: 69.183097 | BR85: 0.129053 | BS85: 0.058203 | BT85: 0 | BW85: 69.183097 | BX85: 0.146874 | BY85: 0.253023 | BZ85: 0.19174 | CC85: 69.183097 | CD85: 0.37127 | CE85: 0.24886 | CF85: 0.268774 | CJ85: 69.183097 | CK85: 0.5122803333 | CL85: 0 | CM85: 0 | CN85: 0 | CO85: 0.5492613333 | CP85: 0.2894363333 | CQ85: 0.229165 | CR85: 0.05554333333 | CS85: 0.1498876667 | CT85: 0.2578743333 | CU85: 0.1923226667 | CV85: 0.06241866667 | CW85: 0.1972123333 | CX85: 0.2963013333
B86: 79.432823 | C86: 0.75409 | D86: 1.041582 | E86: 0.902426 | H86: 79.432823 | I86: 0 | J86: 0 | K86: 0 | N86: 79.432823 | O86: 0 | P86: 0 | Q86: 0 | U86: 79.432823 | V86: 0 | W86: 0 | X86: 0 | AA86: 79.432823 | AB86: 0.672479 | AC86: 0.62055 | AD86: 0.907614 | AG86: 79.432823 | AH86: 0.452017 | AI86: 0.319525 | AJ86: 0.207188 | AM86: 79.432823 | AN86: 0.39701 | AO86: 0.504887 | AP86: 0.352085 | AS86: 79.432823 | AT86: 0.208722 | AU86: 0.192979 | AV86: 0.134387 | AY86: 79.432823 | AZ86: 0.338514 | BA86: 0.277352 | BB86: 0.236544 | BE86: 79.432823 | BF86: 0.370537 | BG86: 0.480635 | BH86: 0.425586 | BK86: 79.432823 | BL86: 0.184726 | BM86: 0.355111 | BN86: 0.32215 | BQ86: 79.432823 | BR86: 0.285007 | BS86: 0.130948 | BT86: 0 | BW86: 79.432823 | BX86: 0.457776 | BY86: 0.612792 | BZ86: 0.50441 | CC86: 79.432823 | CD86: 0.620657 | CE86: 0.451207 | CF86: 0.504192 | CJ86: 79.432823 | CK86: =AVERAGE(C86:E86) -> 0.899366 | CL86: =AVERAGE(I86:K86) -> 0 | CM86: =AVERAGE(O86:Q86) -> 0 | CN86: =AVERAGE(V86:X86) -> 0 | CO86: =AVERAGE(AB86:AD86) -> 0.7335476667 | CP86: =AVERAGE(AH86:AJ86) -> 0.3262433333 | CQ86: =AVERAGE(AN86:AP86) -> 0.417994 | CR86: =AVERAGE(AT86:AV86) -> 0.178696 | CS86: =AVERAGE(AZ86:BB86) -> 0.2841366667 | CT86: =AVERAGE(BF86:BH86) -> 0.425586 | CU86: =AVERAGE(BL86:BN86) -> 0.287329 | CV86: =AVERAGE(BR86:BT86) -> 0.1386516667 | CW86: =AVERAGE(BX86:BZ86) -> 0.5249926667 | CX86: 0.525352
B87: 91.201084 | C87: 1.331524 | D87: 1.576042 | E87: 1.374492 | H87: 91.201084 | I87: 0.085827 | J87: 0.061981 | K87: 0.006016 | N87: 91.201084 | O87: 0.186144 | P87: 0.35143 | Q87: 0.211102 | U87: 91.201084 | V87: 0.35143 | W87: 0.494182 | X87: 0.211102 | AA87: 91.201084 | AB87: 0.907744 | AC87: 0.784289 | AD87: 1.206927 | AG87: 91.201084 | AH87: 0.524924 | AI87: 0.375059 | AJ87: 0.246418 | AM87: 91.201084 | AN87: 0.659357 | AO87: 0.802326 | AP87: 0.592686 | AS87: 91.201084 | AT87: 0.481756 | AU87: 0.421455 | AV87: 0.281429 | AY87: 91.201084 | AZ87: 0.669514 | BA87: 0.573453 | BB87: 0.488161 | BE87: 91.201084 | BF87: 0.583726 | BG87: 0.739082 | BH87: 0.661404 | BK87: 91.201084 | BL87: 0.312941 | BM87: 0.530415 | BN87: 0.479319 | BQ87: 91.201084 | BR87: 0.63548 | BS87: 0.362197 | BT87: 0.096719 | BW87: 91.201084 | BX87: 0.922999 | BY87: 1.155984 | BZ87: 0.967916 | CC87: 91.201084 | CD87: 0.984829 | CE87: 0.741234 | CF87: 0.842941 | CJ87: 91.201084 | CK87: 1.427352667 | CL87: 0.05127466667 | CM87: 0.2495586667 | CN87: 0.352238 | CO87: 0.96632 | CP87: 0.3821336667 | CQ87: 0.6847896667 | CR87: 0.39488 | CS87: 0.5770426667 | CT87: 0.661404 | CU87: 0.4408916667 | CV87: 0.3647986667 | CW87: 1.015633 | CX87: =AVERAGE(CD87:CF87) -> 0.8563346667
B88: 104.712855 | C88: 2.039197 | D88: 2.198755 | E88: 1.922366 | H88: 104.712855 | I88: 0.580488 | J88: 0.503401 | K88: 0.313479 | N88: 104.712855 | O88: 0.962262 | P88: 1.418125 | Q88: 1.144717 | U88: 104.712855 | V88: 1.418125 | W88: 2.113633 | X88: 1.144717 | AA88: 104.712855 | AB88: 1.183548 | AC88: 0.949098 | AD88: 1.539136 | AG88: 104.712855 | AH88: 0.617198 | AI88: 0.445096 | AJ88: 0.321353 | AM88: 104.712855 | AN88: 0.976172 | AO88: 1.157793 | AP88: 0.8801 | AS88: 104.712855 | AT88: 0.770805 | AU88: 0.662352 | AV88: 0.417659 | AY88: 104.712855 | AZ88: 1.208117 | BA88: 1.067973 | BB88: 0.919811 | BE88: 104.712855 | BF88: 0.851697 | BG88: 1.056116 | BH88: 0.953907 | BK88: 104.712855 | BL88: 0.525499 | BM88: 0.778732 | BN88: 0.682651 | BQ88: 104.712855 | BR88: 1.221664 | BS88: 0.806018 | BT88: 0.526096 | BW88: 104.712855 | BX88: 1.546073 | BY88: 1.863871 | BZ88: 1.57324 | CC88: 104.712855 | CD88: 1.449073 | CE88: 1.100512 | CF88: 1.277463 | CJ88: 104.712855 | CK88: 2.053439333 | CL88: 0.4657893333 | CM88: 1.175034667 | CN88: 1.558825 | CO88: 1.223927333 | CP88: 0.4612156667 | CQ88: 1.004688333 | CR88: 0.6169386667 | CS88: 1.065300333 | CT88: 0.9539066667 | CU88: 0.662294 | CV88: 0.8512593333 | CW88: 1.661061333 | CX88: 1.275682667
B89: 120.226443 | C89: 2.825401 | D89: 2.855276 | E89: 2.495011 | H89: 120.226443 | I89: 1.566926 | J89: 1.468865 | K89: 1.096708 | N89: 120.226443 | O89: 2.200658 | P89: 3.106142 | Q89: 2.78636 | U89: 120.226443 | V89: 3.106142 | W89: 3.996083 | X89: 2.78636 | AA89: 120.226443 | AB89: 1.477664 | AC89: 1.09605 | AD89: 1.867457 | AG89: 120.226443 | AH89: 0.733628 | AI89: 0.531664 | AJ89: 0.443556 | AM89: 120.226443 | AN89: 1.323073 | AO89: 1.544677 | AP89: 1.185973 | AS89: 120.226443 | AT89: 1.092964 | AU89: 0.933007 | AV89: 0.564577 | AY89: 120.226443 | AZ89: 1.978078 | BA89: 1.788164 | BB89: 1.562333 | BE89: 120.226443 | BF89: 1.163987 | BG89: 1.415186 | BH89: 1.289586 | BK89: 120.226443 | BL89: 0.845563 | BM89: 1.11218 | BN89: 0.934109 | BQ89: 120.226443 | BR89: 2.07029 | BS89: 1.520674 | BT89: 1.262117 | BW89: 120.226443 | BX89: 2.291021 | BY89: 2.691607 | BZ89: 2.275153 | CC89: 120.226443 | CD89: 1.990352 | CE89: 1.509527 | CF89: 1.782034 | CJ89: 120.226443 | CK89: 2.725229333 | CL89: 1.377499667 | CM89: 2.69772 | CN89: 3.296195 | CO89: 1.480390333 | CP89: 0.569616 | CQ89: 1.351241 | CR89: 0.863516 | CS89: 1.776191667 | CT89: 1.289586333 | CU89: 0.9639506667 | CV89: 1.617693667 | CW89: 2.419260333 | CX89: 1.760637667
B90: 138.038426 | C90: 3.583282 | D90: 3.450433 | E90: 3.006042 | H90: 138.038426 | I90: 3.010794 | J90: 2.950159 | K90: 2.316011 | N90: 138.038426 | O90: 3.7638 | P90: 5.340372 | Q90: 5.009973 | U90: 138.038426 | V90: 5.340372 | W90: 6.340093 | X90: 5.009973 | AA90: 138.038426 | AB90: 1.748771 | AC90: 1.203388 | AD90: 2.135267 | AG90: 138.038426 | AH90: 0.877057 | AI90: 0.634954 | AJ90: 0.616404 | AM90: 138.038426 | AN90: 1.654708 | AO90: 1.914964 | AP90: 1.461854 | AS90: 138.038426 | AT90: 1.382475 | AU90: 1.186188 | AV90: 0.693589 | AY90: 138.038426 | AZ90: 2.938099 | BA90: 2.700428 | BB90: 2.392753 | BE90: 138.038426 | BF90: 1.492284 | BG90: 1.777975 | BH90: 1.635129 | BK90: 138.038426 | BL90: 1.27847 | BM90: 1.526 | BN90: 1.22613 | BQ90: 138.038426 | BR90: 3.134093 | BS90: 2.486302 | BT90: 2.257023 | BW90: 138.038426 | BX90: 3.06961 | BY90: 3.53209 | BZ90: 2.980318 | CC90: 138.038426 | CD90: 2.545569 | CE90: 1.921361 | CF90: 2.297531 | CJ90: 138.038426 | CK90: 3.346585667 | CL90: 2.758988 | CM90: 4.704715 | CN90: 5.563479333 | CO90: 1.695808667 | CP90: 0.7094716667 | CQ90: 1.677175333 | CR90: 1.087417333 | CS90: 2.677093333 | CT90: 1.635129333 | CU90: 1.343533333 | CV90: 2.625806 | CW90: 3.194006 | CX90: 2.254820333
B91: 158.489319 | C91: 4.229449 | D91: 3.916694 | E91: 3.394571 | H91: 158.489319 | I91: 4.88489 | J91: 4.931992 | K91: 3.993508 | N91: 158.489319 | O91: 5.572389 | P91: 7.904408 | Q91: 7.631308 | U91: 158.489319 | V91: 7.904408 | W91: 8.729028 | X91: 7.631308 | AA91: 158.489319 | AB91: 1.966909 | AC91: 1.264954 | AD91: 2.302772 | AG91: 158.489319 | AH91: 1.061397 | AI91: 0.763625 | AJ91: 0.845418 | AM91: 158.489319 | AN91: 1.946109 | AO91: 2.244561 | AP91: 1.676954 | AS91: 158.489319 | AT91: 1.616588 | AU91: 1.415809 | AV91: 0.813148 | AY91: 158.489319 | AZ91: 4.045359 | BA91: 3.768834 | BB91: 3.385359 | BE91: 158.489319 | BF91: 1.822565 | BG91: 2.120889 | BH91: 1.971727 | BK91: 158.489319 | BL91: 1.839528 | BM91: 2.029623 | BN91: 1.568002 | BQ91: 158.489319 | BR91: 4.362299 | BS91: 3.678349 | BT91: 3.491705 | BW91: 158.489319 | BX91: 3.806012 | BY91: 4.293008 | BZ91: 3.607981 | CC91: 158.489319 | CD91: 3.063035 | CE91: 2.305627 | CF91: 2.775838 | CJ91: 158.489319 | CK91: 3.846904667 | CL91: 4.603463333 | CM91: 7.036035 | CN91: 8.088248 | CO91: 1.844878333 | CP91: 0.8901466667 | CQ91: 1.955874667 | CR91: 1.281848333 | CS91: 3.733184 | CT91: 1.971727 | CU91: 1.812384333 | CV91: 3.844117667 | CW91: 3.902333667 | CX91: 2.714833333
B92: 181.970086 | C92: 4.658363 | D92: 4.18202 | E92: 3.599849 | H92: 181.970086 | I92: 6.933088 | J92: 7.142007 | K92: 5.929014 | N92: 181.970086 | O92: 7.358308 | P92: 10.317191 | Q92: 10.157174 | U92: 181.970086 | V92: 10.317191 | W92: 10.764286 | X92: 10.157174 | AA92: 181.970086 | AB92: 2.099241 | AC92: 1.287283 | AD92: 2.338966 | AG92: 181.970086 | AH92: 1.297934 | AI92: 0.926397 | AJ92: 1.120557 | AM92: 181.970086 | AN92: 2.175227 | AO92: 2.512405 | AP92: 1.808639 | AS92: 181.970086 | AT92: 1.774338 | AU92: 1.619534 | AV92: 0.941283 | AY92: 181.970086 | AZ92: 5.167404 | BA92: 4.86921 | BB92: 4.431063 | BE92: 181.970086 | BF92: 2.131365 | BG92: 2.410367 | BH92: 2.270866 | BK92: 181.970086 | BL92: 2.507652 | BM92: 2.605725 | BN92: 1.95988 | BQ92: 181.970086 | BR92: 5.604704 | BS92: 4.965295 | BT92: 4.821459 | BW92: 181.970086 | BX92: 4.388523 | BY92: 4.846065 | BZ92: 4.052593 | CC92: 181.970086 | CD92: 3.464618 | CE92: 2.622145 | CF92: 3.148137 | CJ92: 181.970086 | CK92: 4.146744 | CL92: 6.668036333 | CM92: 9.277557667 | CN92: 10.41288367 | CO92: 1.908496667 | CP92: 1.114962667 | CQ92: 2.165423667 | CR92: 1.445051667 | CS92: 4.822559 | CT92: 2.270866 | CU92: 2.357752333 | CV92: 5.130486 | CW92: 4.429060333 | CX92: 3.0783
B93: 208.929613 | C93: 4.826533 | D93: 4.231806 | E93: 3.614694 | H93: 208.929613 | I93: 8.913719 | J93: 9.302002 | K93: 7.92198 | N93: 208.929613 | O93: 8.923309 | P93: 12.16646 | Q93: 12.159177 | U93: 208.929613 | V93: 12.16646 | W93: 12.13037 | X93: 12.159177 | AA93: 208.929613 | AB93: 2.141221 | AC93: 1.300144 | AD93: 2.249695 | AG93: 208.929613 | AH93: 1.617792 | AI93: 1.149455 | AJ93: 1.444349 | AM93: 208.929613 | AN93: 2.363991 | AO93: 2.745035 | AP93: 1.877404 | AS93: 208.929613 | AT93: 1.880955 | AU93: 1.838297 | AV93: 1.130138 | AY93: 208.929613 | AZ93: 6.212406 | BA93: 5.913628 | BB93: 5.452304 | BE93: 208.929613 | BF93: 2.427368 | BG93: 2.646553 | BH93: 2.536961 | BK93: 208.929613 | BL93: 3.287361 | BM93: 3.266654 | BN93: 2.432973 | BQ93: 208.929613 | BR93: 6.757686 | BS93: 6.248393 | BT93: 6.140335 | BW93: 208.929613 | BX93: 4.764735 | BY93: 5.12717 | BZ93: 4.268828 | CC93: 208.929613 | CD93: 3.712621 | CE93: 2.872843 | CF93: 3.38811 | CJ93: 208.929613 | CK93: 4.224344333 | CL93: 8.712567 | CM93: 11.082982 | CN93: 12.15200233 | CO93: 1.89702 | CP93: 1.403865333 | CQ93: 2.32881 | CR93: 1.616463333 | CS93: 5.859446 | CT93: 2.536960667 | CU93: 2.995662667 | CV93: 6.382138 | CW93: 4.720244333 | CX93: 3.324524667
B94: 239.883292 | C94: 4.724014 | D94: 4.09004 | E94: 3.472408 | H94: 239.883292 | I94: 10.43415 | J94: 10.955104 | K94: 9.595855 | N94: 239.883292 | O94: 9.987551 | P94: 12.994473 | Q94: 13.143969 | U94: 239.883292 | V94: 12.994473 | W94: 12.545979 | X94: 13.143969 | AA94: 239.883292 | AB94: 2.110304 | AC94: 1.350876 | AD94: 2.081895 | AG94: 239.883292 | AH94: 2.038944 | AI94: 1.454883 | AJ94: 1.803387 | AM94: 239.883292 | AN94: 2.552782 | AO94: 2.984347 | AP94: 1.93635 | AS94: 239.883292 | AT94: 1.988145 | AU94: 2.124501 | AV94: 1.439209 | AY94: 239.883292 | AZ94: 7.027788 | BA94: 6.74935 | BB94: 6.305188 | BE94: 239.883292 | BF94: 2.717462 | BG94: 2.834534 | BH94: 2.775998 | BK94: 239.883292 | BL94: 4.128298 | BM94: 3.983091 | BN94: 2.996958 | BQ94: 239.883292 | BR94: 7.65261 | BS94: 7.340342 | BT94: 7.254515 | BW94: 239.883292 | BX94: 4.89866 | BY94: 5.101695 | BZ94: 4.245654 | CC94: 239.883292 | CD94: 3.782057 | CE94: 3.072857 | CF94: 3.485908 | CJ94: 239.883292 | CK94: 4.095487333 | CL94: 10.32836967 | CM94: 12.04199767 | CN94: 12.894807 | CO94: 1.847691667 | CP94: 1.765738 | CQ94: 2.491159667 | CR94: 1.850618333 | CS94: 6.694108667 | CT94: 2.775998 | CU94: 3.702782333 | CV94: 7.415822333 | CW94: 4.748669667 | CX94: 3.446940667
B95: 275.42287 | C95: 4.401561 | D95: 3.82546 | E95: 3.248856 | H95: 275.42287 | I95: 11.257462 | J95: 11.809159 | K95: 10.699033 | N95: 275.42287 | O95: 10.42134 | P95: 12.62402 | Q95: 12.908652 | U95: 275.42287 | V95: 12.62402 | W95: 11.958058 | X95: 12.908652 | AA95: 275.42287 | AB95: 2.056092 | AC95: 1.502537 | AD95: 1.914908 | AG95: 275.42287 | AH95: 2.600404 | AI95: 1.886042 | AJ95: 2.212075 | AM95: 275.42287 | AN95: 2.817821 | AO95: 3.307962 | AP95: 2.077451 | AS95: 275.42287 | AT95: 2.182397 | AU95: 2.558699 | AV95: 1.947607 | AY95: 275.42287 | AZ95: 7.544169 | BA95: 7.30224 | BB95: 6.919058 | BE95: 275.42287 | BF95: 3.040818 | BG95: 3.013245 | BH95: 3.027031 | BK95: 275.42287 | BL95: 5.015869 | BM95: 4.757725 | BN95: 3.688717 | BQ95: 275.42287 | BR95: 8.212936 | BS95: 8.139123 | BT95: 8.065064 | BW95: 275.42287 | BX95: 4.825019 | BY95: 4.809769 | BZ95: 4.041653 | CC95: 275.42287 | CD95: 3.700481 | CE95: 3.281509 | CF95: 3.485206 | CJ95: 275.42287 | CK95: 3.825292333 | CL95: 11.255218 | CM95: 11.98467067 | CN95: 12.49691 | CO95: 1.824512333 | CP95: 2.232840333 | CQ95: 2.734411333 | CR95: 2.229567667 | CS95: 7.255155667 | CT95: 3.027031333 | CU95: 4.487437 | CV95: 8.139041 | CW95: 4.558813667 | CX95: 3.489065333
B96: 316.227766 | C96: 3.969636 | D96: 3.547027 | E96: 3.057458 | H96: 316.227766 | I96: 11.218878 | J96: 11.664002 | K96: 11.009819 | N96: 316.227766 | O96: 10.165461 | P96: 11.135074 | Q96: 11.5098 | U96: 316.227766 | V96: 11.135074 | W96: 10.50247 | X96: 11.5098 | AA96: 316.227766 | AB96: 2.056585 | AC96: 1.813457 | AD96: 1.861358 | AG96: 316.227766 | AH96: 3.304081 | AI96: 2.464576 | AJ96: 2.675215 | AM96: 316.227766 | AN96: 3.226148 | AO96: 3.775931 | AP96: 2.400397 | AS96: 316.227766 | AT96: 2.547735 | AU96: 3.190344 | AV96: 2.694121 | AY96: 316.227766 | AZ96: 7.704834 | BA96: 7.506435 | BB96: 7.223878 | BE96: 316.227766 | BF96: 3.425822 | BG96: 3.225398 | BH96: 3.32561 | BK96: 316.227766 | BL96: 5.8768 | BM96: 5.538437 | BN96: 4.49374 | BQ96: 316.227766 | BR96: 8.373509 | BS96: 8.534492 | BT96: 8.472687 | BW96: 316.227766 | BX96: 4.624957 | BY96: 4.359696 | BZ96: 3.773231 | CC96: 316.227766 | CD96: 3.537837 | CE96: 3.563313 | CF96: 3.464638 | CJ96: 316.227766 | CK96: 3.524707 | CL96: 11.29756633 | CM96: 10.93677833 | CN96: 11.04911467 | CO96: 1.910466667 | CP96: 2.814624 | CQ96: 3.134158667 | CR96: 2.810733333 | CS96: 7.478382333 | CT96: 3.32561 | CU96: 5.302992333 | CV96: 8.460229333 | CW96: 4.252628 | CX96: 3.521929333
B97: 363.078055 | C97: 3.554213 | D97: 3.359626 | E97: 3.007546 | H97: 363.078055 | I97: 10.35526 | J97: 10.561804 | K97: 10.505996 | N97: 363.078055 | O97: 9.294027 | P97: 8.83165 | Q97: 9.246643 | U97: 363.078055 | V97: 8.83165 | W97: 8.421523 | X97: 9.246643 | AA97: 363.078055 | AB97: 2.204235 | AC97: 2.339697 | AD97: 2.031216 | AG97: 363.078055 | AH97: 4.159193 | AI97: 3.223949 | AJ97: 3.229615 | AM97: 363.078055 | AN97: 3.839374 | AO97: 4.438108 | AP97: 3.000721 | AS97: 363.078055 | AT97: 3.161974 | AU97: 4.057413 | AV97: 3.706222 | AY97: 363.078055 | AZ97: 7.52902 | BA97: 7.375052 | BB97: 7.226932 | BE97: 363.078055 | BF97: 3.913122 | BG97: 3.52814 | BH97: 3.720631 | BK97: 363.078055 | BL97: 6.667918 | BM97: 6.291025 | BN97: 5.401706 | BQ97: 363.078055 | BR97: 8.147009 | BS97: 8.506299 | BT97: 8.476104 | BW97: 363.078055 | BX97: 4.406662 | BY97: 3.886722 | BZ97: 3.575913 | CC97: 363.078055 | CD97: 3.392809 | CE97: 3.989801 | CF97: 3.526181 | CJ97: 363.078055 | CK97: 3.307128333 | CL97: 10.47435333 | CM97: 9.124106667 | CN97: 8.833272 | CO97: 2.191716 | CP97: 3.537585667 | CQ97: 3.759401 | CR97: 3.641869667 | CS97: 7.377001333 | CT97: 3.720631 | CU97: 6.120216333 | CV97: 8.376470667 | CW97: 3.956432333 | CX97: 3.636263667
B98: 416.869383 | C98: 3.297176 | D98: 3.355784 | E98: 3.186535 | H98: 416.869383 | I98: 8.877292 | J98: 8.76998 | K98: 9.329916 | N98: 416.869383 | O98: 7.998858 | P98: 6.232919 | Q98: 6.642597 | U98: 416.869383 | V98: 6.232919 | W98: 6.09158 | X98: 6.642597 | AA98: 416.869383 | AB98: 2.581461 | AC98: 3.09264 | AD98: 2.501765 | AG98: 416.869383 | AH98: 5.110727 | AI98: 4.146545 | AJ98: 3.895237 | AM98: 416.869383 | AN98: 4.651636 | AO98: 5.266792 | AP98: 3.904954 | AS98: 416.869383 | AT98: 4.036605 | AU98: 5.111352 | AV98: 4.919688 | AY98: 416.869383 | AZ98: 7.083029 | BA98: 6.972446 | BB98: 6.978248 | BE98: 416.869383 | BF98: 4.508007 | BG98: 3.959301 | BH98: 4.233654 | BK98: 416.869383 | BL98: 7.305007 | BM98: 6.932223 | BN98: 6.329062 | BQ98: 416.869383 | BR98: 7.594778 | BS98: 8.084791 | BT98: 8.124467 | BW98: 416.869383 | BX98: 4.286251 | BY98: 3.550689 | BZ98: 3.582421 | CC98: 416.869383 | CD98: 3.378384 | CE98: 4.584728 | CF98: 3.763245 | CJ98: 416.869383 | CK98: 3.279831667 | CL98: 8.992396 | CM98: 6.958124667 | CN98: 6.322365333 | CO98: 2.725288667 | CP98: 4.384169667 | CQ98: 4.607794 | CR98: 4.689215 | CS98: 7.011241 | CT98: 4.233654 | CU98: 6.855430667 | CV98: 7.934678667 | CW98: 3.806453667 | CX98: 3.908785667
B99: 478.630092 | C99: 3.29839 | D99: 3.579985 | E99: 3.630865 | H99: 478.630092 | I99: 7.054027 | J99: 6.633455 | K99: 7.717931 | N99: 478.630092 | O99: 6.488189 | P99: 3.784658 | Q99: 4.150932 | U99: 478.630092 | V99: 3.784658 | W99: 3.796074 | X99: 4.150932 | AA99: 478.630092 | AB99: 3.247805 | AC99: 4.066847 | AD99: 3.300365 | AG99: 478.630092 | AH99: 6.098033 | AI99: 5.20982 | AJ99: 4.704663 | AM99: 478.630092 | AN99: 5.619737 | AO99: 6.192001 | AP99: 5.08692 | AS99: 478.630092 | AT99: 5.144063 | AU99: 6.273885 | AV99: 6.24881 | AY99: 478.630092 | AZ99: 6.453551 | BA99: 6.393218 | BB99: 6.560095 | BE99: 478.630092 | BF99: 5.207959 | BG99: 4.548361 | BH99: 4.87816 | BK99: 478.630092 | BL99: 7.731626 | BM99: 7.395038 | BN99: 7.188705 | BQ99: 478.630092 | BR99: 6.800389 | BS99: 7.343738 | BT99: 7.504828 | BW99: 478.630092 | BX99: 4.343786 | BY99: 3.467484 | BZ99: 3.87199 | CC99: 478.630092 | CD99: 3.585356 | CE99: 5.334875 | CF99: 4.235332 | CJ99: 478.630092 | CK99: 3.50308 | CL99: 7.135137667 | CM99: 4.807926333 | CN99: 3.910554667 | CO99: 3.538339 | CP99: 5.337505333 | CQ99: 5.632886 | CR99: 5.888919333 | CS99: 6.468954667 | CT99: 4.87816 | CU99: 7.438456333 | CV99: 7.216318333 | CW99: 3.89442 | CX99: 4.385187667
B100: 549.540874 | C100: 3.589518 | D100: 4.016461 | E100: 4.301066 | H100: 549.540874 | I100: 5.210724 | J100: 4.563588 | K100: 5.977229 | N100: 549.540874 | O100: 4.997442 | P100: 1.630009 | Q100: 1.988788 | U100: 549.540874 | V100: 1.630009 | W100: 1.822043 | X100: 1.988788 | AA100: 549.540874 | AB100: 4.19232 | AC100: 5.190858 | AD100: 4.357927 | AG100: 549.540874 | AH100: 7.003552 | AI100: 6.326187 | AJ100: 5.642878 | AM100: 549.540874 | AN100: 6.617727 | AO100: 7.06126 | AP100: 6.405445 | AS100: 549.540874 | AT100: 6.363845 | AU100: 7.387346 | AV100: 7.528394 | AY100: 549.540874 | AZ100: 5.745427 | BA100: 5.751924 | BB100: 6.068646 | BE100: 549.540874 | BF100: 5.962219 | BG100: 5.277515 | BH100: 5.619867 | BK100: 549.540874 | BL100: 7.890772 | BM100: 7.604887 | BN100: 7.850532 | BQ100: 549.540874 | BR100: 5.876093 | BS100: 6.399155 | BT100: 6.727556 | BW100: 549.540874 | BX100: 4.604695 | BY100: 3.694378 | BZ100: 4.441302 | CC100: 549.540874 | CD100: 4.052907 | CE100: 6.149029 | CF100: 4.926599 | CJ100: 549.540874 | CK100: 3.969015 | CL100: 5.250513667 | CM100: 2.872079667 | CN100: 1.813613333 | CO100: 4.580368333 | CP100: 6.324205667 | CQ100: 6.694810667 | CR100: 7.093195 | CS100: 5.855332333 | CT100: 5.619867 | CU100: 7.782063667 | CV100: 6.334268 | CW100: 4.246791667 | CX100: 5.042845
B101: 630.957344 | C101: 4.141378 | D101: 4.597033 | E101: 5.101965 | H101: 630.957344 | I101: 3.534939 | J101: 2.711273 | K101: 4.337284 | N101: 630.957344 | O101: 3.671915 | P101: 0.351628 | Q101: 0.466923 | U101: 630.957344 | V101: 0.351628 | W101: 0.294599 | X101: 0.466923 | AA101: 630.957344 | AB101: 5.347909 | AC101: 6.37528 | AD101: 5.544577 | AG101: 630.957344 | AH101: 7.717425 | AI101: 7.397979 | AJ101: 6.669189 | AM101: 630.957344 | AN101: 7.502668 | AO101: 7.713229 | AP101: 7.674718 | AS101: 630.957344 | AT101: 7.548354 | AU101: 8.297633 | AV101: 8.604045 | AY101: 630.957344 | AZ101: 5.026754 | BA101: 5.128765 | BB101: 5.568836 | BE101: 630.957344 | BF101: 6.70721 | BG101: 6.100298 | BH101: 6.403754 | BK101: 630.957344 | BL101: 7.759935 | BM101: 7.522793 | BN101: 8.210059 | BQ101: 630.957344 | BR101: 4.908872 | BS101: 5.354632 | BT101: 5.875862 | BW101: 630.957344 | BX101: 5.030773 | BY101: 4.203944 | BZ101: 5.208049 | CC101: 630.957344 | CD101: 4.756889 | CE101: 6.907175 | CF101: 5.756909 | CJ101: 630.957344 | CK101: 4.613458667 | CL101: 3.527832 | CM101: 1.496822 | CN101: 0.37105 | CO101: 5.755922 | CP101: 7.261531 | CQ101: 7.630205 | CR101: 8.150010667 | CS101: 5.241451667 | CT101: 6.403754 | CU101: 7.830929 | CV101: 5.379788667 | CW101: 4.814255333 | CX101: 5.806991
B102: 724.43596 | C102: 4.818475 | D102: 5.200711 | E102: 5.881878 | H102: 724.43596 | I102: 2.065488 | J102: 1.393638 | K102: 2.962422 | N102: 724.43596 | O102: 2.602569 | P102: 0.071247 | Q102: 0.091231 | U102: 724.43596 | V102: 0.071247 | W102: 0 | X102: 0.091231 | AA102: 724.43596 | AB102: 6.559689 | AC102: 7.481041 | AD102: 6.659387 | AG102: 724.43596 | AH102: 8.127841 | AI102: 8.289452 | AJ102: 7.674082 | AM102: 724.43596 | AN102: 8.113371 | AO102: 7.992603 | AP102: 8.660866 | AS102: 724.43596 | AT102: 8.509571 | AU102: 8.850394 | AV102: 9.318323 | AY102: 724.43596 | AZ102: 4.358347 | BA102: 4.570417 | BB102: 5.092336 | BE102: 724.43596 | BF102: 7.346789 | BG102: 6.91316 | BH102: 7.129975 | BK102: 724.43596 | BL102: 7.348251 | BM102: 7.147659 | BN102: 8.190029 | BQ102: 724.43596 | BR102: 3.975404 | BS102: 4.318422 | BT102: 5.015464 | BW102: 724.43596 | BX102: 5.520446 | BY102: 4.880268 | BZ102: 6.010859 | CC102: 724.43596 | CD102: 5.590914 | CE102: 7.462828 | CF102: 6.572174 | CJ102: 724.43596 | CK102: 5.300354667 | CL102: 2.140516 | CM102: 0.9216823333 | CN102: 0.05415933333 | CO102: 6.900039 | CP102: 8.030458333 | CQ102: 8.255613333 | CR102: 8.892762667 | CS102: 4.6737 | CT102: 7.129974667 | CU102: 7.561979667 | CV102: 4.43643 | CW102: 5.470524333 | CX102: 6.541972
B103: 831.763771 | C103: 5.533264 | D103: 5.689356 | E103: 6.484642 | H103: 831.763771 | I103: 1.04016 | J103: 0.710102 | K103: 1.903834 | N103: 831.763771 | O103: 1.791766 | P103: 0.022744 | Q103: 0 | U103: 831.763771 | V103: 0.022744 | W103: 0 | X103: 0 | AA103: 831.763771 | AB103: 7.631762 | AC103: 8.361794 | AD103: 7.502784 | AG103: 831.763771 | AH103: 8.165948 | AI103: 8.874373 | AJ103: 8.51174 | AM103: 831.763771 | AN103: 8.331759 | AO103: 7.815846 | AP103: 9.172461 | AS103: 831.763771 | AT103: 9.086758 | AU103: 8.951406 | AV103: 9.57034 | AY103: 831.763771 | AZ103: 3.749401 | BA103: 4.073491 | BB103: 4.62544 | BE103: 831.763771 | BF103: 7.783987 | BG103: 7.584031 | BH103: 7.68401 | BK103: 831.763771 | BL103: 6.69444 | BM103: 6.519972 | BN103: 7.773679 | BQ103: 831.763771 | BR103: 3.121981 | BS103: 3.352344 | BT103: 4.18317 | BW103: 831.763771 | BX103: 5.940431 | BY103: 5.55229 | BZ103: 6.663958 | CC103: 831.763771 | CD103: 6.396546 | CE103: 7.69905 | CF103: 7.197924 | CJ103: 831.763771 | CK103: 5.902420667 | CL103: 1.218032 | CM103: 0.6048366667 | CN103: 0.007581333333 | CO103: 7.832113333 | CP103: 8.517353667 | CQ103: 8.440022 | CR103: 9.202834667 | CS103: 4.149444 | CT103: 7.684009333 | CU103: 6.996030333 | CV103: 3.552498333 | CW103: 6.052226333 | CX103: 7.09784
B104: 954.992586 | C104: 6.25433 | D104: 5.929866 | E104: 6.774549 | H104: 954.992586 | I104: 0.50181 | J104: 0.29011 | K104: 1.147288 | N104: 954.992586 | O104: 1.214975 | P104: 0.026355 | Q104: 0 | U104: 954.992586 | V104: 0.026355 | W104: 0 | X104: 0 | AA104: 954.992586 | AB104: 8.350198 | AC104: 8.867137 | AD104: 7.910707 | AG104: 954.992586 | AH104: 7.811737 | AI104: 9.044885 | AJ104: 9.012292 | AM104: 954.992586 | AN104: 8.100189 | AO104: 7.19227 | AP104: 9.099651 | AS104: 954.992586 | AT104: 9.167047 | AU104: 8.57688 | AV104: 9.320267 | AY104: 954.992586 | AZ104: 3.154852 | BA104: 3.606421 | BB104: 4.133627 | BE104: 954.992586 | BF104: 7.926046 | BG104: 7.963403 | BH104: 7.944724 | BK104: 954.992586 | BL104: 5.863123 | BM104: 5.709764 | BN104: 7.006289 | BQ104: 954.992586 | BR104: 2.359748 | BS104: 2.420799 | BT104: 3.400642 | BW104: 954.992586 | BX104: 6.152996 | BY104: 6.029558 | BZ104: 6.995278 | CC104: 954.992586 | CD104: 6.986847 | CE104: 7.547193 | CF104: 7.474451 | CJ104: 954.992586 | CK104: 6.319581667 | CL104: 0.6464026667 | CM104: 0.4137766667 | CN104: 0.008785 | CO104: 8.376014 | CP104: 8.622971333 | CQ104: 8.130703333 | CR104: 9.021398 | CS104: 3.631633333 | CT104: 7.944724333 | CU104: 6.193058667 | CV104: 2.727063 | CW104: 6.392610667 | CX104: 7.336163667
B105: 1096.478196 | C105: 6.697357 | D105: 5.827998 | E105: 6.666227 | H105: 1096.478196 | I105: 0.128388 | J105: 0.161477 | K105: 0.645092 | N105: 1096.478196 | O105: 0.80646 | P105: 0.058514 | Q105: 0 | U105: 1096.478196 | V105: 0.058514 | W105: 0 | X105: 0 | AA105: 1096.478196 | AB105: 8.536235 | AC105: 8.873985 | AD105: 7.795955 | AG105: 1096.478196 | AH105: 7.101244 | AI105: 8.738382 | AJ105: 9.026314 | AM105: 1096.478196 | AN105: 7.43754 | AO105: 6.227002 | AP105: 8.450961 | AS105: 1096.478196 | AT105: 8.716269 | AU105: 7.781365 | AV105: 8.599659 | AY105: 1096.478196 | AZ105: 2.529913 | BA105: 3.135941 | BB105: 3.586693 | BE105: 1096.478196 | BF105: 7.703544 | BG105: 7.921045 | BH105: 7.812294 | BK105: 1096.478196 | BL105: 4.93007 | BM105: 4.80321 | BN105: 5.991202 | BQ105: 1096.478196 | BR105: 1.642791 | BS105: 1.598159 | BT105: 2.66462 | BW105: 1096.478196 | BX105: 6.052479 | BY105: 6.152389 | BZ105: 6.892862 | CC105: 1096.478196 | CD105: 7.191839 | CE105: 7.003352 | CF105: 7.302588 | CJ105: 1096.478196 | CK105: 6.397194 | CL105: 0.3116523333 | CM105: 0.2883246667 | CN105: 0.01950466667 | CO105: 8.402058333 | CP105: 8.288646667 | CQ105: 7.371834333 | CR105: 8.365764333 | CS105: 3.084182333 | CT105: 7.812294333 | CU105: 5.241494 | CV105: 1.968523333 | CW105: 6.36591 | CX105: 7.165926333
B106: 1258.925412 | C106: 6.590185 | D106: 5.344068 | E106: 6.12845 | H106: 1258.925412 | I106: 0 | J106: 0.094541 | K106: 0.335873 | N106: 1258.925412 | O106: 0.452389 | P106: 0.092304 | Q106: 0 | U106: 1258.925412 | V106: 0.092304 | W106: 0 | X106: 0 | AA106: 1258.925412 | AB106: 8.084932 | AC106: 8.304896 | AD106: 7.148813 | AG106: 1258.925412 | AH106: 6.097603 | AI106: 7.936337 | AJ106: 8.455208 | AM106: 1258.925412 | AN106: 6.413405 | AO106: 5.065632 | AP106: 7.325901 | AS106: 1258.925412 | AT106: 7.766691 | AU106: 6.657597 | AV106: 7.479647 | AY106: 1258.925412 | AZ106: 1.904097 | BA106: 2.627773 | BB106: 2.972622 | BE106: 1258.925412 | BF106: 7.07036 | BG106: 7.372083 | BH106: 7.221221 | BK106: 1258.925412 | BL106: 3.934715 | BM106: 3.863753 | BN106: 4.843994 | BQ106: 1258.925412 | BR106: 1.000821 | BS106: 1.20766 | BT106: 1.9687 | BW106: 1258.925412 | BX106: 5.582139 | BY106: 5.826097 | BZ106: 6.321187 | CC106: 1258.925412 | CD106: 6.891424 | CE106: 6.109174 | CF106: 6.655969 | CJ106: 1258.925412 | CK106: 6.020901 | CL106: 0.1434713333 | CM106: 0.1815643333 | CN106: 0.030768 | CO106: 7.846213667 | CP106: 7.496382667 | CQ106: 6.268312667 | CR106: 7.301311667 | CS106: 2.501497333 | CT106: 7.221221333 | CU106: 4.214154 | CV106: 1.392393667 | CW106: 5.909807667 | CX106: 6.552189
B107: 1445.439771 | C107: 5.876967 | D107: 4.500752 | E107: 5.185038 | H107: 1445.439771 | I107: 0 | J107: 0.055018 | K107: 0.168714 | N107: 1445.439771 | O107: 0.340857 | P107: 0.106884 | Q107: 0 | U107: 1445.439771 | V107: 0.106884 | W107: 0 | X107: 0 | AA107: 1445.439771 | AB107: 6.986481 | AC107: 7.145836 | AD107: 6.02511 | AG107: 1445.439771 | AH107: 4.879083 | AI107: 6.669712 | AJ107: 7.275842 | AM107: 1445.439771 | AN107: 5.135477 | AO107: 3.856318 | AP107: 5.879832 | AS107: 1445.439771 | AT107: 6.405017 | AU107: 5.316318 | AV107: 6.058901 | AY107: 1445.439771 | AZ107: 1.535315 | BA107: 2.017481 | BB107: 2.313845 | BE107: 1445.439771 | BF107: 6.015124 | BG107: 6.302592 | BH107: 6.158858 | BK107: 1445.439771 | BL107: 2.900378 | BM107: 2.910209 | BN107: 3.665928 | BQ107: 1445.439771 | BR107: 0.640483 | BS107: 0.874374 | BT107: 1.313185 | BW107: 1445.439771 | BX107: 4.742746 | BY107: 5.03524 | BZ107: 5.320681 | CC107: 1445.439771 | CD107: 6.035233 | CE107: 4.945496 | CF107: 5.579661 | CJ107: 1445.439771 | CK107: 5.187585667 | CL107: 0.07457733333 | CM107: 0.149247 | CN107: 0.035628 | CO107: 6.719142333 | CP107: 6.274879 | CQ107: 4.957209 | CR107: 5.926745333 | CS107: 1.955547 | CT107: 6.158858 | CU107: 3.158838333 | CV107: 0.9426806667 | CW107: 5.032889 | CX107: 5.52013
B108: 1659.586907 | C108: 4.628802 | D108: 3.39199 | E108: 3.929611 | H108: 1659.586907 | I108: 0 | J108: 0.032343 | K108: 0.078383 | N108: 1659.586907 | O108: 0.263768 | P108: 0.092732 | Q108: 0 | U108: 1659.586907 | V108: 0.092732 | W108: 0 | X108: 0 | AA108: 1659.586907 | AB108: 5.367677 | AC108: 5.49451 | AD108: 4.550428 | AG108: 1659.586907 | AH108: 3.525385 | AI108: 5.040916 | AJ108: 5.590054 | AM108: 1659.586907 | AN108: 3.725525 | AO108: 2.693013 | AP108: 4.27239 | AS108: 1659.586907 | AT108: 4.762545 | AU108: 3.860889 | AV108: 4.450471 | AY108: 1659.586907 | AZ108: 1.127456 | BA108: 1.378115 | BB108: 1.598689 | BE108: 1659.586907 | BF108: 4.599755 | BG108: 4.81037 | BH108: 4.705062 | BK108: 1659.586907 | BL108: 1.7961 | BM108: 1.970196 | BN108: 2.504644 | BQ108: 1659.586907 | BR108: 0.465122 | BS108: 0.639596 | BT108: 0.737239 | BW108: 1659.586907 | BX108: 3.608482 | BY108: 3.868619 | BZ108: 4.007574 | CC108: 1659.586907 | CD108: 4.69665 | CE108: 3.618509 | CF108: 4.193542 | CJ108: 1659.586907 | CK108: 3.983467667 | CL108: 0.03690866667 | CM108: 0.1188333333 | CN108: 0.03091066667 | CO108: 5.137538333 | CP108: 4.718785 | CQ108: 3.563642667 | CR108: 4.357968333 | CS108: 1.368086667 | CT108: 4.705062333 | CU108: 2.090313333 | CV108: 0.6139856667 | CW108: 3.828225 | CX108: 4.169567
B109: 1905.460718 | C109: 2.716778 | D109: 1.93069 | E109: 2.25482 | H109: 1905.460718 | I109: 0 | J109: 0.017296 | K109: 0.036784 | N109: 1905.460718 | O109: 0.143088 | P109: 0.054774 | Q109: 0 | U109: 1905.460718 | V109: 0.054774 | W109: 0 | X109: 0 | AA109: 1905.460718 | AB109: 3.101319 | AC109: 3.183004 | AD109: 2.605503 | AG109: 1905.460718 | AH109: 1.913498 | AI109: 2.890969 | AJ109: 3.234943 | AM109: 1905.460718 | AN109: 2.068204 | AO109: 1.464161 | AP109: 2.389261 | AS109: 1905.460718 | AT109: 2.702307 | AU109: 2.1608 | AV109: 2.50438 | AY109: 1905.460718 | AZ109: 0.627584 | BA109: 0.711161 | BB109: 0.831756 | BE109: 1905.460718 | BF109: 2.659987 | BG109: 2.769259 | BH109: 2.714623 | BK109: 1905.460718 | BL109: 0.91692 | BM109: 0.943899 | BN109: 1.240038 | BQ109: 1905.460718 | BR109: 0.267262 | BS109: 0.367727 | BT109: 0.375446 | BW109: 1905.460718 | BX109: 2.075867 | BY109: 2.235228 | BZ109: 2.28848 | CC109: 1905.460718 | CD109: 2.738571 | CE109: 2.030129 | CF109: 2.378785 | CJ109: 1905.460718 | CK109: 2.300762667 | CL109: 0.01802666667 | CM109: 0.065954 | CN109: 0.018258 | CO109: 2.963275333 | CP109: 2.679803333 | CQ109: 1.973875333 | CR109: 2.455829 | CS109: 0.7235003333 | CT109: 2.714623 | CU109: 1.033619 | CV109: 0.3368116667 | CW109: 2.199858333 | CX109: 2.382495
B110: 2187.761624 | C110: 0.655853 | D110: 0.457492 | E110: 0.538284 | H110: 2187.761624 | I110: 0 | J110: 0 | K110: 0.005711 | N110: 2187.761624 | O110: 0.039554 | P110: 0.011996 | Q110: 0 | U110: 2187.761624 | V110: 0.011996 | W110: 0 | X110: 0 | AA110: 2187.761624 | AB110: 0.742524 | AC110: 0.763717 | AD110: 0.621373 | AG110: 2187.761624 | AH110: 0.434668 | AI110: 0.690236 | AJ110: 0.775581 | AM110: 2187.761624 | AN110: 0.483099 | AO110: 0.338953 | AP110: 0.563186 | AS110: 2187.761624 | AT110: 0.641595 | AU110: 0.509627 | AV110: 0.59149 | AY110: 2187.761624 | AZ110: 0.148375 | BA110: 0.155991 | BB110: 0.184168 | BE110: 2187.761624 | BF110: 0.638034 | BG110: 0.661843 | BH110: 0.649939 | BK110: 2187.761624 | BL110: 0.217665 | BM110: 0.183885 | BN110: 0.253785 | BQ110: 2187.761624 | BR110: 0.062206 | BS110: 0.086138 | BT110: 0.094534 | BW110: 2187.761624 | BX110: 0.496214 | BY110: 0.535189 | BZ110: 0.544801 | CC110: 2187.761624 | CD110: 0.659044 | CE110: 0.478965 | CF110: 0.561738 | CJ110: 2187.761624 | CK110: 0.550543 | CL110: 0.001903666667 | CM110: 0.01718333333 | CN110: 0.003998666667 | CO110: 0.7092046667 | CP110: 0.633495 | CQ110: 0.461746 | CR110: 0.580904 | CS110: 0.1628446667 | CT110: 0.6499386667 | CU110: 0.218445 | CV110: 0.08095933333 | CW110: 0.5254013333 | CX110: 0.5665823333
B111: 2511.886432 | C111: 0 | D111: 0 | E111: 0 | H111: 2511.886432 | I111: 0 | J111: 0 | K111: 0 | N111: 2511.886432 | O111: 0 | P111: 0 | Q111: 0 | U111: 2511.886432 | V111: 0 | W111: 0 | X111: 0 | AA111: 2511.886432 | AB111: 0 | AC111: 0 | AD111: 0 | AG111: 2511.886432 | AH111: 0 | AI111: 0 | AJ111: 0 | AM111: 2511.886432 | AN111: 0 | AO111: 0 | AP111: 0 | AS111: 2511.886432 | AT111: 0 | AU111: 0 | AV111: 0 | AY111: 2511.886432 | AZ111: 0 | BA111: 0 | BB111: 0 | BE111: 2511.886432 | BF111: 0 | BG111: 0 | BH111: 0 | BK111: 2511.886432 | BL111: 0 | BM111: 0 | BN111: 0 | BQ111: 2511.886432 | BR111: 0 | BS111: 0 | BT111: 0 | BW111: 2511.886432 | BX111: 0 | BY111: 0 | BZ111: 0 | CC111: 2511.886432 | CD111: 0 | CE111: 0 | CF111: 0 | CJ111: 2511.886432 | CK111: 0 | CL111: 0 | CM111: 0 | CN111: 0 | CO111: 0 | CP111: 0 | CQ111: 0 | CR111: 0 | CS111: 0 | CT111: 0 | CU111: 0 | CV111: 0 | CW111: 0 | CX111: 0
B112: 2884.031503 | C112: 0 | D112: 0 | E112: 0 | H112: 2884.031503 | I112: 0 | J112: 0 | K112: 0 | N112: 2884.031503 | O112: 0 | P112: 0 | Q112: 0 | U112: 2884.031503 | V112: 0 | W112: 0 | X112: 0 | AA112: 2884.031503 | AB112: 0 | AC112: 0 | AD112: 0 | AG112: 2884.031503 | AH112: 0 | AI112: 0 | AJ112: 0 | AM112: 2884.031503 | AN112: 0 | AO112: 0 | AP112: 0 | AS112: 2884.031503 | AT112: 0 | AU112: 0 | AV112: 0 | AY112: 2884.031503 | AZ112: 0 | BA112: 0 | BB112: 0 | BE112: 2884.031503 | BF112: 0 | BG112: 0 | BH112: 0 | BK112: 2884.031503 | BL112: 0 | BM112: 0 | BN112: 0 | BQ112: 2884.031503 | BR112: 0 | BS112: 0 | BT112: 0 | BW112: 2884.031503 | BX112: 0 | BY112: 0 | BZ112: 0 | CC112: 2884.031503 | CD112: 0 | CE112: 0 | CF112: 0 | CJ112: 2884.031503 | CK112: 0 | CL112: 0 | CM112: 0 | CN112: 0 | CO112: 0 | CP112: 0 | CQ112: 0 | CR112: 0 | CS112: 0 | CT112: 0 | CU112: 0 | CV112: 0 | CW112: 0 | CX112: 0
B113: 3311.311215 | C113: 0 | D113: 0 | E113: 0 | H113: 3311.311215 | I113: 0 | J113: 0 | K113: 0 | N113: 3311.311215 | O113: 0 | P113: 0 | Q113: 0 | U113: 3311.311215 | V113: 0 | W113: 0 | X113: 0 | AA113: 3311.311215 | AB113: 0 | AC113: 0 | AD113: 0 | AG113: 3311.311215 | AH113: 0 | AI113: 0 | AJ113: 0 | AM113: 3311.311215 | AN113: 0 | AO113: 0 | AP113: 0 | AS113: 3311.311215 | AT113: 0 | AU113: 0 | AV113: 0 | AY113: 3311.311215 | AZ113: 0 | BA113: 0 | BB113: 0 | BE113: 3311.311215 | BF113: 0 | BG113: 0 | BH113: 0 | BK113: 3311.311215 | BL113: 0 | BM113: 0 | BN113: 0 | BQ113: 3311.311215 | BR113: 0 | BS113: 0 | BT113: 0 | BW113: 3311.311215 | BX113: 0 | BY113: 0 | BZ113: 0 | CC113: 3311.311215 | CD113: 0 | CE113: 0 | CF113: 0 | CJ113: 3311.311215 | CK113: 0 | CL113: 0 | CM113: 0 | CN113: 0 | CO113: 0 | CP113: 0 | CQ113: 0 | CR113: 0 | CS113: 0 | CT113: 0 | CU113: 0 | CV113: 0 | CW113: 0 | CX113: 0
B114: 3801.893963 | C114: 0 | D114: 0 | E114: 0 | H114: 3801.893963 | I114: 0 | J114: 0 | K114: 0 | N114: 3801.893963 | O114: 0 | P114: 0 | Q114: 0 | U114: 3801.893963 | V114: 0 | W114: 0 | X114: 0 | AA114: 3801.893963 | AB114: 0 | AC114: 0 | AD114: 0 | AG114: 3801.893963 | AH114: 0 | AI114: 0 | AJ114: 0 | AM114: 3801.893963 | AN114: 0 | AO114: 0 | AP114: 0 | AS114: 3801.893963 | AT114: 0 | AU114: 0 | AV114: 0 | AY114: 3801.893963 | AZ114: 0 | BA114: 0 | BB114: 0 | BE114: 3801.893963 | BF114: 0 | BG114: 0 | BH114: 0 | BK114: 3801.893963 | BL114: 0 | BM114: 0 | BN114: 0 | BQ114: 3801.893963 | BR114: 0 | BS114: 0 | BT114: 0 | BW114: 3801.893963 | BX114: 0 | BY114: 0 | BZ114: 0 | CC114: 3801.893963 | CD114: 0 | CE114: 0 | CF114: 0 | CJ114: 3801.893963 | CK114: 0 | CL114: 0 | CM114: 0 | CN114: 0 | CO114: 0 | CP114: 0 | CQ114: 0 | CR114: 0 | CS114: 0 | CT114: 0 | CU114: 0 | CV114: 0 | CW114: 0 | CX114: 0
B115: 4365.158322 | C115: 0 | D115: 0 | E115: 0 | H115: 4365.158322 | I115: 0 | J115: 0 | K115: 0 | N115: 4365.158322 | O115: 0 | P115: 0 | Q115: 0 | U115: 4365.158322 | V115: 0 | W115: 0 | X115: 0 | AA115: 4365.158322 | AB115: 0 | AC115: 0 | AD115: 0 | AG115: 4365.158322 | AH115: 0 | AI115: 0 | AJ115: 0 | AM115: 4365.158322 | AN115: 0 | AO115: 0 | AP115: 0 | AS115: 4365.158322 | AT115: 0 | AU115: 0 | AV115: 0 | AY115: 4365.158322 | AZ115: 0 | BA115: 0 | BB115: 0 | BE115: 4365.158322 | BF115: 0 | BG115: 0 | BH115: 0 | BK115: 4365.158322 | BL115: 0 | BM115: 0 | BN115: 0 | BQ115: 4365.158322 | BR115: 0 | BS115: 0 | BT115: 0 | BW115: 4365.158322 | BX115: 0 | BY115: 0 | BZ115: 0 | CC115: 4365.158322 | CD115: 0 | CE115: 0 | CF115: 0 | CJ115: 4365.158322 | CK115: 0 | CL115: 0 | CM115: 0 | CN115: 0 | CO115: 0 | CP115: 0 | CQ115: 0 | CR115: 0 | CS115: 0 | CT115: 0 | CU115: 0 | CV115: 0 | CW115: 0 | CX115: 0
B116: 5011.872336 | C116: 0 | D116: 0 | E116: 0 | H116: 5011.872336 | I116: 0 | J116: 0 | K116: 0 | N116: 5011.872336 | O116: 0 | P116: 0 | Q116: 0 | U116: 5011.872336 | V116: 0 | W116: 0 | X116: 0 | AA116: 5011.872336 | AB116: 0 | AC116: 0 | AD116: 0 | AG116: 5011.872336 | AH116: 0 | AI116: 0 | AJ116: 0 | AM116: 5011.872336 | AN116: 0 | AO116: 0 | AP116: 0 | AS116: 5011.872336 | AT116: 0 | AU116: 0 | AV116: 0 | AY116: 5011.872336 | AZ116: 0 | BA116: 0 | BB116: 0 | BE116: 5011.872336 | BF116: 0 | BG116: 0 | BH116: 0 | BK116: 5011.872336 | BL116: 0 | BM116: 0 | BN116: 0 | BQ116: 5011.872336 | BR116: 0 | BS116: 0 | BT116: 0 | BW116: 5011.872336 | BX116: 0 | BY116: 0 | BZ116: 0 | CC116: 5011.872336 | CD116: 0 | CE116: 0 | CF116: 0 | CJ116: 5011.872336 | CK116: 0 | CL116: 0 | CM116: 0 | CN116: 0 | CO116: 0 | CP116: 0 | CQ116: 0 | CR116: 0 | CS116: 0 | CT116: 0 | CU116: 0 | CV116: 0 | CW116: 0 | CX116: 0
B117: 5754.399373 | C117: 0 | D117: 0 | E117: 0 | H117: 5754.399373 | I117: 0 | J117: 0 | K117: 0 | N117: 5754.399373 | O117: 0 | P117: 0 | Q117: 0 | U117: 5754.399373 | V117: 0 | W117: 0 | X117: 0 | AA117: 5754.399373 | AB117: 0 | AC117: 0 | AD117: 0 | AG117: 5754.399373 | AH117: 0 | AI117: 0 | AJ117: 0 | AM117: 5754.399373 | AN117: 0 | AO117: 0 | AP117: 0 | AS117: 5754.399373 | AT117: 0 | AU117: 0 | AV117: 0 | AY117: 5754.399373 | AZ117: 0 | BA117: 0 | BB117: 0 | BE117: 5754.399373 | BF117: 0 | BG117: 0 | BH117: 0 | BK117: 5754.399373 | BL117: 0 | BM117: 0 | BN117: 0 | BQ117: 5754.399373 | BR117: 0 | BS117: 0 | BT117: 0 | BW117: 5754.399373 | BX117: 0 | BY117: 0 | BZ117: 0 | CC117: 5754.399373 | CD117: 0 | CE117: 0 | CF117: 0 | CJ117: 5754.399373 | CK117: 0 | CL117: 0 | CM117: 0 | CN117: 0 | CO117: 0 | CP117: 0 | CQ117: 0 | CR117: 0 | CS117: 0 | CT117: 0 | CU117: 0 | CV117: 0 | CW117: 0 | CX117: 0
B118: 6606.93448 | C118: 0 | D118: 0 | E118: 0 | H118: 6606.93448 | I118: 0 | J118: 0 | K118: 0 | N118: 6606.93448 | O118: 0 | P118: 0 | Q118: 0 | U118: 6606.93448 | V118: 0 | W118: 0 | X118: 0 | AA118: 6606.93448 | AB118: 0 | AC118: 0 | AD118: 0 | AG118: 6606.93448 | AH118: 0 | AI118: 0 | AJ118: 0 | AM118: 6606.93448 | AN118: 0 | AO118: 0 | AP118: 0 | AS118: 6606.93448 | AT118: 0 | AU118: 0 | AV118: 0 | AY118: 6606.93448 | AZ118: 0 | BA118: 0 | BB118: 0 | BE118: 6606.93448 | BF118: 0 | BG118: 0 | BH118: 0 | BK118: 6606.93448 | BL118: 0 | BM118: 0 | BN118: 0 | BQ118: 6606.93448 | BR118: 0 | BS118: 0 | BT118: 0 | BW118: 6606.93448 | BX118: 0 | BY118: 0 | BZ118: 0 | CC118: 6606.93448 | CD118: 0 | CE118: 0 | CF118: 0 | CJ118: 6606.93448 | CK118: 0 | CL118: 0 | CM118: 0 | CN118: 0 | CO118: 0 | CP118: 0 | CQ118: 0 | CR118: 0 | CS118: 0 | CT118: 0 | CU118: 0 | CV118: 0 | CW118: 0 | CX118: 0
B119: 7585.77575 | C119: 0 | D119: 0 | E119: 0 | H119: 7585.77575 | I119: 0 | J119: 0 | K119: 0 | N119: 7585.77575 | O119: 0 | P119: 0 | Q119: 0 | U119: 7585.77575 | V119: 0 | W119: 0 | X119: 0 | AA119: 7585.77575 | AB119: 0 | AC119: 0 | AD119: 0 | AG119: 7585.77575 | AH119: 0 | AI119: 0 | AJ119: 0 | AM119: 7585.77575 | AN119: 0 | AO119: 0 | AP119: 0 | AS119: 7585.77575 | AT119: 0 | AU119: 0 | AV119: 0 | AY119: 7585.77575 | AZ119: 0 | BA119: 0 | BB119: 0 | BE119: 7585.77575 | BF119: 0 | BG119: 0 | BH119: 0 | BK119: 7585.77575 | BL119: 0 | BM119: 0 | BN119: 0 | BQ119: 7585.77575 | BR119: 0 | BS119: 0 | BT119: 0 | BW119: 7585.77575 | BX119: 0 | BY119: 0 | BZ119: 0 | CC119: 7585.77575 | CD119: 0 | CE119: 0 | CF119: 0 | CJ119: 7585.77575 | CK119: 0 | CL119: 0 | CM119: 0 | CN119: 0 | CO119: 0 | CP119: 0 | CQ119: 0 | CR119: 0 | CS119: 0 | CT119: 0 | CU119: 0 | CV119: 0 | CW119: 0 | CX119: 0
B120: 8709.6359 | C120: 0 | D120: 0 | E120: 0 | H120: 8709.6359 | I120: 0 | J120: 0 | K120: 0 | N120: 8709.6359 | O120: 0 | P120: 0 | Q120: 0 | U120: 8709.6359 | V120: 0 | W120: 0 | X120: 0 | AA120: 8709.6359 | AB120: 0 | AC120: 0 | AD120: 0 | AG120: 8709.6359 | AH120: 0 | AI120: 0 | AJ120: 0 | AM120: 8709.6359 | AN120: 0 | AO120: 0 | AP120: 0 | AS120: 8709.6359 | AT120: 0 | AU120: 0 | AV120: 0 | AY120: 8709.6359 | AZ120: 0 | BA120: 0 | BB120: 0 | BE120: 8709.6359 | BF120: 0 | BG120: 0 | BH120: 0 | BK120: 8709.6359 | BL120: 0 | BM120: 0 | BN120: 0 | BQ120: 8709.6359 | BR120: 0 | BS120: 0 | BT120: 0 | BW120: 8709.6359 | BX120: 0 | BY120: 0 | BZ120: 0 | CC120: 8709.6359 | CD120: 0 | CE120: 0 | CF120: 0 | CJ120: 8709.6359 | CK120: 0 | CL120: 0 | CM120: 0 | CN120: 0 | CO120: 0 | CP120: 0 | CQ120: 0 | CR120: 0 | CS120: 0 | CT120: 0 | CU120: 0 | CV120: 0 | CW120: 0 | CX120: 0
B121: 10000 | C121: 0 | D121: 0 | E121: 0 | H121: 10000 | I121: 0 | J121: 0 | K121: 0 | N121: 10000 | O121: 0 | P121: 0 | Q121: 0 | U121: 10000 | V121: 0 | W121: 0 | X121: 0 | AA121: 10000 | AB121: 0 | AC121: 0 | AD121: 0 | AG121: 10000 | AH121: 0 | AI121: 0 | AJ121: 0 | AM121: 10000 | AN121: 0 | AO121: 0 | AP121: 0 | AS121: 10000 | AT121: 0 | AU121: 0 | AV121: 0 | AY121: 10000 | AZ121: 0 | BA121: 0 | BB121: 0 | BE121: 10000 | BF121: 0 | BG121: 0 | BH121: 0 | BK121: 10000 | BL121: 0 | BM121: 0 | BN121: 0 | BQ121: 10000 | BR121: 0 | BS121: 0 | BT121: 0 | BW121: 10000 | BX121: 0 | BY121: 0 | BZ121: 0 | CC121: 10000 | CD121: 0 | CE121: 0 | CF121: 0 | CJ121: 10000 | CK121: 0 | CL121: 0 | CM121: 0 | CN121: 0 | CO121: 0 | CP121: 0 | CQ121: 0 | CR121: 0 | CS121: 0 | CT121: 0 | CU121: 0 | CV121: 0 | CW121: 0 | CX121: 0

Sheet Calculations (hidden)
A1: Basics | D1: Basics | G1: Basics | J1: Basics
A2: =IF('Texture Calculator'!$G$4+1.5*'Texture Calculator'!$E$4<0.15,1,0) -> 1 | B2: ((silt + 1.5*clay) < 15) | C2: SAND | D2: =IF('Texture Calculator'!$G$5+1.5*'Texture Calculator'!$E$5<0.15,1,0) -> 1 | E2: ((silt + 1.5*clay) < 15) | F2: SAND | G2: =IF('Texture Calculator'!$G$6+1.5*'Texture Calculator'!$E$6<0.15,1,0) -> 1 | H2: ((silt + 1.5*clay) < 15) | I2: SAND | J2: =IF('Texture Calculator'!$G$7+1.5*'Texture Calculator'!$E$7<0.15,1,0) -> 1 | K2: ((silt + 1.5*clay) < 15) | L2: SAND
A3: =IF(AND('Texture Calculator'!$G$4+1.5*'Texture Calculator'!$E$4>=0.15, 'Texture Calculator'!$G$4+2*'Texture Calculator'!$E$4<0.3), 2, 0) -> 0 | B3: ((silt + 1.5*clay >= 15) && (silt + 2*clay < 30)) | C3: LOAMY SAND | D3: =IF(AND('Texture Calculator'!$G$5+1.5*'Texture Calculator'!$E$5>=0.15, 'Texture Calculator'!$G$5+2*'Texture Calculator'!$E$5<0.3), 2, 0) -> 0 | E3: ((silt + 1.5*clay >= 15) && (silt + 2*clay < 30)) | F3: LOAMY SAND | G3: =IF(AND('Texture Calculator'!$G$6+1.5*'Texture Calculator'!$E$6>=0.15, 'Texture Calculator'!$G$6+2*'Texture Calculator'!$E$6<0.3), 2, 0) -> 0 | H3: ((silt + 1.5*clay >= 15) && (silt + 2*clay < 30)) | I3: LOAMY SAND | J3: =IF(AND('Texture Calculator'!$G$7+1.5*'Texture Calculator'!$E$7>=0.15, 'Texture Calculator'!$G$7+2*'Texture Calculator'!$E$7<0.3), 2, 0) -> 0 | K3: ((silt + 1.5*clay >= 15) && (silt + 2*clay < 30)) | L3: LOAMY SAND
A4: =IF(OR(AND('Texture Calculator'!$E$4>=0.07, 'Texture Calculator'!$E$4<0.2,'Texture Calculator'!$C$4>0.52,'Texture Calculator'!$G$4+2*'Texture Calculator'!$E$4>=0.3), AND('Texture Calculator'!$E$4<0.07, 'Texture Calculator'!$G$4<0.5, 'Texture Calculator'!$G$4+2*'Texture Calculator'!$E$4>=0.3)), 3,0) -> 0 | B4: ((clay >= 7 && clay < 20) && (sand > 52) && ((silt + 2*clay) >= 30) || (clay < 7 && silt < 50 && (silt+2*clay)>=30)) | C4: SANDY LOAM | D4: =IF(OR(AND('Texture Calculator'!$E$5>=0.07, 'Texture Calculator'!$E$5<0.2,'Texture Calculator'!$C$5>0.52,'Texture Calculator'!$G$5+2*'Texture Calculator'!$E$5>=0.3), AND('Texture Calculator'!$E$5<0.07, 'Texture Calculator'!$G$5<0.5, 'Texture Calculator'!$G$5+2*'Texture Calculator'!$E$5>=0.3)), 3,0) -> 0 | E4: ((clay >= 7 && clay < 20) && (sand > 52) && ((silt + 2*clay) >= 30) || (clay < 7 && silt < 50 && (silt+2*clay)>=30)) | F4: SANDY LOAM | G4: =IF(OR(AND('Texture Calculator'!$E$6>=0.07, 'Texture Calculator'!$E$6<0.2,'Texture Calculator'!$C$6>0.52,'Texture Calculator'!$G$6+2*'Texture Calculator'!$E$6>=0.3), AND('Texture Calculator'!$E$6<0.07, 'Texture Calculator'!$G$6<0.5, 'Texture Calculator'!$G$6+2*'Texture Calculator'!$E$6>=0.3)), 3,0) -> 0 | H4: ((clay >= 7 && clay < 20) && (sand > 52) && ((silt + 2*clay) >= 30) || (clay < 7 && silt < 50 && (silt+2*clay)>=30)) | I4: SANDY LOAM | J4: =IF(OR(AND('Texture Calculator'!$E$7>=0.07, 'Texture Calculator'!$E$7<0.2,'Texture Calculator'!$C$7>0.52,'Texture Calculator'!$G$7+2*'Texture Calculator'!$E$7>=0.3), AND('Texture Calculator'!$E$7<0.07, 'Texture Calculator'!$G$7<0.5, 'Texture Calculator'!$G$7+2*'Texture Calculator'!$E$7>=0.3)), 3,0) -> 0 | K4: ((clay >= 7 && clay < 20) && (sand > 52) && ((silt + 2*clay) >= 30) || (clay < 7 && silt < 50 && (silt+2*clay)>=30)) | L4: SANDY LOAM
A5: =IF(AND('Texture Calculator'!$E$4>=0.07, 'Texture Calculator'!$E$4<0.27, 'Texture Calculator'!$G$4>=0.28, 'Texture Calculator'!$G$4<0.5, 'Texture Calculator'!$C$4<=0.52), 4, 0) -> 0 | B5: ((clay >= 7 && clay < 27) && (silt >= 28 && silt < 50) && (sand <= 52)) | C5: LOAM | D5: =IF(AND('Texture Calculator'!$E$5>=0.07, 'Texture Calculator'!$E$5<0.27, 'Texture Calculator'!$G$5>=0.28, 'Texture Calculator'!$G$5<0.5, 'Texture Calculator'!$C$5<=0.52), 4, 0) -> 0 | E5: ((clay >= 7 && clay < 27) && (silt >= 28 && silt < 50) && (sand <= 52)) | F5: LOAM | G5: =IF(AND('Texture Calculator'!$E$6>=0.07, 'Texture Calculator'!$E$6<0.27, 'Texture Calculator'!$G$6>=0.28, 'Texture Calculator'!$G$6<0.5, 'Texture Calculator'!$C$6<=0.52), 4, 0) -> 0 | H5: ((clay >= 7 && clay < 27) && (silt >= 28 && silt < 50) && (sand <= 52)) | I5: LOAM | J5: =IF(AND('Texture Calculator'!$E$7>=0.07, 'Texture Calculator'!$E$7<0.27, 'Texture Calculator'!$G$7>=0.28, 'Texture Calculator'!$G$7<0.5, 'Texture Calculator'!$C$7<=0.52), 4, 0) -> 0 | K5: ((clay >= 7 && clay < 27) && (silt >= 28 && silt < 50) && (sand <= 52)) | L5: LOAM
A6: =IF(OR(AND('Texture Calculator'!$G$4>=0.5, 'Texture Calculator'!$E$4>=0.12,'Texture Calculator'!$E$4<0.27), AND('Texture Calculator'!$G$4>=0.5,'Texture Calculator'!$G$4<0.8,'Texture Calculator'!$E$4<0.12)), 5,0) -> 0 | B6: ((silt >= 50 && (clay >= 12 && clay < 27)) || ((silt >= 50 && silt < 80) && clay < 12)) | C6: SILT LOAM | D6: =IF(OR(AND('Texture Calculator'!$G$5>=0.5, 'Texture Calculator'!$E$5>=0.12,'Texture Calculator'!$E$5<0.27), AND('Texture Calculator'!$G$5>=0.5,'Texture Calculator'!$G$5<0.8,'Texture Calculator'!$E$5<0.12)), 5,0) -> 0 | E6: ((silt >= 50 && (clay >= 12 && clay < 27)) || ((silt >= 50 && silt < 80) && clay < 12)) | F6: SILT LOAM | G6: =IF(OR(AND('Texture Calculator'!$G$6>=0.5, 'Texture Calculator'!$E$6>=0.12,'Texture Calculator'!$E$6<0.27), AND('Texture Calculator'!$G$6>=0.5,'Texture Calculator'!$G$6<0.8,'Texture Calculator'!$E$6<0.12)), 5,0) -> 0 | H6: ((silt >= 50 && (clay >= 12 && clay < 27)) || ((silt >= 50 && silt < 80) && clay < 12)) | I6: SILT LOAM | J6: =IF(OR(AND('Texture Calculator'!$G$7>=0.5, 'Texture Calculator'!$E$7>=0.12,'Texture Calculator'!$E$7<0.27), AND('Texture Calculator'!$G$7>=0.5,'Texture Calculator'!$G$7<0.8,'Texture Calculator'!$E$7<0.12)), 5,0) -> 0 | K6: ((silt >= 50 && (clay >= 12 && clay < 27)) || ((silt >= 50 && silt < 80) && clay < 12)) | L6: SILT LOAM
A7: =IF(AND('Texture Calculator'!$G$4>=0.8, 'Texture Calculator'!$E$4<0.12), 6, 0) -> 0 | B7: (silt >= 80 && clay < 12) | C7: SILT | D7: =IF(AND('Texture Calculator'!$G$5>=0.8, 'Texture Calculator'!$E$5<0.12), 6, 0) -> 0 | E7: (silt >= 80 && clay < 12) | F7: SILT | G7: =IF(AND('Texture Calculator'!$G$6>=0.8, 'Texture Calculator'!$E$6<0.12), 6, 0) -> 0 | H7: (silt >= 80 && clay < 12) | I7: SILT | J7: =IF(AND('Texture Calculator'!$G$7>=0.8, 'Texture Calculator'!$E$7<0.12), 6, 0) -> 0 | K7: (silt >= 80 && clay < 12) | L7: SILT
A8: =IF(AND('Texture Calculator'!$E$4>=0.2, 'Texture Calculator'!$E$4<0.35, 'Texture Calculator'!$G$4<0.28, 'Texture Calculator'!$C$4>0.45), 7, 0) -> 0 | B8: ((clay >= 20 && clay < 35) && (silt < 28) && (sand > 45)) | C8: SANDY CLAY LOAM | D8: =IF(AND('Texture Calculator'!$E$5>=0.2, 'Texture Calculator'!$E$5<0.35, 'Texture Calculator'!$G$5<0.28, 'Texture Calculator'!$C$5>0.45), 7, 0) -> 0 | E8: ((clay >= 20 && clay < 35) && (silt < 28) && (sand > 45)) | F8: SANDY CLAY LOAM | G8: =IF(AND('Texture Calculator'!$E$6>=0.2, 'Texture Calculator'!$E$6<0.35, 'Texture Calculator'!$G$6<0.28, 'Texture Calculator'!$C$6>0.45), 7, 0) -> 0 | H8: ((clay >= 20 && clay < 35) && (silt < 28) && (sand > 45)) | I8: SANDY CLAY LOAM | J8: =IF(AND('Texture Calculator'!$E$7>=0.2, 'Texture Calculator'!$E$7<0.35, 'Texture Calculator'!$G$7<0.28, 'Texture Calculator'!$C$7>0.45), 7, 0) -> 0 | K8: ((clay >= 20 && clay < 35) && (silt < 28) && (sand > 45)) | L8: SANDY CLAY LOAM
A9: =IF(AND('Texture Calculator'!$E$4>=0.27, 'Texture Calculator'!$E$4<0.4, 'Texture Calculator'!$C$4>0.2, 'Texture Calculator'!$C$4<=0.45), 8, 0) -> 0 | B9: ((clay >= 27 && clay < 40) && (sand > 20 && sand <= 45)) | C9: CLAY LOAM | D9: =IF(AND('Texture Calculator'!$E$5>=0.27, 'Texture Calculator'!$E$5<0.4, 'Texture Calculator'!$C$5>0.2, 'Texture Calculator'!$C$5<=0.45), 8, 0) -> 0 | E9: ((clay >= 27 && clay < 40) && (sand > 20 && sand <= 45)) | F9: CLAY LOAM | G9: =IF(AND('Texture Calculator'!$E$6>=0.27, 'Texture Calculator'!$E$6<0.4, 'Texture Calculator'!$C$6>0.2, 'Texture Calculator'!$C$6<=0.45), 8, 0) -> 0 | H9: ((clay >= 27 && clay < 40) && (sand > 20 && sand <= 45)) | I9: CLAY LOAM | J9: =IF(AND('Texture Calculator'!$E$7>=0.27, 'Texture Calculator'!$E$7<0.4, 'Texture Calculator'!$C$7>0.2, 'Texture Calculator'!$C$7<=0.45), 8, 0) -> 0 | K9: ((clay >= 27 && clay < 40) && (sand > 20 && sand <= 45)) | L9: CLAY LOAM
A10: =IF(AND('Texture Calculator'!$E$4>=0.27, 'Texture Calculator'!$E$4<0.4, 'Texture Calculator'!$C$4<=0.2), 9, 0) -> 0 | B10: ((clay >= 27 && clay < 40) && (sand <= 20)) | C10: SILTY CLAY LOAM | D10: =IF(AND('Texture Calculator'!$E$5>=0.27, 'Texture Calculator'!$E$5<0.4, 'Texture Calculator'!$C$5<=0.2), 9, 0) -> 0 | E10: ((clay >= 27 && clay < 40) && (sand <= 20)) | F10: SILTY CLAY LOAM | G10: =IF(AND('Texture Calculator'!$E$6>=0.27, 'Texture Calculator'!$E$6<0.4, 'Texture Calculator'!$C$6<=0.2), 9, 0) -> 0 | H10: ((clay >= 27 && clay < 40) && (sand <= 20)) | I10: SILTY CLAY LOAM | J10: =IF(AND('Texture Calculator'!$E$7>=0.27, 'Texture Calculator'!$E$7<0.4, 'Texture Calculator'!$C$7<=0.2), 9, 0) -> 0 | K10: ((clay >= 27 && clay < 40) && (sand <= 20)) | L10: SILTY CLAY LOAM
A11: =IF(AND('Texture Calculator'!$E$4>=0.35, 'Texture Calculator'!$C$4>0.45), 10, 0) -> 0 | B11: (clay >= 35 && sand > 45) | C11: SANDY CLAY | D11: =IF(AND('Texture Calculator'!$E$5>=0.35, 'Texture Calculator'!$C$5>0.45), 10, 0) -> 0 | E11: (clay >= 35 && sand > 45) | F11: SANDY CLAY | G11: =IF(AND('Texture Calculator'!$E$6>=0.35, 'Texture Calculator'!$C$6>0.45), 10, 0) -> 0 | H11: (clay >= 35 && sand > 45) | I11: SANDY CLAY | J11: =IF(AND('Texture Calculator'!$E$7>=0.35, 'Texture Calculator'!$C$7>0.45), 10, 0) -> 0 | K11: (clay >= 35 && sand > 45) | L11: SANDY CLAY
A12: =IF(AND('Texture Calculator'!$E$4>=0.4, 'Texture Calculator'!$G$4>=0.4), 11, 0) -> 0 | B12: (clay >= 40 && silt >= 40) | C12: SILTY CLAY | D12: =IF(AND('Texture Calculator'!$E$5>=0.4, 'Texture Calculator'!$G$5>=0.4), 11, 0) -> 0 | E12: (clay >= 40 && silt >= 40) | F12: SILTY CLAY | G12: =IF(AND('Texture Calculator'!$E$6>=0.4, 'Texture Calculator'!$G$6>=0.4), 11, 0) -> 0 | H12: (clay >= 40 && silt >= 40) | I12: SILTY CLAY | J12: =IF(AND('Texture Calculator'!$E$7>=0.4, 'Texture Calculator'!$G$7>=0.4), 11, 0) -> 0 | K12: (clay >= 40 && silt >= 40) | L12: SILTY CLAY
A13: =IF(AND('Texture Calculator'!$E$4>=0.4, 'Texture Calculator'!$C$4<=0.45,'Texture Calculator'!$G$4<0.4), 12, 0) -> 0 | B13: (clay >= 40 && sand <= 45 && silt < 40) | C13: CLAY | D13: =IF(AND('Texture Calculator'!$E$5>=0.4, 'Texture Calculator'!$C$5<=0.45,'Texture Calculator'!$G$5<0.4), 12, 0) -> 0 | E13: (clay >= 40 && sand <= 45 && silt < 40) | F13: CLAY | G13: =IF(AND('Texture Calculator'!$E$6>=0.4, 'Texture Calculator'!$C$6<=0.45,'Texture Calculator'!$G$6<0.4), 12, 0) -> 0 | H13: (clay >= 40 && sand <= 45 && silt < 40) | I13: CLAY | J13: =IF(AND('Texture Calculator'!$E$7>=0.4, 'Texture Calculator'!$C$7<=0.45,'Texture Calculator'!$G$7<0.4), 12, 0) -> 0 | K13: (clay >= 40 && sand <= 45 && silt < 40) | L13: CLAY
A14: =SUM(A2:A13) -> 1 | D14: =SUM(D2:D13) -> 1 | G14: =SUM(G2:G13) -> 1 | J14: =SUM(J2:J13) -> 1
A17: Sand | D17: Sand | G17: Sand | J17: Sand
A18: =IF(AND(SUM('Texture Calculator'!$C$13:$C$16)='Texture Calculator'!$C$4, 'Texture Calculator'!$C$13+'Texture Calculator'!$C$14>=0.25, 'Texture Calculator'!$C$15<0.5, 'Texture Calculator'!$C$16<0.5, 'Texture Calculator'!#REF!<0.5), 1, 0) ->  | B18: vcscs >= 25 && ms < 50 && fs < 50 && vfs < 50 | C18: COARSE SAND | D18: =IF(AND(SUM('Texture Calculator'!$C$17:$C$31)='Texture Calculator'!$C$5, 'Texture Calculator'!#REF!+'Texture Calculator'!#REF!>=0.25, 'Texture Calculator'!#REF!<0.5, 'Texture Calculator'!#REF!<0.5, 'Texture Calculator'!$C$31<0.5), 1, 0) ->  | E18: vcscs >= 25 && ms < 50 && fs < 50 && vfs < 50 | F18: COARSE SAND | G18: =IF(AND(SUM('Texture Calculator'!$C$36:$C$40)='Texture Calculator'!$C$6, 'Texture Calculator'!#REF!+'Texture Calculator'!$C$37>=0.25, 'Texture Calculator'!$C$38<0.5, 'Texture Calculator'!$C$39<0.5, 'Texture Calculator'!$C$40<0.5), 1, 0) ->  | H18: vcscs >= 25 && ms < 50 && fs < 50 && vfs < 50 | I18: COARSE SAND | J18: =IF(AND(SUM('Texture Calculator'!$C$45:$C$59)='Texture Calculator'!$C$7, 'Texture Calculator'!$C$45+'Texture Calculator'!$C$46>=0.25, 'Texture Calculator'!$C$57<0.5, 'Texture Calculator'!$C$58<0.5, 'Texture Calculator'!$C$59<0.5), 1, 0) -> 0 | K18: vcscs >= 25 && ms < 50 && fs < 50 && vfs < 50 | L18: COARSE SAND
A19: =IF(AND(SUM('Texture Calculator'!$C$13:$C$16)='Texture Calculator'!$C$4,SUM($A$18) = 0, 'Texture Calculator'!$C$13+'Texture Calculator'!$C$14+'Texture Calculator'!$C$15>=0.25, 'Texture Calculator'!$C$13+'Texture Calculator'!$C$14<0.25, 'Texture Calculator'!$C$16<0.5,'Texture Calculator'!#REF!<0.5), 2, 0) ->  | B19: vcscsms >= 25 && vcscs < 25 && fs < 50 && vfs < 50 | C19: SAND | D19: =IF(AND(SUM('Texture Calculator'!$C$17:$C$31)='Texture Calculator'!$C$5,SUM($D$18) = 0, 'Texture Calculator'!#REF!+'Texture Calculator'!#REF!+'Texture Calculator'!#REF!>=0.25, 'Texture Calculator'!#REF!+'Texture Calculator'!#REF!<0.25, 'Texture Calculator'!#REF!<0.5,'Texture Calculator'!$C$31<0.5), 2, 0) ->  | E19: vcscsms >= 25 && vcscs < 25 && fs < 50 && vfs < 50 | F19: SAND | G19: =IF(AND(SUM('Texture Calculator'!$C$36:$C$40)='Texture Calculator'!$C$6,SUM($G$18) = 0, 'Texture Calculator'!#REF!+'Texture Calculator'!$C$37+'Texture Calculator'!$C$38>=0.25, 'Texture Calculator'!#REF!+'Texture Calculator'!$C$37<0.25, 'Texture Calculator'!$C$39<0.5,'Texture Calculator'!$C$40<0.5), 2, 0) ->  | H19: vcscsms >= 25 && vcscs < 25 && fs < 50 && vfs < 50 | I19: SAND | J19: =IF(AND(SUM('Texture Calculator'!$C$45:$C$59)='Texture Calculator'!$C$7,SUM($J$18) = 0, 'Texture Calculator'!$C$45+'Texture Calculator'!$C$46+'Texture Calculator'!$C$57>=0.25, 'Texture Calculator'!$C$45+'Texture Calculator'!$C$46<0.25, 'Texture Calculator'!$C$58<0.5,'Texture Calculator'!$C$59<0.5), 2, 0) -> 0 | K19: vcscsms >= 25 && vcscs < 25 && fs < 50 && vfs < 50 | L19: SAND
A20: =IF(AND(SUM('Texture Calculator'!$C$13:$C$16)='Texture Calculator'!$C$4,SUM($A$18:$A$19) = 0, 'Texture Calculator'!$C$15>=0.5, 'Texture Calculator'!$C$13+'Texture Calculator'!$C$14>=0.25), 3, 0) ->  | B20: ms >= 50 && vcscs >= 25 | C20: SAND | D20: =IF(AND(SUM('Texture Calculator'!$C$17:$C$31)='Texture Calculator'!$C$5,SUM($D$18:$D$19) = 0, 'Texture Calculator'!#REF!>=0.5, 'Texture Calculator'!#REF!+'Texture Calculator'!#REF!>=0.25), 3, 0) ->  | E20: ms >= 50 && vcscs >= 25 | F20: SAND | G20: =IF(AND(SUM('Texture Calculator'!$C$36:$C$40)='Texture Calculator'!$C$6,SUM($G$18:$G$19) = 0, 'Texture Calculator'!$C$38>=0.5, 'Texture Calculator'!#REF!+'Texture Calculator'!$C$37>=0.25), 3, 0) ->  | H20: ms >= 50 && vcscs >= 25 | I20: SAND | J20: =IF(AND(SUM('Texture Calculator'!$C$45:$C$59)='Texture Calculator'!$C$7,SUM($J$18:$J$19) = 0, 'Texture Calculator'!$C$57>=0.5, 'Texture Calculator'!$C$45+'Texture Calculator'!$C$46>=0.25), 3, 0) -> 0 | K20: ms >= 50 && vcscs >= 25 | L20: SAND
A21: =IF(AND(SUM('Texture Calculator'!$C$13:$C$16)='Texture Calculator'!$C$4,SUM($A$18:$A$20) = 0, 'Texture Calculator'!$C$16>=0.5, 'Texture Calculator'!$C$16>'Texture Calculator'!#REF!), 4, 0) ->  | B21: fs >= 50 && fs > vfs | C21: FINE SAND | D21: =IF(AND(SUM('Texture Calculator'!$C$17:$C$31)='Texture Calculator'!$C$5,SUM($D$18:$D$20) = 0, 'Texture Calculator'!#REF!>=0.5, 'Texture Calculator'!#REF!>'Texture Calculator'!$C$31), 4, 0) ->  | E21: fs >= 50 && fs > vfs | F21: FINE SAND | G21: =IF(AND(SUM('Texture Calculator'!$C$36:$C$40)='Texture Calculator'!$C$6,SUM($G$18:$G$20) = 0, 'Texture Calculator'!$C$39>=0.5, 'Texture Calculator'!$C$39>'Texture Calculator'!$C$40), 4, 0) ->  | H21: fs >= 50 && fs > vfs | I21: FINE SAND | J21: =IF(AND(SUM('Texture Calculator'!$C$45:$C$59)='Texture Calculator'!$C$7,SUM($J$18:$J$20) = 0, 'Texture Calculator'!$C$58>=0.5, 'Texture Calculator'!$C$58>'Texture Calculator'!$C$59), 4, 0) -> 0 | K21: fs >= 50 && fs > vfs | L21: FINE SAND
A22: =IF(AND(SUM('Texture Calculator'!$C$13:$C$16)='Texture Calculator'!$C$4,SUM($A$18:$A$21) = 0, 'Texture Calculator'!$C$13+'Texture Calculator'!$C$14+'Texture Calculator'!$C$15<0.25, 'Texture Calculator'!#REF!<0.5), 5, 0) ->  | B22: vcscsms < 25 && vfs < 50 | C22: FINE SAND | D22: =IF(AND(SUM('Texture Calculator'!$C$17:$C$31)='Texture Calculator'!$C$5,SUM($D$18:$D$21) = 0, 'Texture Calculator'!#REF!+'Texture Calculator'!#REF!+'Texture Calculator'!#REF!<0.25, 'Texture Calculator'!$C$31<0.5), 5, 0) ->  | E22: vcscsms < 25 && vfs < 50 | F22: FINE SAND | G22: =IF(AND(SUM('Texture Calculator'!$C$36:$C$40)='Texture Calculator'!$C$6,SUM($G$18:$G$21) = 0, 'Texture Calculator'!#REF!+'Texture Calculator'!$C$37+'Texture Calculator'!$C$38<0.25, 'Texture Calculator'!$C$40<0.5), 5, 0) ->  | H22: vcscsms < 25 && vfs < 50 | I22: FINE SAND | J22: =IF(AND(SUM('Texture Calculator'!$C$45:$C$59)='Texture Calculator'!$C$7,SUM($J$18:$J$21) = 0, 'Texture Calculator'!$C$45+'Texture Calculator'!$C$46+'Texture Calculator'!$C$57<0.25, 'Texture Calculator'!$C$59<0.5), 5, 0) -> 0 | K22: vcscsms < 25 && vfs < 50 | L22: FINE SAND
A23: =IF(AND(SUM('Texture Calculator'!$C$13:$C$16)='Texture Calculator'!$C$4,SUM($A$18:$A$22) = 0, 'Texture Calculator'!#REF!>=0.5), 6, 0) ->  | B23: vfs >= 50 | C23: VERY FINE SAND | D23: =IF(AND(SUM('Texture Calculator'!$C$17:$C$31)='Texture Calculator'!$C$5,SUM($D$18:$D$22) = 0, 'Texture Calculator'!$C$31>=0.5), 6, 0) ->  | E23: vfs >= 50 | F23: VERY FINE SAND | G23: =IF(AND(SUM('Texture Calculator'!$C$36:$C$40)='Texture Calculator'!$C$6,SUM($G$18:$G$22) = 0, 'Texture Calculator'!$C$40>=0.5), 6, 0) ->  | H23: vfs >= 50 | I23: VERY FINE SAND | J23: =IF(AND(SUM('Texture Calculator'!$C$45:$C$59)='Texture Calculator'!$C$7,SUM($J$18:$J$22) = 0, 'Texture Calculator'!$C$59>=0.5), 6, 0) -> 0 | K23: vfs >= 50 | L23: VERY FINE SAND
A24: =SUM(A18:A23)+1 ->  | D24: =SUM(D18:D23)+1 ->  | G24: =SUM(G18:G23)+1 ->  | J24: =SUM(J18:J23)+1 -> 1
A27: Loam Sand | D27: Loam Sand | G27: Loam Sand | J27: Loam Sand
A28: =IF(AND(SUM('Texture Calculator'!$C$13:$C$16)='Texture Calculator'!$C$4, 'Texture Calculator'!$C$13+'Texture Calculator'!$C$14>=0.25, 'Texture Calculator'!$C$15<0.5, 'Texture Calculator'!$C$16<0.5, 'Texture Calculator'!#REF!<0.5), 1, 0) ->  | B28: vcscs >= 25 && ms < 50 && fs < 50 && vfs < 50 | C28: LOAMY COARSE SAND | D28: =IF(AND(SUM('Texture Calculator'!$C$17:$C$31)='Texture Calculator'!$C$5, 'Texture Calculator'!#REF!+'Texture Calculator'!#REF!>=0.25, 'Texture Calculator'!#REF!<0.5, 'Texture Calculator'!#REF!<0.5, 'Texture Calculator'!$C$31<0.5), 1, 0) ->  | E28: vcscs >= 25 && ms < 50 && fs < 50 && vfs < 50 | F28: LOAMY COARSE SAND | G28: =IF(AND(SUM('Texture Calculator'!$C$36:$C$40)='Texture Calculator'!$C$6, 'Texture Calculator'!#REF!+'Texture Calculator'!$C$37>=0.25, 'Texture Calculator'!$C$38<0.5, 'Texture Calculator'!$C$39<0.5, 'Texture Calculator'!$C$40<0.5), 1, 0) ->  | H28: vcscs >= 25 && ms < 50 && fs < 50 && vfs < 50 | I28: LOAMY COARSE SAND | J28: =IF(AND(SUM('Texture Calculator'!$C$45:$C$59)='Texture Calculator'!$C$7, 'Texture Calculator'!$C$45+'Texture Calculator'!$C$46>=0.25, 'Texture Calculator'!$C$57<0.5, 'Texture Calculator'!$C$58<0.5, 'Texture Calculator'!$C$59<0.5), 1, 0) -> 0 | K28: vcscs >= 25 && ms < 50 && fs < 50 && vfs < 50 | L28: LOAMY COARSE SAND
A29: =IF(AND(SUM('Texture Calculator'!$C$13:$C$16)='Texture Calculator'!$C$4,SUM($A$28) = 0, 'Texture Calculator'!$C$13+'Texture Calculator'!$C$14+'Texture Calculator'!$C$15>=0.25, 'Texture Calculator'!$C$13+'Texture Calculator'!$C$14<0.25, 'Texture Calculator'!$C$16<0.5,'Texture Calculator'!#REF!<0.5), 2, 0) ->  | B29: vcscsms >= 25 && vcscs < 25 && fs < 50 && vfs < 50 | C29: LOAMY SAND | D29: =IF(AND(SUM('Texture Calculator'!$C$17:$C$31)='Texture Calculator'!$C$5,SUM($D$28) = 0, 'Texture Calculator'!#REF!+'Texture Calculator'!#REF!+'Texture Calculator'!#REF!>=0.25, 'Texture Calculator'!#REF!+'Texture Calculator'!#REF!<0.25, 'Texture Calculator'!#REF!<0.5,'Texture Calculator'!$C$31<0.5), 2, 0) ->  | E29: vcscsms >= 25 && vcscs < 25 && fs < 50 && vfs < 50 | F29: LOAMY SAND | G29: =IF(AND(SUM('Texture Calculator'!$C$36:$C$40)='Texture Calculator'!$C$6,SUM($A$28) = 0, 'Texture Calculator'!$C$13+'Texture Calculator'!$C$14+'Texture Calculator'!$C$15>=0.25, 'Texture Calculator'!$C$13+'Texture Calculator'!$C$14<0.25, 'Texture Calculator'!$C$16<0.5,'Texture Calculator'!#REF!<0.5), 2, 0) ->  | H29: vcscsms >= 25 && vcscs < 25 && fs < 50 && vfs < 50 | I29: LOAMY SAND | J29: =IF(AND(SUM('Texture Calculator'!$C$45:$C$59)='Texture Calculator'!$C$7,SUM($J$28) = 0, 'Texture Calculator'!$C$45+'Texture Calculator'!$C$46+'Texture Calculator'!$C$57>=0.25, 'Texture Calculator'!$C$45+'Texture Calculator'!$C$46<0.25, 'Texture Calculator'!$C$58<0.5,'Texture Calculator'!$C$59<0.5), 2, 0) -> 0 | K29: vcscsms >= 25 && vcscs < 25 && fs < 50 && vfs < 50 | L29: LOAMY SAND
A30: =IF(AND(SUM('Texture Calculator'!$C$13:$C$16)='Texture Calculator'!$C$4,SUM($A$28:$A$29) = 0, 'Texture Calculator'!$C$15>=0.5, 'Texture Calculator'!$C$13+'Texture Calculator'!$C$14>=0.25),3, 0) ->  | B30: ms >= 50 && vcscs >= 25 | C30: LOAMY SAND | D30: =IF(AND(SUM('Texture Calculator'!$C$17:$C$31)='Texture Calculator'!$C$5,SUM($D$28:$D$29) = 0, 'Texture Calculator'!#REF!>=0.5, 'Texture Calculator'!#REF!+'Texture Calculator'!#REF!>=0.25),3, 0) ->  | E30: ms >= 50 && vcscs >= 25 | F30: LOAMY SAND | G30: =IF(AND(SUM('Texture Calculator'!$C$36:$C$40)='Texture Calculator'!$C$6,SUM($G$28:$G$29) = 0, 'Texture Calculator'!$C$38>=0.5, 'Texture Calculator'!#REF!+'Texture Calculator'!$C$37>=0.25),3, 0) ->  | H30: ms >= 50 && vcscs >= 25 | I30: LOAMY SAND | J30: =IF(AND(SUM('Texture Calculator'!$C$45:$C$59)='Texture Calculator'!$C$7,SUM($J$28:$J$29) = 0, 'Texture Calculator'!$C$57>=0.5, 'Texture Calculator'!$C$45+'Texture Calculator'!$C$46>=0.25),3, 0) -> 0 | K30: ms >= 50 && vcscs >= 25 | L30: LOAMY SAND
A31: =IF(AND(SUM('Texture Calculator'!$C$13:$C$16)='Texture Calculator'!$C$4,SUM($A$28:$A$30) = 0, 'Texture Calculator'!$C$16>=0.5), 4, 0) ->  | B31: fs >= 50 | C31: LOAMY FINE SAND | D31: =IF(AND(SUM('Texture Calculator'!$C$17:$C$31)='Texture Calculator'!$C$5,SUM($D$28:$D$30) = 0, 'Texture Calculator'!#REF!>=0.5), 4, 0) ->  | E31: fs >= 50 | F31: LOAMY FINE SAND | G31: =IF(AND(SUM('Texture Calculator'!$C$36:$C$40)='Texture Calculator'!$C$6,SUM($G$28:$G$30) = 0, 'Texture Calculator'!$C$39>=0.5), 4, 0) ->  | H31: fs >= 50 | I31: LOAMY FINE SAND | J31: =IF(AND(SUM('Texture Calculator'!$C$45:$C$59)='Texture Calculator'!$C$7,SUM($J$28:$J$30) = 0, 'Texture Calculator'!$C$58>=0.5), 4, 0) -> 0 | K31: fs >= 50 | L31: LOAMY FINE SAND
A32: =IF(AND(SUM('Texture Calculator'!$C$13:$C$16)='Texture Calculator'!$C$4,SUM($A$28:$A$31) = 0, 'Texture Calculator'!$C$13+'Texture Calculator'!$C$14+'Texture Calculator'!$C$15<0.25, 'Texture Calculator'!#REF!<0.5), 5, 0) ->  | B32: vcscsms < 25 && vfs < 50 | C32: LOAMY FINE SAND | D32: =IF(AND(SUM('Texture Calculator'!$C$17:$C$31)='Texture Calculator'!$C$5,SUM($D$28:$D$31) = 0, 'Texture Calculator'!#REF!+'Texture Calculator'!#REF!+'Texture Calculator'!#REF!<0.25, 'Texture Calculator'!$C$31<0.5), 5, 0) ->  | E32: vcscsms < 25 && vfs < 50 | F32: LOAMY FINE SAND | G32: =IF(AND(SUM('Texture Calculator'!$C$36:$C$40)='Texture Calculator'!$C$6,SUM($G$28:$G$31) = 0, 'Texture Calculator'!#REF!+'Texture Calculator'!$C$37+'Texture Calculator'!$C$38<0.25, 'Texture Calculator'!$C$40<0.5), 5, 0) ->  | H32: vcscsms < 25 && vfs < 50 | I32: LOAMY FINE SAND | J32: =IF(AND(SUM('Texture Calculator'!$C$45:$C$59)='Texture Calculator'!$C$7,SUM($J$28:$J$31) = 0, 'Texture Calculator'!$C$45+'Texture Calculator'!$C$46+'Texture Calculator'!$C$57<0.25, 'Texture Calculator'!$C$59<0.5), 5, 0) -> 0 | K32: vcscsms < 25 && vfs < 50 | L32: LOAMY FINE SAND
A33: =IF(AND(SUM('Texture Calculator'!$C$13:$C$16)='Texture Calculator'!$C$4,SUM($A$28:$A$32) = 0, 'Texture Calculator'!#REF!>=0.5), 6, 0) ->  | B33: vfs >= 50 | C33: LOAMY VERY FINE SAND | D33: =IF(AND(SUM('Texture Calculator'!$C$17:$C$31)='Texture Calculator'!$C$5,SUM($D$28:$D$32) = 0, 'Texture Calculator'!$C$31>=0.5), 6, 0) ->  | E33: vfs >= 50 | F33: LOAMY VERY FINE SAND | G33: =IF(AND(SUM('Texture Calculator'!$C$36:$C$40)='Texture Calculator'!$C$6,SUM($G$28:$G$32) = 0, 'Texture Calculator'!$C$40>=0.5), 6, 0) ->  | H33: vfs >= 50 | I33: LOAMY VERY FINE SAND | J33: =IF(AND(SUM('Texture Calculator'!$C$45:$C$59)='Texture Calculator'!$C$7,SUM($J$28:$J$32) = 0, 'Texture Calculator'!$C$59>=0.5), 6, 0) -> 0 | K33: vfs >= 50 | L33: LOAMY VERY FINE SAND
A34: =SUM(A28:A33)+1 ->  | D34: =SUM(D28:D33)+1 ->  | G34: =SUM(G28:G33)+1 ->  | J34: =SUM(J28:J33)+1 -> 1
A36: Sand Loam | D36: Sand Loam | G36: Sand Loam | J36: Sand Loam
A37: =IF(AND(SUM('Texture Calculator'!$C$13:$C$16)='Texture Calculator'!$C$4, 'Texture Calculator'!$C$13+'Texture Calculator'!$C$14>=0.25, 'Texture Calculator'!$C$15<0.5, 'Texture Calculator'!$C$16<0.5, 'Texture Calculator'!#REF!<0.5), 1, 0) ->  | B37: vcscs >= 25 && ms < 50 && fs < 50 && vfs < 50 | C37: COARSE SANDY LOAM | D37: =IF(AND(SUM('Texture Calculator'!$C$17:$C$31)='Texture Calculator'!$C$5, 'Texture Calculator'!#REF!+'Texture Calculator'!#REF!>=0.25, 'Texture Calculator'!#REF!<0.5, 'Texture Calculator'!#REF!<0.5, 'Texture Calculator'!$C$31<0.5), 1, 0) ->  | E37: vcscs >= 25 && ms < 50 && fs < 50 && vfs < 50 | F37: COARSE SANDY LOAM | G37: =IF(AND(SUM('Texture Calculator'!$C$36:$C$40)='Texture Calculator'!$C$6, 'Texture Calculator'!#REF!+'Texture Calculator'!$C$37>=0.25, 'Texture Calculator'!$C$38<0.5, 'Texture Calculator'!$C$39<0.5, 'Texture Calculator'!$C$40<0.5), 1, 0) ->  | H37: vcscs >= 25 && ms < 50 && fs < 50 && vfs < 50 | I37: COARSE SANDY LOAM | J37: =IF(AND(SUM('Texture Calculator'!$C$45:$C$59)='Texture Calculator'!$C$7, 'Texture Calculator'!$C$45+'Texture Calculator'!$C$46>=0.25, 'Texture Calculator'!$C$57<0.5, 'Texture Calculator'!$C$58<0.5, 'Texture Calculator'!$C$59<0.5), 1, 0) -> 0 | K37: vcscs >= 25 && ms < 50 && fs < 50 && vfs < 50 | L37: COARSE SANDY LOAM
A38: =IF(AND(SUM('Texture Calculator'!$C$13:$C$16)='Texture Calculator'!$C$4,SUM($A$37) = 0,'Texture Calculator'!$C$13+'Texture Calculator'!$C$14+'Texture Calculator'!$C$15>=0.3, 'Texture Calculator'!#REF!>=0.3, 'Texture Calculator'!#REF!<0.5), 2,0) ->  | B38: vcscsms >= 30 && vfs >= 30 && vfs < 50 | C38: COARSE SANDY LOAM | D38: =IF(AND(SUM('Texture Calculator'!$C$17:$C$31)='Texture Calculator'!$C$5,SUM($D$37) = 0,'Texture Calculator'!#REF!+'Texture Calculator'!#REF!+'Texture Calculator'!#REF!>=0.3, 'Texture Calculator'!$C$31>=0.3, 'Texture Calculator'!$C$31<0.5), 2,0) ->  | E38: vcscsms >= 30 && vfs >= 30 && vfs < 50 | F38: COARSE SANDY LOAM | G38: =IF(AND(SUM('Texture Calculator'!$C$36:$C$40)='Texture Calculator'!$C$6,SUM($G$37) = 0,'Texture Calculator'!#REF!+'Texture Calculator'!$C$37+'Texture Calculator'!$C$38>=0.3, 'Texture Calculator'!$C$40>=0.3, 'Texture Calculator'!$C$40<0.5), 2,0) ->  | H38: vcscsms >= 30 && vfs >= 30 && vfs < 50 | I38: COARSE SANDY LOAM | J38: =IF(AND(SUM('Texture Calculator'!$C$45:$C$59)='Texture Calculator'!$C$7,SUM($J$37) = 0,'Texture Calculator'!$C$45+'Texture Calculator'!$C$46+'Texture Calculator'!$C$57>=0.3, 'Texture Calculator'!$C$59>=0.3, 'Texture Calculator'!$C$59<0.5), 2,0) -> 0 | K38: vcscsms >= 30 && vfs >= 30 && vfs < 50 | L38: COARSE SANDY LOAM
A39: =IF(AND(SUM('Texture Calculator'!$C$13:$C$16)='Texture Calculator'!$C$4,SUM($A$37:$A$38) = 0, 'Texture Calculator'!$C$13+'Texture Calculator'!$C$14+'Texture Calculator'!$C$15>=0.3, 'Texture Calculator'!$C$13+'Texture Calculator'!$C$14<0.25, 'Texture Calculator'!$C$16<0.3,'Texture Calculator'!#REF!<0.3), 3, 0) ->  | B39: vcscsms >= 30 && vcscs < 25 && fs < 30 && vfs < 30 | C39: SANDY LOAM | D39: =IF(AND(SUM('Texture Calculator'!$C$17:$C$31)='Texture Calculator'!$C$5,SUM($D$37:$D$38) = 0, 'Texture Calculator'!#REF!+'Texture Calculator'!#REF!+'Texture Calculator'!#REF!>=0.3, 'Texture Calculator'!#REF!+'Texture Calculator'!#REF!<0.25, 'Texture Calculator'!#REF!<0.3,'Texture Calculator'!$C$31<0.3), 3, 0) ->  | E39: vcscsms >= 30 && vcscs < 25 && fs < 30 && vfs < 30 | F39: SANDY LOAM | G39: =IF(AND(SUM('Texture Calculator'!$C$36:$C$40)='Texture Calculator'!$C$6,SUM($G$37:$G$38) = 0, 'Texture Calculator'!#REF!+'Texture Calculator'!$C$37+'Texture Calculator'!$C$38>=0.3, 'Texture Calculator'!#REF!+'Texture Calculator'!$C$37<0.25, 'Texture Calculator'!$C$39<0.3,'Texture Calculator'!$C$40<0.3), 3, 0) ->  | H39: vcscsms >= 30 && vcscs < 25 && fs < 30 && vfs < 30 | I39: SANDY LOAM | J39: =IF(AND(SUM('Texture Calculator'!$C$45:$C$59)='Texture Calculator'!$C$7,SUM($J$37:$J$38) = 0, 'Texture Calculator'!$C$45+'Texture Calculator'!$C$46+'Texture Calculator'!$C$57>=0.3, 'Texture Calculator'!$C$45+'Texture Calculator'!$C$46<0.25, 'Texture Calculator'!$C$58<0.3,'Texture Calculator'!$C$59<0.3), 3, 0) -> 0 | K39: vcscsms >= 30 && vcscs < 25 && fs < 30 && vfs < 30 | L39: SANDY LOAM
A40: =IF(AND(SUM('Texture Calculator'!$C$13:$C$16)='Texture Calculator'!$C$4,SUM($A$37:$A$39) = 0,'Texture Calculator'!$C$13+'Texture Calculator'!$C$14+'Texture Calculator'!$C$15<=0.15,'Texture Calculator'!$C$16<0.3,'Texture Calculator'!#REF!<0.3,'Texture Calculator'!$C$16+'Texture Calculator'!#REF!<0.4), 4, 0) ->  | B40: vcscsms <= 15 && fs < 30 && vfs < 30 && fsvfs < 40 | C40: SANDY LOAM | D40: =IF(AND(SUM('Texture Calculator'!$C$17:$C$31)='Texture Calculator'!$C$5,SUM($D$37:$D$39) = 0,'Texture Calculator'!#REF!+'Texture Calculator'!#REF!+'Texture Calculator'!#REF!<=0.15,'Texture Calculator'!#REF!<0.3,'Texture Calculator'!$C$31<0.3,'Texture Calculator'!#REF!+'Texture Calculator'!$C$31<0.4), 4, 0) ->  | E40: vcscsms <= 15 && fs < 30 && vfs < 30 && fsvfs < 40 | F40: SANDY LOAM | G40: =IF(AND(SUM('Texture Calculator'!$C$36:$C$40)='Texture Calculator'!$C$6,SUM($G$37:$G$39) = 0,'Texture Calculator'!#REF!+'Texture Calculator'!$C$37+'Texture Calculator'!$C$38<=0.15,'Texture Calculator'!$C$39<0.3,'Texture Calculator'!$C$40<0.3,'Texture Calculator'!$C$39+'Texture Calculator'!$C$40<0.4), 4, 0) ->  | H40: vcscsms <= 15 && fs < 30 && vfs < 30 && fsvfs < 40 | I40: SANDY LOAM | J40: =IF(AND(SUM('Texture Calculator'!$C$45:$C$59)='Texture Calculator'!$C$7,SUM($J$37:$J$39) = 0,'Texture Calculator'!$C$45+'Texture Calculator'!$C$46+'Texture Calculator'!$C$57<=0.15,'Texture Calculator'!$C$58<0.3,'Texture Calculator'!$C$59<0.3,'Texture Calculator'!$C$58+'Texture Calculator'!$C$59<0.4), 4, 0) -> 0 | K40: vcscsms <= 15 && fs < 30 && vfs < 30 && fsvfs < 40 | L40: SANDY LOAM
A41: =IF(AND(SUM('Texture Calculator'!$C$13:$C$16)='Texture Calculator'!$C$4,SUM($A$37:$A$40) = 0,'Texture Calculator'!$C$13+'Texture Calculator'!$C$14>=0.25, 'Texture Calculator'!$C$15>=0.5), 5, 0) ->  | B41: vcscs >= 25 && ms >= 50 | C41: SANDY LOAM | D41: =IF(AND(SUM('Texture Calculator'!$C$17:$C$31)='Texture Calculator'!$C$5,SUM($D$37:$D$40) = 0,'Texture Calculator'!#REF!+'Texture Calculator'!#REF!>=0.25, 'Texture Calculator'!#REF!>=0.5), 5, 0) ->  | E41: vcscs >= 25 && ms >= 50 | F41: SANDY LOAM | G41: =IF(AND(SUM('Texture Calculator'!$C$36:$C$40)='Texture Calculator'!$C$6,SUM($G$37:$G$40) = 0,'Texture Calculator'!#REF!+'Texture Calculator'!$C$37>=0.25, 'Texture Calculator'!$C$38>=0.5), 5, 0) ->  | H41: vcscs >= 25 && ms >= 50 | I41: SANDY LOAM | J41: =IF(AND(SUM('Texture Calculator'!$C$45:$C$59)='Texture Calculator'!$C$7,SUM($J$37:$J$40) = 0,'Texture Calculator'!$C$45+'Texture Calculator'!$C$46>=0.25, 'Texture Calculator'!$C$57>=0.5), 5, 0) -> 0 | K41: vcscs >= 25 && ms >= 50 | L41: SANDY LOAM
A42: =IF(AND(SUM('Texture Calculator'!$C$13:$C$16)='Texture Calculator'!$C$4,SUM($A$37:$A$41) = 0,'Texture Calculator'!$C$16>=0.3,'Texture Calculator'!#REF!<0.3, 'Texture Calculator'!$C$13+'Texture Calculator'!$C$14<0.25), 6, 0) ->  | B42: fs >= 30 && vfs < 30 && vcscs < 25 | C42: FINE SANDY LOAM | D42: =IF(AND(SUM('Texture Calculator'!$C$17:$C$31)='Texture Calculator'!$C$5,SUM($D$37:$D$41) = 0,'Texture Calculator'!#REF!>=0.3,'Texture Calculator'!$C$31<0.3, 'Texture Calculator'!#REF!+'Texture Calculator'!#REF!<0.25), 6, 0) ->  | E42: fs >= 30 && vfs < 30 && vcscs < 25 | F42: FINE SANDY LOAM | G42: =IF(AND(SUM('Texture Calculator'!$C$36:$C$40)='Texture Calculator'!$C$6,SUM($G$37:$G$41) = 0,'Texture Calculator'!$C$39>=0.3,'Texture Calculator'!$C$40<0.3, 'Texture Calculator'!#REF!+'Texture Calculator'!$C$37<0.25), 6, 0) ->  | H42: fs >= 30 && vfs < 30 && vcscs < 25 | I42: FINE SANDY LOAM | J42: =IF(AND(SUM('Texture Calculator'!$C$45:$C$59)='Texture Calculator'!$C$7,SUM($J$37:$J$41) = 0,'Texture Calculator'!$C$58>=0.3,'Texture Calculator'!$C$59<0.3, 'Texture Calculator'!$C$45+'Texture Calculator'!$C$46<0.25), 6, 0) -> 0 | K42: fs >= 30 && vfs < 30 && vcscs < 25 | L42: FINE SANDY LOAM
A43: =IF(AND(SUM('Texture Calculator'!$C$13:$C$16)='Texture Calculator'!$C$4,SUM($A$37:$A$42) = 0,'Texture Calculator'!$C$13+'Texture Calculator'!$C$14+'Texture Calculator'!$C$15>=0.15, 'Texture Calculator'!$C$13+'Texture Calculator'!$C$14+'Texture Calculator'!$C$15<0.3, 'Texture Calculator'!$C$13+'Texture Calculator'!$C$14<0.25), 7, 0) ->  | B43: vcscsms >= 15 && vcscsms < 30 && vcscs < 25 | C43: FINE SANDY LOAM | D43: =IF(AND(SUM('Texture Calculator'!$C$17:$C$31)='Texture Calculator'!$C$5,SUM($D$37:$D$42) = 0,'Texture Calculator'!#REF!+'Texture Calculator'!#REF!+'Texture Calculator'!#REF!>=0.15, 'Texture Calculator'!#REF!+'Texture Calculator'!#REF!+'Texture Calculator'!#REF!<0.3, 'Texture Calculator'!#REF!+'Texture Calculator'!#REF!<0.25), 7, 0) ->  | E43: vcscsms >= 15 && vcscsms < 30 && vcscs < 25 | F43: FINE SANDY LOAM | G43: =IF(AND(SUM('Texture Calculator'!$C$36:$C$40)='Texture Calculator'!$C$6,SUM($G$37:$G$42) = 0,'Texture Calculator'!#REF!+'Texture Calculator'!$C$37+'Texture Calculator'!$C$38>=0.15, 'Texture Calculator'!#REF!+'Texture Calculator'!$C$37+'Texture Calculator'!$C$38<0.3, 'Texture Calculator'!#REF!+'Texture Calculator'!$C$37<0.25), 7, 0) ->  | H43: vcscsms >= 15 && vcscsms < 30 && vcscs < 25 | I43: FINE SANDY LOAM | J43: =IF(AND(SUM('Texture Calculator'!$C$45:$C$59)='Texture Calculator'!$C$7,SUM($J$37:$J$42) = 0,'Texture Calculator'!$C$45+'Texture Calculator'!$C$46+'Texture Calculator'!$C$57>=0.15, 'Texture Calculator'!$C$45+'Texture Calculator'!$C$46+'Texture Calculator'!$C$57<0.3, 'Texture Calculator'!$C$45+'Texture Calculator'!$C$46<0.25), 7, 0) -> 0 | K43: vcscsms >= 15 && vcscsms < 30 && vcscs < 25 | L43: FINE SANDY LOAM
A44: =IF(AND(SUM('Texture Calculator'!$C$13:$C$16)='Texture Calculator'!$C$4,SUM($A$37:$A$43) = 0,'Texture Calculator'!$C$16+'Texture Calculator'!#REF!>=0.4, 'Texture Calculator'!$C$16>='Texture Calculator'!#REF!, 'Texture Calculator'!$C$13+'Texture Calculator'!$C$14+'Texture Calculator'!$C$15<=0.15), 8, 0) ->  | B44: fsvfs >= 40 && fs >= vfs && vcscsms <= 15 | C44: FINE SANDY LOAM | D44: =IF(AND(SUM('Texture Calculator'!$C$17:$C$31)='Texture Calculator'!$C$5,SUM($D$37:$D$43) = 0,'Texture Calculator'!#REF!+'Texture Calculator'!$C$31>=0.4, 'Texture Calculator'!#REF!>='Texture Calculator'!$C$31, 'Texture Calculator'!#REF!+'Texture Calculator'!#REF!+'Texture Calculator'!#REF!<=0.15), 8, 0) ->  | E44: fsvfs >= 40 && fs >= vfs && vcscsms <= 15 | F44: FINE SANDY LOAM | G44: =IF(AND(SUM('Texture Calculator'!$C$36:$C$40)='Texture Calculator'!$C$6,SUM($G$37:$G$43) = 0,'Texture Calculator'!$C$39+'Texture Calculator'!$C$40>=0.4, 'Texture Calculator'!$C$39>='Texture Calculator'!$C$40, 'Texture Calculator'!#REF!+'Texture Calculator'!$C$37+'Texture Calculator'!$C$38<=0.15), 8, 0) ->  | H44: fsvfs >= 40 && fs >= vfs && vcscsms <= 15 | I44: FINE SANDY LOAM | J44: =IF(AND(SUM('Texture Calculator'!$C$45:$C$59)='Texture Calculator'!$C$7,SUM($J$37:$J$43) = 0,'Texture Calculator'!$C$58+'Texture Calculator'!$C$59>=0.4, 'Texture Calculator'!$C$58>='Texture Calculator'!$C$59, 'Texture Calculator'!$C$45+'Texture Calculator'!$C$46+'Texture Calculator'!$C$57<=0.15), 8, 0) -> 0 | K44: fsvfs >= 40 && fs >= vfs && vcscsms <= 15 | L44: FINE SANDY LOAM
A45: =IF(AND(SUM('Texture Calculator'!$C$13:$C$16)='Texture Calculator'!$C$4,SUM($A$37:$A$44) = 0,'Texture Calculator'!$C$13+'Texture Calculator'!$C$14>=0.25, 'Texture Calculator'!$C$16>=0.5), 9, 0) ->  | B45: vcscs >= 25 && fs >= 50 | C45: FINE SANDY LOAM | D45: =IF(AND(SUM('Texture Calculator'!$C$17:$C$31)='Texture Calculator'!$C$5,SUM($D$37:$D$44) = 0,'Texture Calculator'!#REF!+'Texture Calculator'!#REF!>=0.25, 'Texture Calculator'!#REF!>=0.5), 9, 0) ->  | E45: vcscs >= 25 && fs >= 50 | F45: FINE SANDY LOAM | G45: =IF(AND(SUM('Texture Calculator'!$C$36:$C$40)='Texture Calculator'!$C$6,SUM($G$37:$G$44) = 0,'Texture Calculator'!#REF!+'Texture Calculator'!$C$37>=0.25, 'Texture Calculator'!$C$39>=0.5), 9, 0) ->  | H45: vcscs >= 25 && fs >= 50 | I45: FINE SANDY LOAM | J45: =IF(AND(SUM('Texture Calculator'!$C$45:$C$59)='Texture Calculator'!$C$7,SUM($J$37:$J$44) = 0,'Texture Calculator'!$C$45+'Texture Calculator'!$C$46>=0.25, 'Texture Calculator'!$C$58>=0.5), 9, 0) -> 0 | K45: vcscs >= 25 && fs >= 50 | L45: FINE SANDY LOAM
A46: =IF(AND(SUM('Texture Calculator'!$C$13:$C$16)='Texture Calculator'!$C$4,SUM($A$37:$A$45) = 0,'Texture Calculator'!#REF!>=0.3, 'Texture Calculator'!$C$13+'Texture Calculator'!$C$14+'Texture Calculator'!$C$15<0.15, 'Texture Calculator'!#REF!>'Texture Calculator'!$C$16), 10, 0) ->  | B46: vfs >= 30 && vcscsms < 15 && vfs > fs | C46: VERY FINE SANDY LOAM | D46: =IF(AND(SUM('Texture Calculator'!$C$17:$C$31)='Texture Calculator'!$C$5,SUM($D$37:$D$45) = 0,'Texture Calculator'!$C$31>=0.3, 'Texture Calculator'!#REF!+'Texture Calculator'!#REF!+'Texture Calculator'!#REF!<0.15, 'Texture Calculator'!$C$31>'Texture Calculator'!#REF!), 10, 0) ->  | E46: vfs >= 30 && vcscsms < 15 && vfs > fs | F46: VERY FINE SANDY LOAM | G46: =IF(AND(SUM('Texture Calculator'!$C$36:$C$40)='Texture Calculator'!$C$6,SUM($G$37:$G$45) = 0,'Texture Calculator'!$C$40>=0.3, 'Texture Calculator'!#REF!+'Texture Calculator'!$C$37+'Texture Calculator'!$C$38<0.15, 'Texture Calculator'!$C$40>'Texture Calculator'!$C$39), 10, 0) ->  | H46: vfs >= 30 && vcscsms < 15 && vfs > fs | I46: VERY FINE SANDY LOAM | J46: =IF(AND(SUM('Texture Calculator'!$C$45:$C$59)='Texture Calculator'!$C$7,SUM($J$37:$J$45) = 0,'Texture Calculator'!$C$59>=0.3, 'Texture Calculator'!$C$45+'Texture Calculator'!$C$46+'Texture Calculator'!$C$57<0.15, 'Texture Calculator'!$C$59>'Texture Calculator'!$C$58), 10, 0) -> 0 | K46: vfs >= 30 && vcscsms < 15 && vfs > fs | L46: VERY FINE SANDY LOAM
A47: =IF(AND(SUM('Texture Calculator'!$C$13:$C$16)='Texture Calculator'!$C$4,SUM($A$37:$A$46) = 0,'Texture Calculator'!$C$16+'Texture Calculator'!#REF!>=0.4, 'Texture Calculator'!#REF!>'Texture Calculator'!$C$16, 'Texture Calculator'!$C$13+'Texture Calculator'!$C$14+'Texture Calculator'!$C$15<15), 11, 0) ->  | B47: fsvfs >= 40 && vfs > fs && vcscsms < 15 | C47: VERY FINE SANDY LOAM | D47: =IF(AND(SUM('Texture Calculator'!$C$17:$C$31)='Texture Calculator'!$C$5,SUM($D$37:$D$46) = 0,'Texture Calculator'!#REF!+'Texture Calculator'!$C$31>=0.4, 'Texture Calculator'!$C$31>'Texture Calculator'!#REF!, 'Texture Calculator'!#REF!+'Texture Calculator'!#REF!+'Texture Calculator'!#REF!<15), 11, 0) ->  | E47: fsvfs >= 40 && vfs > fs && vcscsms < 15 | F47: VERY FINE SANDY LOAM | G47: =IF(AND(SUM('Texture Calculator'!$C$36:$C$40)='Texture Calculator'!$C$6,SUM($G$37:$G$46) = 0,'Texture Calculator'!$C$39+'Texture Calculator'!$C$40>=0.4, 'Texture Calculator'!$C$40>'Texture Calculator'!$C$39, 'Texture Calculator'!#REF!+'Texture Calculator'!$C$37+'Texture Calculator'!$C$38<15), 11, 0) ->  | H47: fsvfs >= 40 && vfs > fs && vcscsms < 15 | I47: VERY FINE SANDY LOAM | J47: =IF(AND(SUM('Texture Calculator'!$C$45:$C$59)='Texture Calculator'!$C$7,SUM($J$37:$J$46) = 0,'Texture Calculator'!$C$58+'Texture Calculator'!$C$59>=0.4, 'Texture Calculator'!$C$59>'Texture Calculator'!$C$58, 'Texture Calculator'!$C$45+'Texture Calculator'!$C$46+'Texture Calculator'!$C$57<15), 11, 0) -> 0 | K47: fsvfs >= 40 && vfs > fs && vcscsms < 15 | L47: VERY FINE SANDY LOAM
A48: =IF(AND(SUM('Texture Calculator'!$C$13:$C$16)='Texture Calculator'!$C$4,SUM($A$37:$A$47) = 0,'Texture Calculator'!$C$13+'Texture Calculator'!$C$14>=0.25, 'Texture Calculator'!#REF!>=0.5), 12, 0) ->  | B48: vcscs >= 25 && vfs >= 50 | C48: VERY FINE SANDY LOAM | D48: =IF(AND(SUM('Texture Calculator'!$C$17:$C$31)='Texture Calculator'!$C$5,SUM($D$37:$D$47) = 0,'Texture Calculator'!#REF!+'Texture Calculator'!#REF!>=0.25, 'Texture Calculator'!$C$31>=0.5), 12, 0) ->  | E48: vcscs >= 25 && vfs >= 50 | F48: VERY FINE SANDY LOAM | G48: =IF(AND(SUM('Texture Calculator'!$C$36:$C$40)='Texture Calculator'!$C$6,SUM($G$37:$G$47) = 0,'Texture Calculator'!#REF!+'Texture Calculator'!$C$37>=0.25, 'Texture Calculator'!$C$40>=0.5), 12, 0) ->  | H48: vcscs >= 25 && vfs >= 50 | I48: VERY FINE SANDY LOAM | J48: =IF(AND(SUM('Texture Calculator'!$C$45:$C$59)='Texture Calculator'!$C$7,SUM($J$37:$J$47) = 0,'Texture Calculator'!$C$45+'Texture Calculator'!$C$46>=0.25, 'Texture Calculator'!$C$59>=0.5), 12, 0) -> 0 | K48: vcscs >= 25 && vfs >= 50 | L48: VERY FINE SANDY LOAM
A49: =IF(AND(SUM('Texture Calculator'!$C$13:$C$16)='Texture Calculator'!$C$4,SUM($A$37:$A$48) = 0,'Texture Calculator'!$C$13+'Texture Calculator'!$C$14+'Texture Calculator'!$C$15>=0.3, 'Texture Calculator'!#REF!>=0.5), 13,0) ->  | B49: vcscsms >= 30 && vfs >= 50 | C49: VERY FINE SANDY LOAM | D49: =IF(AND(SUM('Texture Calculator'!$C$17:$C$31)='Texture Calculator'!$C$5,SUM($D$37:$D$48) = 0,'Texture Calculator'!#REF!+'Texture Calculator'!#REF!+'Texture Calculator'!#REF!>=0.3, 'Texture Calculator'!$C$31>=0.5), 13,0) ->  | E49: vcscsms >= 30 && vfs >= 50 | F49: VERY FINE SANDY LOAM | G49: =IF(AND(SUM('Texture Calculator'!$C$36:$C$40)='Texture Calculator'!$C$6,SUM($G$37:$G$48) = 0,'Texture Calculator'!#REF!+'Texture Calculator'!$C$37+'Texture Calculator'!$C$38>=0.3, 'Texture Calculator'!$C$40>=0.5), 13,0) ->  | H49: vcscsms >= 30 && vfs >= 50 | I49: VERY FINE SANDY LOAM | J49: =IF(AND(SUM('Texture Calculator'!$C$45:$C$59)='Texture Calculator'!$C$7,SUM($J$37:$J$48) = 0,'Texture Calculator'!$C$45+'Texture Calculator'!$C$46+'Texture Calculator'!$C$57>=0.3, 'Texture Calculator'!$C$59>=0.5), 13,0) -> 0 | K49: vcscsms >= 30 && vfs >= 50 | L49: VERY FINE SANDY LOAM
A50: =SUM(A37:A49)+1 ->  | D50: =SUM(D37:D49)+1 ->  | G50: =SUM(G37:G49)+1 ->  | J50: =SUM(J37:J49)+1 -> 1

Sheet Sheet1
